Workbook

Sheet раскладка3-7
H1: "Утверждаю"
H2: Руководитель дошкольной образовательной
H3: организации
D8: Примерное 10 дневное меню
C9: для организации питания детей в дошкольных учреждениях
F10: с 8 -10,5 - часовым пребыванием
E11: от 3 до 7 лет
A12: День 1 - ый
A13: Наименование блюд и | C13: Масса | D13: Кол - во | E13: Кол - во | F13: Пищевые вещества | I13: Энергетическая | J13: витамин | K13: Сборник рецептур
A14: продуктов | C14: порции | D14: (в гр ) | E14: (в гр ) | I14: ценность
D15: брутто | E15: нетто | F15: белки | G15: жиры | H15: угл-ды | I15: Ккал | J15: С
B16: ЗАВТРАК
A17: Макароны, запеченные с яйцом | C17: 130/4 | F17: 6.20 | G17: 8.30 | H17: 20.00 | I17: 179.50 | J17: 0.12 | K17: №262,справ.М2003
B18: Макаронные изделия | D18: 34.00 | E18: 34.00
B19: Яйцо | D19: 21.30 | E19: 19.00
B20: Масло сливочное | D20: 2.60 | E20: 2.60
B21: Молоко | D21: 24.30 | E21: 24.30
B22: соль | D22: 0.60 | E22: 0.60
B23: масса п/ф | E23: 142.00
B24: Масло сливочное | D24: 4.00 | E24: 4.00
A25: Чай с сахаром и молоком | C25: 180/10 | F25: 2.60 | G25: 2.30 | H25: 14.30 | I25: 89.00 | J25: 1.20 | K25: № 394 Дели2010
B26: Заварка | D26: 0.50 | E26: 0.50
B27: Сахар | D27: 10.00 | E27: 10.00
B28: Молоко | D28: 92.00 | E28: 90.00
B29: Вода | D29: 60.00 | E29: 60.00
A30: Бутерброд с маслом сливочным | C30: 30/5 | F30: 2.30 | G30: 4.50 | H30: 15.40 | I30: 111.00 | K30: №1 Дели2010
B31: Батон нарезной | D31: 30.00 | E31: 30.00
B32: Масло сливочное | D32: 5.00 | E32: 5.00
A33: Итого:
B34: 2 - ой ЗАВТРАК
A35: Сок | C35: 100 | D35: 100.00 | E35: 100.00 | F35: 0.3 | G35: 0.00 | H35: 10.80 | I35: 44 | J35: 11.00 | K35: №399,Дели2010
A36: Итого: | C36: 459 | F36: =SUM(F17:F35) -> 11.40 | G36: =SUM(G17:G35) -> 15.10 | H36: 60.50 | I36: 423.50 | J36: 12.32
B37: ОБЕД
A38: Свекла отварная | C38: 60 | F38: 0.80 | G38: 0.10 | H38: 4.30 | I38: 21.00 | J38: 1.22 | K38: сб1996, стр564
B39: Свекла | D39: 76.80 | E39: 61.20
A40: Рассольник ленинградский со сметаной и мясом | C40: 200/10/5 | F40: 5.00 | G40: 5.00 | H40: 12.50 | I40: 112.70 | J40: 5.37 | K40: №132 шк.сб2004
B41: Говядина | D41: 22.02 | E41: 16.20
B42: Картофель | D42: 80.00 | E42: 60.00
B43: Крупа перловая | D43: 4.00 | E43: 4.00
B44: Морковь | D44: 10.00 | E44: 8.00
B45: Лук репчатый | D45: 5.00 | E45: 4.00
B46: Масло растительное | D46: 3.00 | E46: 3.00
B47: Огурцы соленые | D47: 22.00 | E47: 12.00
B48: Сметана | D48: 5.00 | E48: 5.00
B49: Соль | D49: 1.20 | E49: 1.20
B50: Вода | D50: 152.00 | E50: 152.00
A51: Котлеты рубленые из говядины | C51: 70/4 | F51: 11.00 | G51: 10.80 | H51: 10.90 | I51: 184.00 | J51: 0.42 | K51: №451сбшк2004
B52: Говядина | D52: 70.00 | E52: 52.00
B53: Хлеб пшеничный 1с | D53: 13.00 | E53: 13.00
B54: Вода | D54: 16.00 | E54: 16.00
B55: сухари панировочные | D55: 7.00 | E55: 7.00
B56: масса полуфабриката | E56: 86.00
B57: Масло растительное | D57: 2.00 | E57: 2.00
B58: Масло сливочное | D58: 4.00 | E58: 4.00
B59: соль | D59: 1.00 | E59: 1.00
A60: Капуста тушеная | C60: 150 | F60: 3.30 | G60: 4.90 | H60: 16.10 | I60: 121.00 | J60: 24.70 | K60: №534сб шк2004
B61: Капуста свежая | D61: 215.00 | E61: 172.00
B62: Лук репчатый | D62: 7.00 | E62: 6.00
B63: Морковь | D63: 3.80 | E63: 3.00
B64: Мука пшеничная | D64: 2.00 | E64: 2.00
B65: Масло растительное | D65: 2.00 | E65: 2.00
B66: Масло сливочное | D66: 2.00 | E66: 2.00
B67: Томат-паста | D67: 1.20 | E67: 1.20
B68: Сахар | D68: 4.50 | E68: 4.50
B69: Соль | D69: 1.00 | E69: 1.00
A70: Кисель | C70: 150 | H70: 18.00 | I70: 71.00 | K70: № 648, сб шк2004
B71: Кисель-концентрат | D71: 18.00 | E71: 18.00
B72: вода | D72: 143.00 | E72: 143.00
B73: Сахар | D73: 7.50 | E73: 7.50
A74: Хлеб сельский | C74: 37.5 | D74: 37.50 | E74: 37.50 | F74: 1.8 | G74: 0.4 | H74: 18 | I74: 82.5
A75: Итого: | C75: 686.5 | F75: =SUM(F37:F74) -> 21.9 | G75: =SUM(G37:G74) -> 21.2 | H75: 79.8 | I75: 592.2 | J75: 31.71
B76: ПОЛДНИК
A77: Фрукты свежие | C77: 70 | D77: 80 | E77: 70 | F77: 1.05 | G77: 0.35 | H77: 14.7 | I77: 67 | J77: 7 | K77: №368 Дели2010
A78: Пирожок печёный с повидлом | C78: 60 | F78: 3.4 | G78: 2.9 | H78: 24.1 | I78: 136 | J78: 0 | K78: №738сбшк2004
B79: Мука пшеничная | D79: 29.3 | E79: 29.3
B80: Масло сливочное | D80: 3 | E80: 3
B81: сахар | D81: 2 | E81: 2
B82: Яйцо | D82: 4.8 | E82: 4.2
B83: соль | D83: 0.7 | E83: 0.7
B84: вода | D84: 8 | E84: 8
B85: дрожжи сухие | D85: 0.2 | E85: 0.2
B86: тесто дрожжевое | E86: 43
B87: повидло фруктовое | E87: 25
A88: Кефир | C88: 150 | F88: 4.35 | G88: 3.8 | H88: 6.0 | I88: 80 | J88: 1.05 | K88: №401Дели2010
B89: кефир | D89: 155.00 | E89: 150.00
A90: Кондитерские изделия | C90: 15 | D90: 15.00 | E90: 15.00 | F90: 0.9 | G90: 3.5 | H90: 12.3 | I90: 84
A91: Чай с сахаром | C91: 120 | H91: 6 | I91: 25 | K91: №392 Дели2010
B92: заварка | D92: 0.2 | E92: 0.2
B93: сахар | D93: 5 | E93: 5
B94: вода | D94: 120 | E94: 120
A95: Итого: | C95: =SUM(C76:C94) -> 415 | F95: =SUM(F76:F94) -> 9.7 | G95: =SUM(G76:G94) -> 10.5 | H95: =SUM(H76:H94) -> 63.1 | I95: =SUM(I76:I94) -> 392 | J95: =SUM(J76:J94) -> 8.05
A97: ВСЕГО: | C97: =C36+C75+C95 -> 1560.5 | F97: =F36+F75+F95 -> 43.00 | G97: =G36+G75+G95 -> 46.80 | H97: =H36+H75+H95 -> 203.40 | I97: =I36+I75+I95 -> 1407.70 | J97: =J36+J75+J95 -> 52.08
A99: День 2- ой
A100: Наименование блюд и | C100: Масса | D100: Кол - во | E100: Кол - во | F100: Пищевые вещества | I100: Энергетическая | J100: витамин | K100: №рецептуры
A101: продуктов | C101: порции | D101: (в гр ) | E101: (в гр ) | I101: ценность
D102: брутто | E102: нетто | F102: белки | G102: жиры | H102: угл-ды | I102: Ккал | J102: С
B103: ЗАВТРАК
A104: Каша манная молочная жидкая | C104: 200/5 | F104: 6.00 | G104: 10.20 | H104: 29.30 | I104: 233.00 | J104: 0.22 | K104: №311,сбшк2004
B105: Крупа манная | D105: 31.00 | E105: 31.00
B106: Молоко | D106: 126.00 | E106: 126.00
B107: вода | D107: 50.00 | E107: 50.00
B108: Сахар | D108: 5.00 | E108: 5.00
B109: Соль | D109: 1.00 | E109: 1.00
B110: Масло сливочное | D110: 5.00 | E110: 5.00
A111: Какао с молоком | C111: 180 | F111: 2.10 | G111: 2.58 | H111: 13.60 | I111: 86.00 | J111: 0.39 | K111: №397 Дели2010
B112: Какао-порошок | D112: 1.70 | E112: 1.70
B113: Сахар | D113: 10.00 | E113: 10.00
B114: Молоко | D114: 110.00 | E114: 110.00
B115: Вода | D115: 80.00 | E115: 80.00
A116: Бутерброд с сыром, маслом | C116: 30/7/5 | F116: 4.80 | G116: 7.20 | H116: 15.40 | I116: 146.00 | J116: 0.19 | K116: №3 Дели2010
B117: Батон нарезной | D117: 30.00 | E117: 30.00
B118: Сыр | D118: 7.20 | E118: 7.00
B119: Масло сливочное | D119: 5.00 | E119: 5.00
A120: Итого:
B121: 2 - ой ЗАВТРАК
A122: Фрукты свежие | C122: 70 | D122: 80.00 | E122: 70.00 | F122: 0.1 | G122: 0.10 | H122: 2.80 | I122: 13 | J122: 7.50 | K122: №368 Дели2010
A123: Итого: | C123: 497 | F123: =SUM(F103:F122) -> 13.00 | G123: =SUM(G103:G122) -> 20.08 | H123: 61.10 | I123: 477.50 | J123: 8.30
B124: ОБЕД
A125: Салат из свежей капусты | C125: 60 | F125: 1.20 | G125: 2.70 | H125: 5.50 | I125: 51.00 | J125: 5.60 | K125: №43, сбшк2004
B126: Капуста свежая | D126: 99.00 | E126: 79.00
B127: Морковь | D127: 7.50 | E127: 6.00
B128: Сахар | D128: 3.00 | E128: 3.00
B129: Масло растительное | D129: 1.00 | E129: 1.00
B130: Соль | D130: 0.20 | E130: 0.20
A131: Суп вермишелевый с картофелем, говядиной | C131: 200/10 | F131: 8.42 | G131: 5.34 | H131: 21.10 | I131: 166 | J131: 5.30 | K131: 140,сбшк2004
B132: Говядина | D132: 22.00 | E132: 16.00
B133: Картофель | D133: 80.00 | E133: 60.00
B134: Морковь | D134: 10.00 | E134: 8.00
B135: Лук репчатый | D135: 10.00 | E135: 8.00
B136: Макаронные изделия | D136: 8.00 | E136: 8.00
B137: Масло растительное | D137: 2.40 | E137: 2.40
B138: Соль | D138: 1.20 | E138: 1.20
B139: Вода | D139: 152.00 | E139: 152.00
A140: Пудинг рыбный | C140: 100.00 | F140: 9.10 | G140: 5.00 | H140: 10.80 | I140: 124.00 | K140: ТТК №4
B141: рыба | D141: 87.5 | E141: 70
B142: Хлеб пшеничный 1с | D142: 12.5 | E142: 12.5
B143: яйцо | D143: 10 | E143: 9
B144: молоко | D144: 17.5 | E144: 17.5
B145: масло сливочное | D145: 4 | E145: 4
B146: соль | D146: 0.5 | E146: 0.5
B147: Масло растительное | D147: 1.3 | E147: 1.3
A148: Соус молочный
B149: молоко | D149: 16.9 | E149: 16.9
B150: масло сливочное | D150: 2 | E150: 2
B151: Мука пшеничная | D151: 2.5 | E151: 2.5
B152: Вода | D152: 3.75 | E152: 3.75
B153: Сахар | D153: 0.3 | E153: 0.3
B154: соль | D154: 0.2 | E154: 0.2
A155: Картофель тушёный | C155: 150 | F155: 2.8 | G155: 8 | H155: 12.4 | I155: 132 | J155: 11 | K155: №216сбшк2004
B156: Картофель | D156: 171 | E156: 128
B157: Лук репчатый | D157: 28.5 | E157: 24
B158: Морковь | D158: 19.5 | E158: 15
B159: Масло сливочное | D159: 3.4 | E159: 3.4
B160: Масло растительное | D160: 0.6 | E160: 0.6
B161: Соль | D161: 1.3 | E161: 1.3
A162: Компот из свежих плодов | C162: 150 | F162: 0.10 | G162: 0.10 | H162: 11.80 | I162: 47.00 | J162: 1.20 | K162: №631,сбшк2004
B163: яблоки | D163: 34.0 | E163: 30.0
B164: вода | D164: 129.0 | E164: 129.0
B165: сахар | D165: 10.0 | E165: 10.0
A166: Хлеб пшеничный 1с | C166: 30 | D166: 30.00 | E166: 30.00 | F166: 1.5 | G166: 0.3 | H166: 14.4 | I166: 66 | J166: 0
A167: Хлеб сельский | C167: 37.5 | D167: 37.50 | E167: 37.50 | F167: 1.8 | G167: 0.4 | H167: 18 | I167: 82.5
A168: Итого: | C168: 737.5 | F168: =SUM(F124:F167) -> 24.92 | G168: =SUM(G124:G167) -> 21.84 | H168: 94 | I168: 668.5 | J168: 23.1
B169: ПОЛДНИК
A170: Ряженка | C170: 150 | F170: 2.1 | G170: 3.2 | H170: 6.3 | I170: 66 | J170: 0.78 | K170: №400Дели2010
B171: ряженка | D171: 155.00 | E171: 150.00
A172: Морковь с сахаром | C172: 60 | F172: 0.70 | G172: 0.05 | H172: 6.30 | I172: 28.00 | J172: 1.15 | K172: №11,справ.М2003
B173: Морковь | D173: 72.00 | E173: 58.00
B174: Сахар | D174: 2.00 | E174: 2.00
A175: Суфле из творога с повидлом | C175: 105/20 | F175: 13.30 | G175: 6.50 | H175: 18.00 | I175: 183.00 | J175: 0.30 | K175: №365сбшк2004
B176: Творог | D176: 76.00 | E176: 75.00
B177: Мука пшеничная | D177: 8.00 | E177: 8.00
B178: Яйцо | D178: 5.60 | E178: 5.00
B179: Сахар | D179: 8.00 | E179: 8.00
B180: Молоко | D180: 15.00 | E180: 15.00
B181: Сметана | D181: 10.00 | E181: 10.00
B182: соль | D182: 0.30 | E182: 0.30
B183: Масло растительное | D183: 0.60 | E183: 0.60
B184: Повидло фруктовое | D184: 20.00 | E184: 20.00
A185: Кондитерские изделия | C185: 15 | D185: 15.00 | E185: 15.00 | F185: 0.3 | G185: 0.1 | H185: 5.0 | I185: 22
A186: Чай с сахаром | C186: 120 | H186: 6 | I186: 25 | K186: №392 Дели2010
B187: заварка | D187: 0.2 | E187: 0.2
B188: сахар | D188: 5 | E188: 5
B189: вода | D189: 120 | E189: 120
A190: Итого: | C190: 470 | F190: =SUM(F169:F189) -> 16.4 | G190: =SUM(G169:G189) -> 9.85 | H190: =SUM(H169:H189) -> 41.6 | I190: =SUM(I169:I189) -> 324 | J190: =SUM(J169:J189) -> 2.23
A191: ВСЕГО: | C191: =C123+C168+C190 -> 1704.5 | F191: =F123+F168+F190 -> 54.32 | G191: =G123+G168+G190 -> 51.77 | H191: 196.70 | I191: 1470.00 | J191: 33.63
A193: День 3 - ий
A194: Наименование блюд и | C194: Масса | D194: Кол - во | E194: Кол - во | F194: Пищевые вещества | I194: Энергетическая | J194: витамин | K194: № рецептуры
A195: продуктов | C195: порции | D195: (в гр ) | E195: (в гр ) | I195: ценность
D196: брутто | E196: нетто | F196: белки | G196: жиры | H196: угл-ды | I196: Ккал | J196: С
B197: ЗАВТРАК
A198: Каша Геркулесовая молочная с маслом | C198: 200/5 | F198: 6.70 | G198: 9.80 | H198: 23.00 | I198: 207.00 | J198: 0.23 | K198: №311, сбшк2004
B199: Крупа Геркулесовая | D199: 31.00 | E199: 31.00
B200: Молоко | D200: 100.00 | E200: 100.00
B201: вода | D201: 76.00 | E201: 76.00
B202: Сахар | D202: 5.00 | E202: 5.00
B203: Соль | D203: 1.00 | E203: 1.00
B204: Масло сливочное | D204: 5.00 | E204: 5.00
A205: Кофейный напиток с молоком | C205: 180 | F205: 1.20 | G205: 1.34 | H205: 12.00 | I205: 65.00 | J205: 0.19 | K205: №395 Дели2010
B206: Кофейный напиток | D206: 3.00 | E206: 3.00
B207: Сахар | D207: 10.00 | E207: 10.00
... 757 more rows

Sheet меню3-7
F1: "Утверждаю"
F2: Руководитель дошкольной образовательной
F3: организации
C5: Примерное 10 дневное меню
B6: для организации питания детей в дошкольных учреждениях
E7: с 8 -10,5 - часовым пребыванием
A8: День 1 - ый | D8: от 3 до 7 лет
A9: Наименование блюд и | C9: Масса | D9: Пищевые вещества | G9: Энергетическая | H9: витамин | I9: Сборник рецептур
A10: продуктов | C10: порции | G10: ценность
D11: белки | E11: жиры | F11: угл-ды | G11: Ккал | H11: С
B12: ЗАВТРАК
A13: Макароны, запеченные с яйцом | C13: 130/4 | D13: 6.20 | E13: 8.30 | F13: 20.00 | G13: 179.50 | H13: 0.12 | I13: №262,справ.М2003
A14: Чай с сахаром и молоком | C14: 180/10 | D14: 2.60 | E14: 2.30 | F14: 14.30 | G14: 89.00 | H14: 1.20 | I14: № 394 Дели2010
A15: Бутерброд с маслом сливочным | C15: 30/5 | D15: 2.30 | E15: 4.50 | F15: 15.40 | G15: 111.00 | I15: №1 Дели2010
A16: Итого:
B17: 2 - ой ЗАВТРАК
A18: Сок | C18: 100 | D18: 0.3 | E18: 0.00 | F18: 10.80 | G18: 44 | H18: 11.00 | I18: №399,Дели2010
A19: Итого: | C19: 459 | D19: =SUM(D13:D18) -> 11.40 | E19: =SUM(E13:E18) -> 15.10 | F19: =SUM(F13:F18) -> 60.50 | G19: =SUM(G13:G18) -> 423.50 | H19: =SUM(H13:H18) -> 12.32
B20: ОБЕД
A21: Свекла отварная | C21: 60 | D21: 0.80 | E21: 0.10 | F21: 4.30 | G21: 21.00 | H21: 1.22 | I21: сб1996, стр564
A22: Рассольник ленинградский со сметаной и мясом | C22: 200/10/5 | D22: 5.00 | E22: 5.00 | F22: 12.50 | G22: 112.70 | H22: 5.37 | I22: №132 шк.сб2004
A23: Котлеты рубленые из говядины | C23: 70/4 | D23: 11.00 | E23: 10.80 | F23: 10.90 | G23: 184.00 | H23: 0.42 | I23: №451сбшк2004
A24: Капуста тушеная | C24: 150 | D24: 3.30 | E24: 4.90 | F24: 16.10 | G24: 121.00 | H24: 24.70 | I24: №534сб шк2004
A25: Кисель | C25: 150 | F25: 18.00 | G25: 71.00 | I25: № 648, сб шк2004
A26: Хлеб сельский | C26: 37.5 | D26: 1.8 | E26: 0.4 | F26: 18 | G26: 82.5
A27: Итого: | C27: 686.5 | D27: =SUM(D20:D26) -> 21.9 | E27: =SUM(E20:E26) -> 21.2 | F27: =SUM(F20:F26) -> 79.8 | G27: =SUM(G20:G26) -> 592.2 | H27: =SUM(H20:H26) -> 31.71
B28: ПОЛДНИК
A29: Фрукты свежие | C29: 70 | D29: 1.05 | E29: 0.35 | F29: 14.7 | G29: 67 | H29: 7 | I29: №368 Дели2010
A30: Пирожок печёный с повидлом | C30: 60 | D30: 3.4 | E30: 2.9 | F30: 24.1 | G30: 136 | H30: 0 | I30: №738сбшк2004
A31: Кефир | C31: 150 | D31: 4.35 | E31: 3.8 | F31: 6.0 | G31: 80 | H31: 1.05 | I31: №401Дели2010
A32: Кондитерские изделия | C32: 15 | D32: 0.9 | E32: 3.5 | F32: 12.3 | G32: 84
A33: Чай с сахаром | C33: 120 | F33: 6 | G33: 25 | I33: №392 Дели2010
A34: Итого: | C34: =SUM(C28:C33) -> 415 | D34: =SUM(D28:D33) -> 9.7 | E34: =SUM(E28:E33) -> 10.5 | F34: =SUM(F28:F33) -> 63.1 | G34: =SUM(G28:G33) -> 392 | H34: =SUM(H28:H33) -> 8.05
A36: ВСЕГО: | C36: =C19+C27+C34 -> 1560.5 | D36: =D19+D27+D34 -> 43.00 | E36: =E19+E27+E34 -> 46.80 | F36: =F19+F27+F34 -> 203.40 | G36: =G19+G27+G34 -> 1407.70 | H36: =H19+H27+H34 -> 52.08
A38: День 2- ой
A39: Наименование блюд и | C39: Масса | D39: Пищевые вещества | G39: Энергетическая | H39: витамин | I39: №рецептуры
A40: продуктов | C40: порции | G40: ценность
D41: белки | E41: жиры | F41: угл-ды | G41: Ккал | H41: С
B42: ЗАВТРАК
A43: Каша манная молочная жидкая | C43: 200/5 | D43: 6.00 | E43: 10.20 | F43: 29.30 | G43: 233.00 | H43: 0.22 | I43: №311,сбшк2004
A44: Какао с молоком | C44: 180 | D44: 2.10 | E44: 2.58 | F44: 13.60 | G44: 86.00 | H44: 0.39 | I44: №397 Дели2010
A45: Бутерброд с сыром, маслом | C45: 30/7/5 | D45: 4.80 | E45: 7.20 | F45: 15.40 | G45: 146.00 | H45: 0.19 | I45: №3 Дели2010
A46: Итого:
B47: 2 - ой ЗАВТРАК
A48: Фрукты свежие | C48: 70 | D48: 0.1 | E48: 0.10 | F48: 2.80 | G48: 13 | H48: 7.50 | I48: №368 Дели2010
A49: Итого: | C49: 497 | D49: =SUM(D42:D48) -> 13.00 | E49: =SUM(E42:E48) -> 20.08 | F49: =SUM(F42:F48) -> 61.10 | G49: =SUM(G42:G48) -> 477.50 | H49: =SUM(H42:H48) -> 8.30
B50: ОБЕД
A51: Салат из свежей капусты | C51: 60 | D51: 1.20 | E51: 2.70 | F51: 5.50 | G51: 51.00 | H51: 5.60 | I51: №43, сбшк2004
A52: Суп вермишелевый с картофелем, говядиной | C52: 200/10 | D52: 8.42 | E52: 5.34 | F52: 21.10 | G52: 166 | H52: 5.30 | I52: 140,сбшк2004
A53: Пудинг рыбный | C53: 100.00 | D53: 9.10 | E53: 5.00 | F53: 10.80 | G53: 124.00 | I53: ТТК №4
A54: Картофель тушёный | C54: 150 | D54: 2.8 | E54: 8 | F54: 12.4 | G54: 132 | H54: 11 | I54: №216сбшк2004
A55: Компот из свежих плодов | C55: 150 | D55: 0.10 | E55: 0.10 | F55: 11.80 | G55: 47.00 | H55: 1.20 | I55: №631,сбшк2004
A56: Хлеб пшеничный 1с | C56: 30 | D56: 1.5 | E56: 0.3 | F56: 14.4 | G56: 66 | H56: 0
A57: Хлеб сельский | C57: 37.5 | D57: 1.8 | E57: 0.4 | F57: 18 | G57: 82.5
A58: Итого: | C58: 737.5 | D58: =SUM(D50:D57) -> 24.92 | E58: =SUM(E50:E57) -> 21.84 | F58: =SUM(F50:F57) -> 94 | G58: =SUM(G50:G57) -> 668.5 | H58: =SUM(H50:H57) -> 23.1
B59: ПОЛДНИК
A60: Ряженка | C60: 150 | D60: 2.1 | E60: 3.2 | F60: 6.3 | G60: 66 | H60: 0.78 | I60: №400Дели2010
A61: Морковь с сахаром | C61: 60 | D61: 0.70 | E61: 0.05 | F61: 6.30 | G61: 28.00 | H61: 1.15 | I61: №11,справ.М2003
A62: Суфле из творога с повидлом | C62: 105/20 | D62: 13.30 | E62: 6.50 | F62: 18.00 | G62: 183.00 | H62: 0.30 | I62: №365сбшк2004
A63: Кондитерские изделия | C63: 15 | D63: 0.3 | E63: 0.1 | F63: 5.0 | G63: 22
A64: Чай с сахаром | C64: 120 | F64: 6 | G64: 25 | I64: №392 Дели2010
A65: Итого: | C65: 470 | D65: =SUM(D59:D64) -> 16.4 | E65: =SUM(E59:E64) -> 9.85 | F65: =SUM(F59:F64) -> 41.6 | G65: =SUM(G59:G64) -> 324 | H65: =SUM(H59:H64) -> 2.23
A66: ВСЕГО: | C66: =C49+C58+C65 -> 1704.5 | D66: =D49+D58+D65 -> 54.32 | E66: =E49+E58+E65 -> 51.77 | F66: =F49+F58+F65 -> 196.70 | G66: =G49+G58+G65 -> 1470.00 | H66: =H49+H58+H65 -> 33.63
A68: День 3 - ий
A69: Наименование блюд и | C69: Масса | D69: Пищевые вещества | G69: Энергетическая | H69: витамин | I69: № рецептуры
A70: продуктов | C70: порции | G70: ценность
D71: белки | E71: жиры | F71: угл-ды | G71: Ккал | H71: С
B72: ЗАВТРАК
A73: Каша Геркулесовая молочная с маслом | C73: 200/5 | D73: 6.70 | E73: 9.80 | F73: 23.00 | G73: 207.00 | H73: 0.23 | I73: №311, сбшк2004
A74: Кофейный напиток с молоком | C74: 180 | D74: 1.20 | E74: 1.34 | F74: 12.00 | G74: 65.00 | H74: 0.19 | I74: №395 Дели2010
A75: Бутерброд с маслом сливочным | C75: 30/5 | D75: 2.30 | E75: 4.50 | F75: 15.40 | G75: 111.00 | I75: №1 Дели2010
A76: Итого:
B77: 2 - ой ЗАВТРАК
A78: Сок | C78: 100 | D78: 0.75 | E78: 0.00 | F78: 8.00 | G78: 35 | H78: 3.00 | I78: №399,Дели2010
A79: Итого: | C79: 520 | D79: =SUM(D72:D78) -> 10.95 | E79: =SUM(E72:E78) -> 15.64 | F79: =SUM(F72:F78) -> 58.40 | G79: =SUM(G72:G78) -> 418.00 | H79: =SUM(H72:H78) -> 3.42
B80: ОБЕД
A81: Салат витаминный | C81: 60 | D81: 0.90 | E81: 3.50 | F81: 8.00 | G81: 67.00 | H81: 10.20 | I81: №40, сб шк2004
A82: Суп картофельный с горохом с мясными фрикадельками | C82: 200/20 | D82: 9.9 | E82: 6.70 | F82: 15.90 | G82: 164 | H82: 5.88 | I82: №139,сб шк2004
A84: Биточки куриные "Солнышко" | C84: 80 | D84: 11.00 | E84: 8.93 | F84: 9.00 | G84: 160.00 | H84: 0.45 | I84: акт к.п.от 07.02.14
A85: Рагу овощное | C85: 180 | D85: 3.60 | E85: 6.60 | F85: 14.40 | G85: 131.00 | H85: 8.90 | I85: №224, сбшк2004
A86: Компот из кураги | C86: 150 | D86: 0.7 | E86: 0.0 | F86: 20.0 | G86: 83 | H86: 0.13 | I86: №376, Дели 2010
A87: Хлеб пшеничный 1с | C87: 15 | D87: 0.75 | E87: 0.2 | F87: 7.2 | G87: 33 | H87: 0
A88: Хлеб сельский | C88: 37.5 | D88: 1.8 | E88: 0.4 | F88: 18 | G88: 82.5
A89: Итого: | C89: 742.5 | D89: =SUM(D80:D88) -> 28.65 | E89: =SUM(E80:E88) -> 26.28 | F89: =SUM(F80:F88) -> 92.5 | G89: =SUM(G80:G88) -> 720.5 | H89: =SUM(H80:H88) -> 25.56
B90: ПОЛДНИК
A91: Фрукты свежие | C91: 70 | D91: 0.3 | E91: 0.23 | F91: 5.00 | G91: 23 | H91: 3.75 | I91: №368 Дели2010
A92: Катык | C92: 150 | D92: 4.10 | E92: 3.50 | F92: 5.60 | G92: 70.00 | H92: 0.90 | I92: №401 Дели2010
A93: Булочка Домашняя | C93: 50 | D93: 3.60 | E93: 5.70 | F93: 27.10 | G93: 175.00 | H93: 0.00 | I93: №769,сбшк2004
A94: Кондитерские изделия | C94: 15 | D94: 0.42 | E94: 0.5 | F94: 8.0 | G94: 38
A95: Чай с сахаром | C95: 120 | F95: 6 | G95: 25 | I95: №392 Дели2010
A96: Итого: | C96: 405 | D96: =SUM(D90:D95) -> 8.42 | E96: =SUM(E90:E95) -> 9.93 | F96: =SUM(F90:F95) -> 51.70 | G96: =SUM(G90:G95) -> 331.00 | H96: =SUM(H90:H95) -> 4.65
A98: ВСЕГО: | C98: =C79+C89+C96 -> 1667.5 | D98: =D79+D89+D96 -> 48.02 | E98: =E79+E89+E96 -> 51.85 | F98: =F79+F89+F96 -> 202.60 | G98: =G79+G89+G96 -> 1469.50 | H98: =H79+H89+H96 -> 33.63
A102: День 4 - ый
A103: Наименование блюд и | C103: Масса | D103: Пищевые вещества | G103: Энергетическая | H103: витамин | I103: № рецептуры
A104: продуктов | C104: порции | G104: ценность
D105: белки | E105: жиры | F105: угл-ды | G105: Ккал | H105: С
B106: ЗАВТРАК
A107: Суп молочный с макаронными изделиями | C107: 180 | D107: 3.90 | E107: 3.70 | F107: 16.00 | G107: 112.00 | H107: 0.50 | I107: №160,сбшк2004
A108: Чай с сахаром | C108: 180/10 | D108: 0.10 | E108: 0.02 | F108: 10.00 | G108: 40.00 | I108: № 392 Дели 2010
A109: Бутерброд с сыром, маслом | C109: 30/7/5 | D109: 4.80 | E109: 7.20 | F109: 15.40 | G109: 146.00 | H109: 0.19 | I109: №3 Дели2010
A110: Итого:
B111: 2 - ой ЗАВТРАК
A112: Сок | C112: 150 | D112: 0.45 | E112: 0.00 | F112: 17.00 | G112: 69 | H112: 3.00 | I112: №399,Дели2010
A113: Итого: | C113: 562 | D113: =SUM(D106:D112) -> 9.25 | E113: =SUM(E106:E112) -> 10.92 | F113: =SUM(F106:F112) -> 58.4 | G113: =SUM(G106:G112) -> 367 | H113: =SUM(H106:H112) -> 3.69
B114: ОБЕД
A115: Салат из свеклы | C115: 60 | D115: 0.80 | E115: 3.90 | F115: 4.80 | G115: 57.00 | H115: 1.12 | I115: №64, справ.М.2003г
A116: Щи со свежей капустой, картофелем на м/б,со сметаной | C116: 200/7 | D116: 1.40 | E116: 4.50 | F116: 6.80 | G116: 73.00 | H116: 9.60 | I116: №124,сбшк2004
A117: Гуляш из отварной говядины | C117: 45/45 | D117: 12.00 | E117: 12.00 | F117: 3.00 | G117: 168.00 | H117: 0.38 | I117: №141,сб.диет2002
A118: Каша гречневая вязкая | C118: 205 | D118: 7.30 | E118: 5.60 | F118: 44.00 | G118: 255.00 | I118: №297,сбшк2004
A120: Кисель | C120: 150 | F120: 18.00 | G120: 71.00 | I120: № 648, сб шк2004
A121: Хлеб пшеничный 1с | C121: 15 | D121: 0.75 | E121: 0.2 | F121: 7.2 | G121: 33 | H121: 0
A122: Хлеб сельский | C122: 37.5 | D122: 1.8 | E122: 0.4 | F122: 18 | G122: 82.5
A123: Итого: | C123: 764.5 | D123: =SUM(D114:D122) -> 24.05 | E123: =SUM(E114:E122) -> 26.55 | F123: =SUM(F114:F122) -> 101.80 | G123: =SUM(G114:G122) -> 739.50 | H123: =SUM(H114:H122) -> 11.10
B124: ПОЛДНИК
A125: Фрукты свежие | C125: 70 | D125: 0.1 | E125: 0.09 | F125: 12.8 | G125: 52 | H125: 29.4 | I125: №368 Дели2010
A126: Кефир | C126: 150 | D126: 4.35 | E126: 3.8 | F126: 6.0 | G126: 80 | H126: 1.05 | I126: №401Дели2010
A127: Запеканка картофельная с овощами,соусом | C127: 100/20 | D127: 3.50 | E127: 6.00 | F127: 10.90 | G127: 112.00 | H127: 0.01 | I127: №293, справ.М.2003
A128: Чай с сахаром | C128: 120 | F128: 6 | G128: 25 | I128: №392 Дели2010
A129: Хлеб пшеничный 1с | C129: 15 | D129: 0.75 | E129: 0.2 | F129: 7.2 | G129: 33 | H129: 0
A130: Итого: | C130: 475 | D130: =SUM(D124:D129) -> 8.7 | E130: =SUM(E124:E129) -> 9.99 | F130: =SUM(F124:F129) -> 42.9 | G130: =SUM(G124:G129) -> 302 | H130: =SUM(H124:H129) -> 30.46
A132: ВСЕГО: | C132: =C113+C123+C130 -> 1801.5 | D132: =D113+D123+D130 -> 42.00 | E132: =E113+E123+E130 -> 47.46 | F132: =F113+F123+F130 -> 203.10 | G132: =G113+G123+G130 -> 1408.50 | H132: =H113+H123+H130 -> 45.25
A135: День 5 - ый
A136: Наименование блюд и | C136: Масса | D136: Пищевые вещества | G136: Энергетическая | H136: витамин | I136: №рецептуры
A137: продуктов | C137: порции | G137: ценность
D138: белки | E138: жиры | F138: угл-ды | G138: Ккал | H138: С
B139: ЗАВТРАК
A140: Каша кукурузная молочная с маслом | C140: 200/5 | D140: 5.89 | E140: 5.42 | F140: 25.84 | G140: 176.00 | H140: 0.21 | I140: №311,сбшк2004
A141: Какао с молоком | C141: 180 | D141: 2.10 | E141: 2.58 | F141: 13.60 | G141: 88.30 | H141: 0.39 | I141: №397 Дели2010
A142: Бутерброд с маслом сливочным | C142: 30/5 | D142: 2.30 | E142: 4.50 | F142: 15.40 | G142: 111.00 | I142: №1 Дели2010
A143: Итого:
B144: 2 - ой ЗАВТРАК
A145: Фрукты свежие | C145: 70 | D145: 0.1 | E145: 0.10 | F145: 4.60 | G145: 21 | H145: 7.50 | I145: №368 Дели2010
A146: Итого: | C146: 490 | D146: =SUM(D139:D145) -> 10.39 | E146: =SUM(E139:E145) -> 12.60 | F146: =SUM(F139:F145) -> 59.44 | G146: =SUM(G139:G145) -> 396.30 | H146: =SUM(H139:H145) -> 8.11
B147: ОБЕД
A148: Огурцы соленые порционно | C148: 30 | D148: 0.35 | E148: 0.05 | F148: 1.14 | G148: 7.20 | H148: 7.50 | I148: таб№8,сбшк2004
A149: Суп крестьянский с цыплятами, сметаной | C149: 200/20/5 | D149: 5.69 | E149: 6.10 | F149: 9.42 | G149: 115 | H149: 4.97 | I149: №134 сбшк2004
A150: Тефтели рыбные в сметанно-томатном соусе | C150: 80/40 | D150: 12.56 | E150: 6.00 | F150: 13.00 | G150: 156.00 | I150: ТТК №1
A151: Пюре Картофельное | C151: 100 | D151: 2.10 | E151: 3.00 | F151: 14.00 | G151: 91.00 | H151: 6.95 | I151: №520,сбшк2004
A152: Компот из сухофруктов | C152: 150 | D152: 0.70 | E152: 0.04 | F152: 20.60 | G152: 85.00 | H152: 1.20 | I152: № 376 Дели2010
A153: Хлеб пшеничный 1с | C153: 15 | D153: 0.75 | E153: 0.2 | F153: 7.2 | G153: 33 | H153: 0
A154: Хлеб сельский | C154: 37.5 | D154: 1.8 | E154: 0.4 | F154: 18 | G154: 82.5
A155: Итого: | C155: 677.5 | D155: =SUM(D147:D154) -> 23.95 | E155: =SUM(E147:E154) -> 15.74 | F155: =SUM(F147:F154) -> 83.36 | G155: =SUM(G147:G154) -> 569.7 | H155: =SUM(H147:H154) -> 20.62
B156: ПОЛДНИК
A157: Ряженка | C157: 150 | D157: 2.1 | E157: 3.2 | F157: 6.3 | G157: 62 | H157: 0.78 | I157: №400Дели2010
A158: Салат из моркови | C158: 60 | D158: 0.60 | E158: 2.70 | F158: 8.70 | G158: 60.00 | H158: 2.30 | I158: №71, сб 1997
A159: Пудинг творожный | C159: 150/25 | D159: 17.00 | E159: 10.60 | F159: 32.00 | G159: 291.00 | H159: 18.20 | I159: №349, справ М 2003
A160: Кондитерские изделия | C160: 24 | D160: 0.56 | E160: 0.66 | F160: 10.00 | G160: 48.00
A161: Чай с сахаром | C161: 120 | F161: 6 | G161: 25 | I161: №392 Дели2010
A162: Итого: | C162: 529 | D162: =SUM(D157:D161) -> 20.26 | E162: =SUM(E157:E161) -> 17.16 | F162: =SUM(F157:F161) -> 63 | G162: =SUM(G157:G161) -> 486 | H162: =SUM(H157:H161) -> 21.28
A163: ВСЕГО: | C163: =C146+C155+C162 -> 1696.5 | D163: =D146+D155+D162 -> 54.60 | E163: =E146+E155+E162 -> 45.50 | F163: =F146+F155+F162 -> 205.80 | G163: =G146+G155+G162 -> 1452.00 | H163: =H146+H155+H162 -> 50.01
C165: 2 НЕДЕЛЯ
A167: День 6 - ой
A168: Наименование блюд и | C168: Масса | D168: Пищевые вещества | G168: Энергетическая | H168: витамин | I168: №рецептуры
A169: продуктов | C169: порции | G169: ценность
D170: белки | E170: жиры | F170: угл-ды | G170: Ккал | H170: С
B171: ЗАВТРАК
A172: Каша пшённая молочная с маслом | C172: 200/5 | D172: 7.30 | E172: 9.00 | F172: 32.90 | G172: 241.00 | H172: 0.21 | I172: №311,сбшк2004
A173: Кофейный напиток с молоком | C173: 180 | D173: 1.20 | E173: 1.34 | F173: 12.00 | G173: 65.00 | H173: 0.19 | I173: №395 Дели2010
A174: Бутерброд с сыром, маслом | C174: 30/7/5 | D174: 4.80 | E174: 7.20 | F174: 15.40 | G174: 146.00 | H174: 0.19 | I174: №3 Дели2010
A175: Итого:
B176: 2 - ой ЗАВТРАК
A177: Сок | C177: 100 | D177: 0.23 | E177: 0.15 | F177: 3.20 | G177: 15 | H177: 1.50 | I177: №399 Дели2010
A178: Итого: | C178: 527 | D178: =SUM(D171:D177) -> 13.53 | E178: =SUM(E171:E177) -> 17.69 | F178: =SUM(F171:F177) -> 63.50 | G178: =SUM(G171:G177) -> 467.00 | H178: =SUM(H171:H177) -> 2.09
B179: ОБЕД
A180: Салат из свежей капусты | C180: 60 | D180: 1.20 | E180: 2.70 | F180: 5.50 | G180: 51.00 | H180: 5.60 | I180: №43, сбшк2004
A181: Свекольник с мясными фрикадельками, со сметаной | C181: 200/20/5 | D181: 9.30 | E181: 8.10 | F181: 14.90 | G181: 169.00 | H181: 6.36 | I181: №35,сб Пермь2001
A182: Биточки рубленые из рыбы | C182: 80 | D182: 11.90 | E182: 5.00 | F182: 3.98 | G182: 108.00 | I182: ТТК №3
A183: Макароны отварные | C183: 100 | D183: 3.6 | E183: 2.80 | F183: 22.60 | G183: 129 | I183: №332,сбшк2004
A184: Компот из кураги | C184: 150 | D184: 0.7 | E184: 0.0 | F184: 20.0 | G184: 83 | H184: 0.13 | I184: №376, Дели 2010
A185: Хлеб пшеничный 1с | C185: 30 | D185: 1.5 | E185: 0.3 | F185: 14.4 | G185: 66 | H185: 0.00
A186: Хлеб сельский | C186: 37.5 | D186: 1.8 | E186: 0.4 | F186: 18 | G186: 82.5
A187: Итого: | C187: 682.5 | D187: =SUM(D179:D186) -> 30.00 | E187: =SUM(E179:E186) -> 19.30 | F187: =SUM(F179:F186) -> 99.38 | G187: =SUM(G179:G186) -> 688.20 | H187: =SUM(H179:H186) -> 12.09
B188: ПОЛДНИК
A189: Фрукты свежие | C189: 70 | D189: 0.3 | E189: 0.30 | F189: 2.30 | G189: 13 | H189: 7.50 | I189: №368 Дели2010
A190: Катык | C190: 150 | D190: 4.35 | E190: 3.8 | F190: 6.0 | G190: 75 | H190: 1.05 | I190: №401Дели2010
A191: Плюшка новомосковская | C191: 70 | D191: 3.20 | E191: 4.10 | F191: 20.00 | G191: 130.00 | H191: 0.02 | I191: №184
A192: Морковь свежая | C192: 60 | D192: 0.80 | E192: 0.06 | F192: 4.10 | G192: 20.00 | H192: 3.00 | I192: сб.1996,стр562
A193: Кондитерские изделия | C193: 15 | D193: 1.89 | E193: 0.6 | F193: 4.0 | G193: 29
A194: Чай с сахаром | C194: 120 | F194: 6 | G194: 25 | I194: №392 Дели2010
A195: Итого: | C195: 485 | D195: =SUM(D188:D194) -> 10.54 | E195: =SUM(E188:E194) -> 8.84 | F195: =SUM(F188:F194) -> 42.4 | G195: =SUM(G188:G194) -> 292 | H195: =SUM(H188:H194) -> 11.57
A196: ВСЕГО: | C196: =C178+C187+C195 -> 1694.5 | D196: =D178+D187+D195 -> 54.07 | E196: =E178+E187+E195 -> 45.83 | F196: =F178+F187+F195 -> 205.28 | G196: =G178+G187+G195 -> 1447.20 | H196: =H178+H187+H195 -> 25.75
A198: День 7 - ой
A199: Наименование блюд и | C199: Масса | D199: Пищевые вещества | G199: Энергетическая | H199: витамин | I199: №рецептуры
A200: продуктов | C200: порции | G200: ценность
D201: белки | E201: жиры | F201: угл-ды | G201: Ккал | H201: С
B202: ЗАВТРАК
A203: Омлет с сыром | C203: 95/10 | D203: 10.6 | E203: 5.45 | F203: 9.80 | G203: 130 | H203: 0.16 | I203: №216 Дели2010
A204: Чай с сахаром и молоком | C204: 180/10 | D204: 2.60 | E204: 2.30 | F204: 14.30 | G204: 89.00 | H204: 1.20 | I204: № 394 Дели2010
A205: Бутерброд с маслом сливочным | C205: 30/5 | D205: 2.30 | E205: 4.50 | F205: 15.40 | G205: 111.00 | I205: №1 Дели2010
A206: Итого:
B207: 2 - ой ЗАВТРАК
A208: Фрукты свежие | C208: 70 | D208: 0.01 | E208: 0.01 | F208: 14.00 | G208: 56 | H208: 31.50 | I208: №368 Дели2010
A209: Итого: | C209: 400 | D209: =SUM(D202:D208) -> 15.51 | E209: =SUM(E202:E208) -> 12.26 | F209: =SUM(F202:F208) -> 53.5 | G209: =SUM(G202:G208) -> 386 | H209: =SUM(H202:H208) -> 32.86
B210: ОБЕД
A211: Салат из свеклы | C211: 60 | D211: 0.80 | E211: 3.90 | F211: 4.80 | G211: 57.00 | H211: 1.12 | I211: №64, справ.М.2003г
A212: Суп с крупой и картофелем с рыбными фрикадельками | C212: 200/30 | D212: 7.00 | E212: 2.53 | F212: 16.10 | G212: 115.00 | H212: 5.60 | I212: №138, сб шк2004
A213: Рагу овощное с мясом | C213: 180/47 | D213: 12.00 | E213: 15.90 | F213: 29.00 | G213: 307.00 | H213: 0.38 | I213: №224,сбшк2004
A214: Кисель | C214: 150 | F214: 18.00 | G214: 71.00 | I214: № 648, сб шк2004
A215: Хлеб пшеничный 1с | C215: 30 | D215: 1.5 | E215: 0.3 | F215: 14.4 | G215: 66 | H215: 0
A216: Хлеб сельский | C216: 37.5 | D216: 1.8 | E216: 0.2 | F216: 18 | G216: 82.5
... 121 more rows

Sheet кал3-7
C2: Калорийность в разрезе
E3: ДОУ от 3 до 7 лет
D4: с 8 -10,5 часовым пребыванием 2016 год
B7: Объемы порций | C7: Белки | D7: Жиры | E7: Угл-ды | F7: Энергетическая ценность | G7: Витамин С
A8: норма | B8: 1250-1700 | C8: 40,5-55 | D8: 45-52 | E8: 196-206 | F8: 1350-1472
A9: 1 | B9: ='[1]старш 8-10ч'!C97 -> 1560.5 | C9: ='[1]старш 8-10ч'!F97 -> 43.00 | D9: ='[1]старш 8-10ч'!G97 -> 46.80 | E9: ='[1]старш 8-10ч'!H97 -> 203.40 | F9: ='[1]старш 8-10ч'!I97 -> 1407.70 | G9: ='[1]старш 8-10ч'!J97 -> 52.08
A10: 2 | B10: ='[1]старш 8-10ч'!C191 -> 1704.5 | C10: ='[1]старш 8-10ч'!F191 -> 54.32 | D10: ='[1]старш 8-10ч'!G191 -> 51.77 | E10: ='[1]старш 8-10ч'!H191 -> 196.70 | F10: ='[1]старш 8-10ч'!I191 -> 1470.00 | G10: ='[1]старш 8-10ч'!J191 -> 33.63
A11: 3 | B11: ='[1]старш 8-10ч'!C288 -> 1667.5 | C11: ='[1]старш 8-10ч'!F288 -> 48.02 | D11: ='[1]старш 8-10ч'!G288 -> 51.85 | E11: ='[1]старш 8-10ч'!H288 -> 202.60 | F11: ='[1]старш 8-10ч'!I288 -> 1469.50 | G11: ='[1]старш 8-10ч'!J288 -> 33.63
A12: 4 | B12: ='[1]старш 8-10ч'!C383 -> 1801.5 | C12: ='[1]старш 8-10ч'!F383 -> 42.00 | D12: ='[1]старш 8-10ч'!G383 -> 47.46 | E12: ='[1]старш 8-10ч'!H383 -> 203.10 | F12: ='[1]старш 8-10ч'!I383 -> 1408.50 | G12: ='[1]старш 8-10ч'!J383 -> 45.25
A13: 5 | B13: ='[1]старш 8-10ч'!C479 -> 1696.5 | C13: ='[1]старш 8-10ч'!F479 -> 54.60 | D13: ='[1]старш 8-10ч'!G479 -> 45.50 | E13: ='[1]старш 8-10ч'!H479 -> 205.80 | F13: ='[1]старш 8-10ч'!I479 -> 1452.00 | G13: ='[1]старш 8-10ч'!J479 -> 50.01
A14: 6 | B14: ='[1]старш 8-10ч'!C576 -> 1694.5 | C14: ='[1]старш 8-10ч'!F576 -> 54.07 | D14: ='[1]старш 8-10ч'!G576 -> 45.83 | E14: ='[1]старш 8-10ч'!H576 -> 205.28 | F14: ='[1]старш 8-10ч'!I576 -> 1447.20 | G14: ='[1]старш 8-10ч'!J576 -> 25.75
A15: 7 | B15: ='[1]старш 8-10ч'!C667 -> 1599.5 | C15: ='[1]старш 8-10ч'!F667 -> 54.66 | D15: ='[1]старш 8-10ч'!G667 -> 51.84 | E15: ='[1]старш 8-10ч'!H667 -> 196.20 | F15: ='[1]старш 8-10ч'!I667 -> 1469.50 | G15: ='[1]старш 8-10ч'!J667 -> 42.52
A16: 8 | B16: ='[1]старш 8-10ч'!C764 -> 1565.5 | C16: ='[1]старш 8-10ч'!F764 -> 43.60 | D16: ='[1]старш 8-10ч'!G764 -> 43.02 | E16: ='[1]старш 8-10ч'!H764 -> 198.13 | F16: ='[1]старш 8-10ч'!I764 -> 1370.30 | G16: ='[1]старш 8-10ч'!J764 -> 27.78
A17: 9 | B17: ='[1]старш 8-10ч'!C855 -> 1738.5 | C17: ='[1]старш 8-10ч'!F855 -> 40.92 | D17: ='[1]старш 8-10ч'!G855 -> 45.26 | E17: ='[1]старш 8-10ч'!H855 -> 206.03 | F17: ='[1]старш 8-10ч'!I855 -> 1394.10 | G17: ='[1]старш 8-10ч'!J855 -> 31.29
A18: 10 | B18: ='[1]старш 8-10ч'!C958 -> 1709.5 | C18: ='[1]старш 8-10ч'!F958 -> 49.51 | D18: ='[1]старш 8-10ч'!G958 -> 51.11 | E18: ='[1]старш 8-10ч'!H958 -> 203.15 | F18: ='[1]старш 8-10ч'!I958 -> 1471.00 | G18: ='[1]старш 8-10ч'!J958 -> 26.57
A20: Всего | B20: =SUM(B9:B19) -> 16738.00 | C20: =SUM(C9:C19) -> 484.70 | D20: =SUM(D9:D18) -> 480.45 | E20: 2020.39 | F20: 14359.80 | G20: =SUM(G9:G19) -> 368.51
A21: В среднем | B21: =AVERAGE(B9:B18) -> 1673.80 | C21: 48.47 | D21: 48.05 | E21: 202.04 | F21: 1435.98 | G21: 36.85
A27: Примечание: при составлении примерного 10- дневного меню соблюдено выполнение средне-суточных наборов продуктов по возрастам и времени пребывания. Пищевая,энергетическая ценность соответствует показателям СанПиН 2.4.1.3049-13 таб. 3 "Нормы физиологических потребностей в энергии и пищевых веществах" и приложению№10 " Рекомендуемые суточные наборы продуктов для организации питания детей в дошкольных образовательных организациях" по химическому составу использованных наборов продуктов.

Sheet раскладка1-3
H1: "Утверждаю"
H2: Руководитель дошкольной образовательной
H3: организации
D5: Примерное 10 дневное меню
C6: для организации питания детей в дошкольных учреждениях
F7: с 8 -10,5 - часовым пребыванием
E8: от 1 до 3 лет
A9: День 1 - ий
A10: Наименование блюд и | C10: Масса | D10: Кол - во | E10: Кол - во | F10: Пищевые вещества | I10: Энергетическая | J10: Витамин | K10: № рецептуры
A11: продуктов | C11: порции | D11: (в гр ) | E11: (в гр ) | I11: ценность
D12: брутто | E12: нетто | F12: белки | G12: жиры | H12: угл-ды | I12: Ккал | J12: С
B13: ЗАВТРАК
A14: Макароны, запеченные с яйцом | C14: 83 | F14: 3.80 | G14: 5.10 | H14: 12.30 | I14: 110.50 | J14: 0.07 | K14: №262, справ.М.2003
B15: Макаронные изделия | D15: 20.00 | E15: 20.00
B16: Яйцо | D16: 13.00 | E16: 11.70
B17: Соль | D17: 0.40 | E17: 0.40
B18: Молоко | D18: 15.00 | E18: 15.00
B19: Масса полуфабриката | E19: 87.00
B20: Масло сливочное | D20: 3.00 | E20: 3.00
A21: Чай с молоком,сахаром | C21: 150 | F21: 2.60 | G21: 2.33 | H21: 11.30 | I21: 77.00 | J21: 1.20 | K21: №394Дели2010
B22: Заварка | D22: 0.5 | E22: 0.5
B23: Сахар | D23: 7 | E23: 7
B24: Молоко | D24: 92 | E24: 92
B25: Вода | D25: 60 | E25: 60
A26: Бутерброд с маслом сливочным | C26: 25/5 | F26: 1.9 | G26: 4.4 | H26: 13 | I26: 99 | K26: №1 Дели2010
B27: Батон нарезной | D27: 25 | E27: 25
B28: Масло сливочное | D28: 5 | E28: 5
A29: Итого:
B30: 2 - ой ЗАВТРАК
A31: Сок | C31: 100 | D31: 100 | E31: 100 | F31: 0.75 | G31: 0 | H31: 12.1 | I31: 51 | J31: 3 | K31: №399Дели2010
A32: Итого: | C32: 363 | F32: =SUM(F13:F31) -> 9.05 | G32: =SUM(G13:G31) -> 11.83 | H32: 48.70 | I32: 337.50 | J32: 4.27
B33: ОБЕД
A34: Свекла отварная | C34: 50 | F34: 0.60 | G34: 0.10 | H34: 3.50 | I34: 17.50 | J34: 1.02 | K34: сб1996, стр564
B35: Свекла | D35: 64.00 | E35: 51.00
A36: Рассольник ленинградский с говядиной и с сметаной | C36: 150/15/5 | F36: 6.1 | G36: 4.2 | H36: 9.4 | I36: 100.6 | J36: 4.03 | K36: №132сбшк2004
B37: Говядина | D37: 33 | E37: 24
B38: Картофель | D38: 60 | E38: 45
B39: Крупа перловая | D39: 3 | E39: 3
B40: Морковь | D40: 8 | E40: 6
B41: Лук репчатый | D41: 4 | E41: 3
B42: Масло растительное | D42: 2 | E42: 2
B43: Огурцы соленые | D43: 16 | E43: 9
B44: Сметана | D44: 5 | E44: 5
B45: Соль | D45: 0.6 | E45: 0.6
B46: Вода | D46: 114 | E46: 114
A47: Котлеты рубленые из говядины | C47: 55 | F47: 8.6 | G47: 8.5 | H47: 8.6 | I47: 145 | J47: 0.33 | K47: №451сбшк2004
B48: Говядина | D48: 55 | E48: 40.3
B49: Хлеб пшеничный 1с | D49: 10 | E49: 10
B50: Вода | D50: 13 | E50: 13
B51: Сухари панировочные | D51: 5.5 | E51: 5.5
B52: Масло растительное | D52: 2 | E52: 2
B53: Соль | D53: 0.5 | E53: 0.5
B54: Масса полуфабриката | E54: 68
B55: Масло сливочное | D55: 2 | E55: 2
A56: Капуста тушеная | C56: 130 | F56: 2.86 | G56: 4.2 | H56: 12.2 | I56: 98 | J56: 21.4 | K56: №534сбшк2004
B57: Капуста свежая | D57: 186 | E57: 149
B58: Лук репчатый | D58: 6 | E58: 5.2
B59: Морковь | D59: 3.3 | E59: 2.6
B60: Мука пшеничная | D60: 1.7 | E60: 1.7
B61: Масло растительное | D61: 1.7 | E61: 1.7
B62: Масло сливочное | D62: 2.2 | E62: 2.2
B63: Сахар | D63: 3.9 | E63: 3.9
B64: Соль | D64: 0.8 | E64: 0.8
A65: Кисель | C65: 130 | H65: 13.00 | I65: 52.00 | K65: №648сбшк2004
B66: Кисель-концентрат | D66: 15.20 | E66: 15.20
B67: Сахар | D67: 6.00 | E67: 6.00
B68: вода | D68: 130.00 | E68: 130.00
A69: Хлеб пшеничный 1с | C69: 15 | D69: 15 | E69: 15 | F69: 1.2 | G69: 0.15 | H69: 7.3 | I69: 36 | J69: 0
A70: Хлеб сельский | C70: 30 | D70: 30 | E70: 30 | F70: 1.5 | G70: 0.3 | H70: 14.3 | I70: 66
A71: Итого: | C71: 570 | F71: =SUM(F33:F70) -> 20.86 | G71: =SUM(G33:G70) -> 17.45 | H71: 68.3 | I71: 515.1 | J71: 26.78
B72: ПОЛДНИК
A73: Фрукты свежие | C73: 70 | D73: 80 | E73: 70 | F73: 1.05 | G73: 0.35 | H73: 11.7 | I73: 54 | J73: 7 | K73: №368 Дели2010
A74: Пирожок печёный с повидлом | C74: 50 | F74: 3 | G74: 2.6 | H74: 22 | I74: 123 | J74: 0 | K74: №738сбшк2004
B75: Мука пшеничная | D75: 24 | E75: 24
B76: Масло сливочное | D76: 2 | E76: 2
B77: сахар | D77: 1.5 | E77: 1.5
B78: Яйцо | D78: 2.8 | E78: 2.5
B79: соль | D79: 0.7 | E79: 0.7
B80: вода | D80: 7 | E80: 7
B81: дрожжи сухие | D81: 0.2 | E81: 0.2
B82: тесто дрожжевое | E82: 36
B83: повидло фруктовое | E83: 20
A84: Кефир | C84: 130 | F84: 4 | G84: 3.2 | H84: 5.1 | I84: 65 | J84: 1.05 | K84: №401Дели2010
B85: кефир | D85: 134 | E85: 130
A86: Чай с сахаром | C86: 100 | H86: 5 | I86: 21 | K86: №392 Дели2010
B87: заварка | D87: 0.2 | E87: 0.2
B88: сахар | D88: 4 | E88: 4
B89: вода | D89: 100 | E89: 100
A90: Итого: | C90: 350 | F90: =SUM(F72:F89) -> 8.05 | G90: =SUM(G72:G89) -> 6.15 | H90: =SUM(H72:H89) -> 43.80 | I90: =SUM(I72:I89) -> 263.00 | J90: =SUM(J72:J89) -> 8.05
A91: ВСЕГО: | C91: =C32+C71+C90 -> 1283 | F91: =F32+F71+F90 -> 38.0 | G91: =G32+G71+G90 -> 35.4 | H91: =H32+H71+H90 -> 160.8 | I91: =I32+I71+I90 -> 1115.6 | J91: =J32+J71+J90 -> 39.1
A93: День 2- ый
A94: Наименование блюд и | C94: Масса | D94: Кол - во | E94: Кол - во | F94: Пищевые вещества | I94: Энергетическая | J94: Витамин | K94: № рецептуры
A95: продуктов | C95: порции | D95: (в гр ) | E95: (в гр ) | I95: ценность
D96: брутто | E96: нетто | F96: белки | G96: жиры | H96: угл-ды | I96: Ккал | J96: С
B97: ЗАВТРАК
A98: Каша манная молочная жидкая | C98: 150/4 | F98: 4.50 | G98: 6.10 | H98: 22.00 | I98: 161.00 | J98: 0.16 | K98: №311,сбшк2004
B99: Крупа манная | D99: 23.00 | E99: 23.00
B100: Молоко | D100: 132.00 | E100: 132.00
B101: Сахар | D101: 4.00 | E101: 4.00
B102: Соль | D102: 0.80 | E102: 0.80
B103: Масло сливочное | D103: 4 | E103: 4
A104: Какао с молоком | C104: 150 | F104: 2.00 | G104: 2.20 | H104: 11.30 | I104: 73.30 | J104: 0.32 | K104: №397Дели2010
B105: Какао-порошок | D105: 1.3 | E105: 1.3
B106: Сахар | D106: 8.3 | E106: 8.3
B107: Молоко | D107: 92 | E107: 92
B108: вода | D108: 77 | E108: 77
A109: Бутерброд с сыром, маслом | C109: 25/5/5 | F109: 3.50 | G109: 5.95 | H109: 12.90 | I109: 119.60 | J109: 0.15 | K109: №3Дели2010
B110: Батон нарезной | D110: 25 | E110: 25
B111: Сыр | D111: 5.5 | E111: 5
B112: Масло сливочное | D112: 5 | E112: 5
A113: Итого:
B114: 2 - ой ЗАВТРАК
A115: Фрукты свежие | C115: 70 | D115: 80 | E115: 70 | F115: 0.1 | G115: 0.01 | H115: 3 | I115: 12 | J115: 7 | K115: №368 Дели2010
A116: Итого: | C116: 409 | F116: =SUM(F97:F115) -> 10.10 | G116: =SUM(G97:G115) -> 14.26 | H116: =SUM(H97:H115) -> 49.20 | I116: =SUM(I97:I115) -> 365.90 | J116: =SUM(J97:J115) -> 7.63
B117: ОБЕД
A118: Салат из свежей капусты | C118: 50 | F118: 1.00 | G118: 2.20 | H118: 4.60 | I118: 42.00 | J118: 3.73 | K118: № 43,сбшк2004
B119: Капуста свежая | D119: 81.2 | E119: 65
B120: Морковь | D120: 6.3 | E120: 5
B121: Сахар | D121: 1 | E121: 1
B122: Масло растительное | D122: 1 | E122: 1
B123: Соль | D123: 0.10 | E123: 0.10
A124: Суп вермишелевый с картофелем, говядиной | C124: 150/15 | F124: 8.7 | G124: 5.2 | H124: 16 | I124: 145 | J124: 4 | K124: 140сбшк2004
B125: Говядина | D125: 33 | E125: 24
B126: Картофель | D126: 60 | E126: 45
B127: Морковь | D127: 7.5 | E127: 6
B128: Лук репчатый | D128: 7.5 | E128: 6
B129: Макаронные изделия | D129: 5 | E129: 5
B130: Масло растительное | D130: 2 | E130: 2
B131: Соль | D131: 1 | E131: 1
B132: Вода | D132: 114 | E132: 114
A133: Пудинг рыбный | C133: 80.00 | F133: 3.20 | G133: 5.20 | H133: 7.20 | I133: 88.00 | K133: ТТК №4
B134: рыба | D134: 70 | E134: 56
B135: Хлеб пшеничный 1с | D135: 10 | E135: 10
B136: яйцо | D136: 8 | E136: 7.2
B137: молоко | D137: 14 | E137: 14
B138: масло сливочное | D138: 3 | E138: 3
B139: соль | D139: 0.4 | E139: 0.4
B140: Масло растительное | D140: 1 | E140: 1
A141: Соус молочный
B142: молоко | D142: 13.5 | E142: 13.5
B143: масло сливочное | D143: 2 | E143: 2
B144: Мука пшеничная | D144: 2 | E144: 2
B145: Вода | D145: 3 | E145: 3
B146: Сахар | D146: 0.24 | E146: 0.24
B147: соль | D147: 0.2 | E147: 0.2
A148: Картофель тушёный | C148: 100 | F148: 1.87 | G148: 5.3 | H148: 8.2 | I148: 88 | J148: 7.3 | K148: №216сбшк2004
B149: Картофель | D149: 114 | E149: 85
B150: Лук репчатый | D150: 19 | E150: 16
B151: Морковь | D151: 13 | E151: 10
B152: Масло сливочное | D152: 2 | E152: 2
B153: Масло растительное | D153: 0.6 | E153: 0.6
B154: Соль | D154: 0.3 | E154: 0.3
A155: Компот из свежих плодов | C155: 130 | F155: 0.10 | G155: 0.10 | H155: 10.20 | I155: 41.00 | J155: 1.20 | K155: №372Дели2010
B156: Фрукты свежие | D156: 29 | E156: 26
B157: Сахар | D157: 8.6 | E157: 8.6
B158: Вода | D158: 112 | E158: 112
A159: Хлеб сельский | C159: 30 | D159: 30 | E159: 30 | F159: 1.5 | G159: 0.3 | H159: 14.3 | I159: 65
A160: Итого: | C160: 555 | F160: =SUM(F117:F159) -> 16.4 | G160: =SUM(G117:G159) -> 18.3 | H160: =SUM(H117:H159) -> 60.5 | I160: =SUM(I117:I159) -> 469.0 | J160: =SUM(J117:J159) -> 16.2
B161: ПОЛДНИК
A162: Ряженка | C162: 130 | F162: 3.5 | G162: 3.2 | H162: 3.2 | I162: 55 | J162: 0.68 | K162: №400Дели2010
B163: ряженка | D163: 134 | E163: 130.0
A164: Морковь с сахаром | C164: 40 | F164: 0.50 | G164: 0.03 | H164: 4.20 | I164: 19.00 | J164: 0.77 | K164: №11. справ.М2003
B165: Морковь | D165: 48 | E165: 38.4
B166: Сахар | D166: 2 | E166: 2
A167: Суфле из творога с повидлом | C167: 90/10 | F167: 12.0 | G167: 6.0 | H167: 23.0 | I167: 194 | J167: 0.3 | K167: №365сбшк2004
B168: Творог | D168: 65 | E168: 64
B169: Мука пшеничная | D169: 7 | E169: 7
B170: Яйцо | D170: 5 | E170: 4.5
B171: Сахар | D171: 6 | E171: 6
B172: Молоко | D172: 12.8 | E172: 12.8
B173: Сметана | D173: 8.1 | E173: 8.1
B174: соль | D174: 0.2 | E174: 0.2
B175: Масло растительное | D175: 0.6 | E175: 0.6
B176: Повидло фруктовое | D176: 10 | E176: 10
A177: Чай с сахаром | C177: 100 | H177: 5 | I177: 20 | K177: №392 Дели2010
B178: заварка | D178: 0.2 | E178: 0.2
B179: сахар | D179: 4 | E179: 4
B180: вода | D180: 100 | E180: 100
A181: Хлеб пшеничный 1с | C181: 20 | D181: 20 | E181: 20 | F181: 1.6 | G181: 0.2 | H181: 9.8 | I181: 47 | J181: 0
A182: Итого: | C182: 390 | F182: =SUM(F161:F181) -> 17.6 | G182: =SUM(G161:G181) -> 9.4 | H182: =SUM(H161:H181) -> 45.2 | I182: =SUM(I161:I181) -> 335.0 | J182: =SUM(J161:J181) -> 1.8
A183: ВСЕГО: | C183: =C116+C160+C182 -> 1354 | F183: =F116+F160+F182 -> 44.1 | G183: =G116+G160+G182 -> 42.0 | H183: =H116+H160+H182 -> 154.9 | I183: =I116+I160+I182 -> 1169.9 | J183: =J116+J160+J182 -> 25.6
A185: День 3 - ий
A186: Наименование блюд и | C186: Масса | D186: Кол - во | E186: Кол - во | F186: Пищевые вещества | I186: Энергетическая | J186: Витамин | K186: № рецептуры
A187: продуктов | C187: порции | D187: (в гр ) | E187: (в гр ) | I187: ценность
D188: брутто | E188: нетто | F188: белки | G188: жиры | H188: угл-ды | I188: Ккал | J188: С
B189: ЗАВТРАК
A190: Каша Геркулесовая молочная с маслом | C190: 150/4 | F190: 4.75 | G190: 4.30 | H190: 14.00 | I190: 114.00 | J190: 0.21 | K190: №311 сбшк2004
B191: Крупа Геркулесовая | D191: 23 | E191: 23
B192: Молоко | D192: 100 | E192: 100
B193: вода | D193: 33 | E193: 33
B194: Сахар | D194: 4 | E194: 4
B195: Соль | D195: 0.6 | E195: 0.6
B196: Масло сливочное | D196: 4 | E196: 4
A197: Кофейный напиток с молоком | C197: 150 | F197: 1.00 | G197: 1.20 | H197: 10.00 | I197: 55.00 | J197: 0.16 | K197: №395Дели2010
B198: Кофейный напиток | D198: 2.5 | E198: 2.5
B199: Сахар | D199: 8.3 | E199: 8.3
B200: Молоко | D200: 75 | E200: 75
B201: Вода | D201: 90 | E201: 90
A202: Бутерброд с маслом сливочным | C202: 25/5 | F202: 1.9 | G202: 4.4 | H202: 13 | I202: 99 | K202: №1 Дели2010
B203: Батон нарезной | D203: 25 | E203: 25
... 742 more rows

Sheet меню1-3
F1: "Утверждаю"
F2: Руководитель дошкольной образовательной
F3: организации
C6: для организации питания детей в дошкольных учреждениях
D7: с 8 -10,5 - часовым пребыванием
A9: День 1 - ий
A10: Наименование блюд и | C10: Масса | D10: Пищевые вещества | G10: Энергетическая | H10: Витамин | I10: № рецептуры
A11: продуктов | C11: порции | G11: ценность
D12: белки | E12: жиры | F12: угл-ды | G12: Ккал | H12: С
B13: ЗАВТРАК
A14: Макароны, запеченные с яйцом | C14: 83 | D14: 3.80 | E14: 5.10 | F14: 12.30 | G14: 110.50 | H14: 0.07 | I14: №262, справ.М.2003
A15: Чай с молоком,сахаром | C15: 150 | D15: 2.60 | E15: 2.33 | F15: 11.30 | G15: 77.00 | H15: 1.20 | I15: №394Дели2010
A16: Бутерброд с маслом сливочным | C16: 25/5 | D16: 1.9 | E16: 4.4 | F16: 13 | G16: 99 | I16: №1 Дели2010
A17: Итого:
B18: 2 - ой ЗАВТРАК
A19: Сок | C19: 100 | D19: 0.75 | E19: 0 | F19: 12.1 | G19: 51 | H19: 3 | I19: №399Дели2010
A20: Итого: | C20: 363 | D20: =SUM(D13:D19) -> 9.05 | E20: =SUM(E13:E19) -> 11.83 | F20: =SUM(F13:F19) -> 48.70 | G20: =SUM(G13:G19) -> 337.50 | H20: =SUM(H13:H19) -> 4.27
B21: ОБЕД
A22: Свекла отварная | C22: 50 | D22: 0.60 | E22: 0.10 | F22: 3.50 | G22: 17.50 | H22: 1.02 | I22: сб1996, стр564
A23: Рассольник ленинградский с говядиной и с сметаной | C23: 150/15/5 | D23: 6.1 | E23: 4.2 | F23: 9.4 | G23: 100.6 | H23: 4.03 | I23: №132сбшк2004
A24: Котлеты рубленые из говядины | C24: 55 | D24: 8.6 | E24: 8.5 | F24: 8.6 | G24: 145 | H24: 0.33 | I24: №451сбшк2004
A25: Капуста тушеная | C25: 130 | D25: 2.86 | E25: 4.2 | F25: 12.2 | G25: 98 | H25: 21.4 | I25: №534сбшк2004
A26: Кисель | C26: 130 | F26: 13.00 | G26: 52.00 | I26: №648сбшк2004
A27: Хлеб пшеничный 1с | C27: 15 | D27: 1.2 | E27: 0.15 | F27: 7.3 | G27: 36 | H27: 0
A28: Хлеб сельский | C28: 30 | D28: 1.5 | E28: 0.3 | F28: 14.3 | G28: 66
A29: Итого: | C29: 570 | D29: =SUM(D21:D28) -> 20.86 | E29: =SUM(E21:E28) -> 17.45 | F29: =SUM(F21:F28) -> 68.3 | G29: =SUM(G21:G28) -> 515.1 | H29: =SUM(H21:H28) -> 26.78
B30: ПОЛДНИК
A31: Фрукты свежие | C31: 70 | D31: 1.05 | E31: 0.35 | F31: 11.7 | G31: 54 | H31: 7 | I31: №368 Дели2010
A32: Пирожок печёный с повидлом | C32: 50 | D32: 3 | E32: 2.6 | F32: 22 | G32: 123 | H32: 0 | I32: №738сбшк2004
A33: Кефир | C33: 130 | D33: 4 | E33: 3.2 | F33: 5.1 | G33: 65 | H33: 1.05 | I33: №401Дели2010
A34: Чай с сахаром | C34: 100 | F34: 5 | G34: 21 | I34: №392 Дели2010
A35: Итого: | C35: 350 | D35: =SUM(D30:D34) -> 8.05 | E35: =SUM(E30:E34) -> 6.15 | F35: =SUM(F30:F34) -> 43.80 | G35: =SUM(G30:G34) -> 263.00 | H35: =SUM(H30:H34) -> 8.05
A36: ВСЕГО: | C36: =C20+C29+C35 -> 1283 | D36: =D20+D29+D35 -> 38.0 | E36: =E20+E29+E35 -> 35.4 | F36: =F20+F29+F35 -> 160.8 | G36: =G20+G29+G35 -> 1115.6 | H36: =H20+H29+H35 -> 39.1
A38: День 2- ый
A39: Наименование блюд и | C39: Масса | D39: Пищевые вещества | G39: Энергетическая | H39: Витамин | I39: № рецептуры
A40: продуктов | C40: порции | G40: ценность
D41: белки | E41: жиры | F41: угл-ды | G41: Ккал | H41: С
B42: ЗАВТРАК
A43: Каша манная молочная жидкая | C43: 150/4 | D43: 4.50 | E43: 6.10 | F43: 22.00 | G43: 161.00 | H43: 0.16 | I43: №311,сбшк2004
A44: Какао с молоком | C44: 150 | D44: 2.00 | E44: 2.20 | F44: 11.30 | G44: 73.30 | H44: 0.32 | I44: №397Дели2010
A45: Бутерброд с сыром, маслом | C45: 25/5/5 | D45: 3.50 | E45: 5.95 | F45: 12.90 | G45: 119.60 | H45: 0.15 | I45: №3Дели2010
A46: Итого:
B47: 2 - ой ЗАВТРАК
A48: Фрукты свежие | C48: 70 | D48: 0.1 | E48: 0.01 | F48: 3 | G48: 12 | H48: 7 | I48: №368 Дели2010
A49: Итого: | C49: 409 | D49: =SUM(D42:D48) -> 10.10 | E49: =SUM(E42:E48) -> 14.26 | F49: =SUM(F42:F48) -> 49.20 | G49: =SUM(G42:G48) -> 365.90 | H49: =SUM(H42:H48) -> 7.63
B50: ОБЕД
A51: Салат из свежей капусты | C51: 50 | D51: 1.00 | E51: 2.20 | F51: 4.60 | G51: 42.00 | H51: 3.73 | I51: № 43,сбшк2004
A52: Суп вермишелевый с картофелем, говядиной | C52: 150/15 | D52: 8.7 | E52: 5.2 | F52: 16 | G52: 145 | H52: 4 | I52: 140сбшк2004
A53: Пудинг рыбный | C53: 80.00 | D53: 3.20 | E53: 5.20 | F53: 7.20 | G53: 88.00 | I53: ТТК №4
A54: Картофель тушёный | C54: 100 | D54: 1.87 | E54: 5.3 | F54: 8.2 | G54: 88 | H54: 7.3 | I54: №216сбшк2004
A55: Компот из свежих плодов | C55: 130 | D55: 0.10 | E55: 0.10 | F55: 10.20 | G55: 41.00 | H55: 1.20 | I55: №372Дели2010
A56: Хлеб сельский | C56: 30 | D56: 1.5 | E56: 0.3 | F56: 14.3 | G56: 65
A57: Итого: | C57: 555 | D57: =SUM(D50:D56) -> 16.4 | E57: =SUM(E50:E56) -> 18.3 | F57: =SUM(F50:F56) -> 60.5 | G57: =SUM(G50:G56) -> 469.0 | H57: =SUM(H50:H56) -> 16.2
B58: ПОЛДНИК
A59: Ряженка | C59: 130 | D59: 3.5 | E59: 3.2 | F59: 3.2 | G59: 55 | H59: 0.68 | I59: №400Дели2010
A60: Морковь с сахаром | C60: 40 | D60: 0.50 | E60: 0.03 | F60: 4.20 | G60: 19.00 | H60: 0.77 | I60: №11. справ.М2003
A61: Суфле из творога с повидлом | C61: 90/10 | D61: 12.0 | E61: 6.0 | F61: 23.0 | G61: 194 | H61: 0.3 | I61: №365сбшк2004
A62: Чай с сахаром | C62: 100 | F62: 5 | G62: 20 | I62: №392 Дели2010
A63: Хлеб пшеничный 1с | C63: 20 | D63: 1.6 | E63: 0.2 | F63: 9.8 | G63: 47 | H63: 0
A64: Итого: | C64: 390 | D64: =SUM(D58:D63) -> 17.6 | E64: =SUM(E58:E63) -> 9.4 | F64: =SUM(F58:F63) -> 45.2 | G64: =SUM(G58:G63) -> 335.0 | H64: =SUM(H58:H63) -> 1.8
A65: ВСЕГО: | C65: =C49+C57+C64 -> 1354 | D65: =D49+D57+D64 -> 44.1 | E65: =E49+E57+E64 -> 42.0 | F65: =F49+F57+F64 -> 154.9 | G65: =G49+G57+G64 -> 1169.9 | H65: =H49+H57+H64 -> 25.6
A67: День 3 - ий
A68: Наименование блюд и | C68: Масса | D68: Пищевые вещества | G68: Энергетическая | H68: Витамин | I68: № рецептуры
A69: продуктов | C69: порции | G69: ценность
D70: белки | E70: жиры | F70: угл-ды | G70: Ккал | H70: С
B71: ЗАВТРАК
A72: Каша Геркулесовая молочная с маслом | C72: 150/4 | D72: 4.75 | E72: 4.30 | F72: 14.00 | G72: 114.00 | H72: 0.21 | I72: №311 сбшк2004
A73: Кофейный напиток с молоком | C73: 150 | D73: 1.00 | E73: 1.20 | F73: 10.00 | G73: 55.00 | H73: 0.16 | I73: №395Дели2010
A74: Бутерброд с маслом сливочным | C74: 25/5 | D74: 1.9 | E74: 4.4 | F74: 13 | G74: 99 | I74: №1 Дели2010
A75: Итого:
B76: 2 - ой ЗАВТРАК
A77: Сок | C77: 100 | D77: 0.75 | E77: 0 | F77: 10 | G77: 43 | H77: 3 | I77: №399Дели2010
A78: Итого: | C78: 434 | D78: =SUM(D72:D77) -> 8.40 | E78: =SUM(E72:E77) -> 9.90 | F78: =SUM(F72:F77) -> 47.00 | G78: =SUM(G72:G77) -> 311.00 | H78: =SUM(H72:H77) -> 3.37
B79: ОБЕД
A80: Салат витаминный | C80: 40 | D80: 0.60 | E80: 2.30 | F80: 5.30 | G80: 44.30 | H80: 7.00 | I80: №40, сб.шк2004
A81: Суп картофельный с горохом с мясными фрикадельками | C81: 150/15 | D81: 7.3 | E81: 5 | F81: 11.9 | G81: 122 | H81: 4.41 | I81: №139,сбшк2004
A83: Биточки куриные "Солнышко" | C83: 60 | D83: 8.20 | E83: 6.20 | F83: 6.50 | G83: 115.00 | H83: 0.34 | I83: акт от 07.02.14
A84: Рагу овощное | C84: 150 | D84: 3.00 | E84: 6.40 | F84: 12.00 | G84: 117.00 | H84: 7.40 | I84: №224,сбшк2004
A85: Компот из кураги | C85: 130 | D85: 0.60 | E85: 0.00 | F85: 18.00 | G85: 73.50 | H85: 0.11 | I85: №376Дели2010
A86: Хлеб сельский | C86: 30 | D86: 1.5 | E86: 0.3 | F86: 14.3 | G86: 66
A87: Итого: | C87: 575 | D87: =SUM(D79:D86) -> 21.20 | E87: =SUM(E79:E86) -> 20.20 | F87: =SUM(F79:F86) -> 68.00 | G87: =SUM(G79:G86) -> 537.80 | H87: =SUM(H79:H86) -> 19.26
B88: ПОЛДНИК
A89: Фрукты свежие | C89: 60 | D89: 0.2 | E89: 0.2 | F89: 3.5 | G89: 17 | H89: 7 | I89: №368 Дели2010
A90: Катык | C90: 130 | D90: 4 | E90: 3.2 | F90: 3.1 | G90: 57 | H90: 1.05 | I90: №401Дели2010
A91: Булочка Домашняя | C91: 45 | D91: 4.20 | E91: 6.00 | F91: 26.00 | G91: 174.00 | H91: 0.00 | I91: №769сбшк2004
A92: Чай с сахаром | C92: 100 | F92: 5 | G92: 21 | I92: №392 Дели2010
A93: Кондитерские изделия | C93: 15 | D93: 0.42 | E93: 0.5 | F93: 8.6 | G93: 40
A94: Итого: | C94: 350 | D94: =SUM(D88:D93) -> 8.8 | E94: =SUM(E88:E93) -> 9.9 | F94: =SUM(F88:F93) -> 46.2 | G94: =SUM(G88:G93) -> 309.0 | H94: =SUM(H88:H93) -> 8.1
A95: ВСЕГО: | C95: =C78+C87+C94 -> 1359 | D95: =D78+D87+D94 -> 38.4 | E95: =E78+E87+E94 -> 40.0 | F95: =F78+F87+F94 -> 161.2 | G95: =G78+G87+G94 -> 1157.8 | H95: =H78+H87+H94 -> 30.7
A97: День 4 - ый
A98: Наименование блюд и | C98: Масса | D98: Пищевые вещества | G98: Энергетическая | H98: Витамин | I98: № рецептуры
A99: продуктов | C99: порции | G99: ценность
D100: белки | E100: жиры | F100: угл-ды | G100: Ккал | H100: С
B101: ЗАВТРАК
A102: Суп молочный с макаронными изделиями | C102: 150 | D102: 3.30 | E102: 3.10 | F102: 13.90 | G102: 96.00 | H102: 0.39 | I102: №160,сбшк2004
A103: Чай с сахаром | C103: 150 | F103: 8.00 | G103: 32.00 | H103: 1.20 | I103: №394Дели2010
A104: Бутерброд с сыром, маслом | C104: 25/5/5 | D104: 3.50 | E104: 5.95 | F104: 12.90 | G104: 119.60 | H104: 0.04 | I104: №3Дели2010
A105: Итого:
B106: 2 - ой ЗАВТРАК
A107: Сок | C107: 100 | D107: 0.3 | E107: 0 | F107: 17 | G107: 69 | H107: 3 | I107: №399Дели2010
A108: Итого: | C108: 435 | D108: =SUM(D101:D107) -> 7.10 | E108: =SUM(E101:E107) -> 9.05 | F108: =SUM(F101:F107) -> 51.80 | G108: =SUM(G101:G107) -> 316.60 | H108: =SUM(H101:H107) -> 4.63
B109: ОБЕД
A110: Салат из свеклы | C110: 50 | D110: 0.50 | E110: 2.90 | F110: 3.20 | G110: 40.00 | H110: 0.75 | I110: №64, справ.М.2003г
A111: Щи со свежей капустой, картофелем на м/б,со сметаной | C111: 150/5 | D111: 1.10 | E111: 3.30 | F111: 5.00 | G111: 55.00 | H111: 7.19 | I111: №124,сбшк2004
A112: Гуляш из отварной говядины | C112: 40/40 | D112: 10.00 | E112: 10.00 | F112: 3.00 | G112: 142.00 | H112: 0.37 | I112: №141,сб.диет2002
A113: Каша гречневая вязкая | C113: 100 | D113: 2.00 | E113: 3.00 | F113: 21.00 | G113: 119.00 | I113: №297,сбшк2004
A114: Кисель | C114: 130 | F114: 13.00 | G114: 52.00 | I114: №648сбшк2004
A115: Хлеб сельский | C115: 30 | D115: 1.5 | E115: 0.3 | F115: 14.3 | G115: 66
A116: Итого: | C116: 535 | D116: =SUM(D109:D115) -> 15.10 | E116: =SUM(E109:E115) -> 19.50 | F116: =SUM(F109:F115) -> 59.50 | G116: =SUM(G109:G115) -> 474.00 | H116: =SUM(H109:H115) -> 8.31
B117: ПОЛДНИК
A118: Фрукты свежие | C118: 60 | D118: 0.1 | E118: 0.09 | F118: 17 | G118: 69 | H118: 29.4 | I118: №368Дели2010
A119: Запеканка картофельная с овощами,соусом | C119: 100/20 | D119: 3.50 | E119: 6.00 | F119: 10.90 | G119: 112.00 | H119: 0.01 | I119: №293, справ.М.2003
A120: Кефир | C120: 130 | D120: 4 | E120: 3.2 | F120: 5.1 | G120: 65 | H120: 1.05 | I120: №401Дели2010
A121: Чай с сахаром | C121: 100 | F121: 5 | G121: 21 | I121: №392 Дели2010
A122: Хлеб пшеничный 1с | C122: 15 | D122: 1.2 | E122: 0.15 | F122: 7.3 | G122: 36 | H122: 0
A123: Итого: | C123: 425 | D123: =SUM(D117:D122) -> 8.80 | E123: =SUM(E117:E122) -> 9.44 | F123: =SUM(F117:F122) -> 45.30 | G123: =SUM(G117:G122) -> 303.00 | H123: =SUM(H117:H122) -> 30.46
A124: ВСЕГО: | C124: =C108+C116+C123 -> 1395 | D124: =D108+D116+D123 -> 31.00 | E124: =E108+E116+E123 -> 37.99 | F124: =F108+F116+F123 -> 156.60 | G124: =G108+G116+G123 -> 1093.60 | H124: =H108+H116+H123 -> 43.40
A126: День 5 - ый
A127: Наименование блюд и | C127: Масса | D127: Пищевые вещества | G127: Энергетическая | H127: Витамин | I127: № рецептуры
A128: продуктов | C128: порции | G128: ценность
D129: белки | E129: жиры | F129: угл-ды | G129: Ккал | H129: С
B130: ЗАВТРАК
A131: Каша кукурузная молочная с маслом | C131: 150/4 | D131: 4.4 | E131: 3.8 | F131: 18.3 | G131: 125 | H131: 0.16 | I131: №311сбшк2004
A132: Какао с молоком | C132: 150 | D132: 2.00 | E132: 2.20 | F132: 11.30 | G132: 73.30 | H132: 0.32 | I132: №397Дели2010
A133: Бутерброд с маслом сливочным | C133: 25/5 | D133: 1.9 | E133: 4.4 | F133: 13 | G133: 99 | I133: №1 Дели2010
B135: 2 - ой ЗАВТРАК
A136: Фрукты свежие | C136: 70 | D136: 0.2 | E136: 0.1 | F136: 12.7 | G136: 52.5 | H136: 7 | I136: №368 Дели2010
A137: Итого: | C137: 404 | D137: =SUM(D130:D136) -> 8.50 | E137: =SUM(E130:E136) -> 10.50 | F137: =SUM(F130:F136) -> 55.30 | G137: =SUM(G130:G136) -> 349.80 | H137: =SUM(H130:H136) -> 7.48
B138: ОБЕД
A139: Огурцы соленые порционно | C139: 20 | D139: 0.23 | E139: 0.04 | F139: 0.76 | G139: 4.8 | H139: 5 | I139: таб№8сбшк2004
A140: Суп крестьянский с цыплятами, сметаной | C140: 150/15/5 | D140: 4.25 | E140: 4.80 | F140: 7.10 | G140: 88.60 | H140: 3.73 | I140: №134сбшк2004
A141: Тефтели рыбные в сметанно-томатном соусе | C141: 70/30 | D141: 11.00 | E141: 7.00 | F141: 9.40 | G141: 144.00 | I141: ТТК №1
A142: Пюре Картофельное | C142: 100 | D142: 2.00 | E142: 3.00 | F142: 14.00 | G142: 90.80 | H142: 6.95 | I142: №520,сбшк2004
A143: Компот из сухофруктов | C143: 130 | D143: 0.60 | E143: 0.00 | F143: 18.10 | G143: 73.50 | H143: 0.26 | I143: №376Дели2010
A144: Хлеб сельский | C144: 30 | D144: 1.5 | E144: 0.3 | F144: 14.3 | G144: 66
A145: Итого: | C145: 580 | D145: =SUM(D138:D144) -> 19.58 | E145: =SUM(E138:E144) -> 15.14 | F145: =SUM(F138:F144) -> 63.66 | G145: =SUM(G138:G144) -> 467.70 | H145: =SUM(H138:H144) -> 15.94
B146: ПОЛДНИК
A147: Ряженка | C147: 130 | D147: 3.2 | E147: 3.3 | F147: 5.5 | G147: 64 | H147: 0.68 | I147: №400Дели2010
A148: Салат из моркови | C148: 40 | D148: 0.40 | E148: 1.80 | F148: 5.80 | G148: 40.00 | H148: 0.69 | I148: №71, сб 1997
A149: Пудинг творожный | C149: 100/20 | D149: 12.00 | E149: 7.30 | F149: 25.00 | G149: 214.00 | H149: 12.50 | I149: №349, справ М 2003
A150: Чай с сахаром | C150: 100 | F150: 5 | G150: 21 | I150: №392 Дели2010
A151: Итого: | C151: 390 | D151: =SUM(D146:D150) -> 15.60 | E151: =SUM(E146:E150) -> 12.40 | F151: =SUM(F146:F150) -> 41.30 | G151: =SUM(G146:G150) -> 339.00 | H151: =SUM(H146:H150) -> 13.87
A152: ВСЕГО: | C152: =C137++C145+C151 -> 1374 | D152: =D137+D145+D151 -> 43.68 | E152: =E137+E145+E151 -> 38.04 | F152: =F137+F145+F151 -> 160.26 | G152: =G137+G145+G151 -> 1156.50 | H152: =H137+H145+H151 -> 37.29
A154: День 6 - ой
A155: Наименование блюд и | C155: Масса | D155: Пищевые вещества | G155: Энергетическая | H155: Витамин | I155: № рецептуры
A156: продуктов | C156: порции | G156: ценность
D157: белки | E157: жиры | F157: угл-ды | G157: Ккал | H157: С
B158: ЗАВТРАК
A159: Каша пшённая молочная с маслом | C159: 150/4 | D159: 5.50 | E159: 6.70 | F159: 24.60 | G159: 180.00 | H159: 0.16 | I159: №311,сбшк2004
A160: Кофейный напиток с молоком | C160: 150 | D160: 1.00 | E160: 1.20 | F160: 10.00 | G160: 55.00 | H160: 0.16 | I160: №395Дели2010
A161: Бутерброд с сыром, маслом | C161: 25/5/5 | D161: 3.50 | E161: 5.95 | F161: 12.90 | G161: 119.60 | H161: 0.04 | I161: №3Дели2010
A162: Итого:
B163: 2 - ой ЗАВТРАК
A164: Сок | C164: 100 | D164: 0.23 | E164: 0 | F164: 3 | G164: 13 | H164: 1.5 | I164: №399Дели2010
A165: Итого: | C165: 439 | D165: =SUM(D158:D164) -> 10.23 | E165: =SUM(E158:E164) -> 13.85 | F165: =SUM(F158:F164) -> 50.50 | G165: =SUM(G158:G164) -> 367.60 | H165: =SUM(H158:H164) -> 1.86
B166: ОБЕД
A167: Салат из свежей капусты | C167: 50 | D167: 1.00 | E167: 2.20 | F167: 4.60 | G167: 42.00 | H167: 3.73 | I167: № 43,сбшк2004
A168: Свекольник с мясными фрикадельками, со сметаной | C168: 150/15/5 | D168: 6.90 | E168: 6.00 | F168: 11.20 | G168: 126.70 | H168: 4.77 | I168: №35,сб.Пермь
A169: Биточки рубленые из рыбы | C169: 70 | D169: 10.40 | E169: 4.90 | F169: 3.50 | G169: 99.00 | I169: ТТК №3
A170: Макароны отварные | C170: 70/2 | D170: 2.60 | E170: 2.00 | F170: 8.00 | G170: 60.00 | I170: №332,сбшк2004
A171: Компот из кураги | C171: 130 | D171: 0.60 | E171: 0.01 | F171: 18.10 | G171: 73.50 | H171: 0.11 | I171: №376Дели2010
A172: Хлеб пшеничный 1с | C172: 20 | D172: 1.6 | E172: 0.2 | F172: 9.8 | G172: 47 | H172: 0
A173: Хлеб сельский | C173: 30 | D173: 1.5 | E173: 0.3 | F173: 14.3 | G173: 66
A174: Итого: | C174: 542.00 | D174: =SUM(D166:D173) -> 24.60 | E174: =SUM(E166:E173) -> 15.61 | F174: =SUM(F166:F173) -> 69.50 | G174: =SUM(G166:G173) -> 514.20 | H174: =SUM(H166:H173) -> 8.61
B175: ПОЛДНИК
A176: Фрукты свежие | C176: 70 | D176: 0.2 | E176: 0.2 | F176: 2.5 | G176: 12.6 | H176: 7 | I176: №368Дели2010
A177: Катык | C177: 130 | D177: 4.35 | E177: 3.2 | F177: 6 | G177: 70 | H177: 1.05 | I177: №401Дели2010
A178: Плюшка новомосковская | C178: 50 | D178: 2.30 | E178: 2.90 | F178: 21.00 | G178: 120.00 | H178: 0.02 | I178: №184
A179: Морковь свежая | C179: 40 | D179: 0.50 | E179: 0.04 | F179: 2.80 | G179: 13.00 | H179: 2.00 | I179: сб.1996,стр562
A180: Кондитерские изделия | C180: 19 | D180: 0.53 | E180: 4.6 | F180: 2 | G180: 51 | H180: 0
A181: Чай с сахаром | C181: 100 | F181: 5 | G181: 21 | I181: №392 Дели2010
A182: Итого: | C182: 332 | D182: =SUM(D175:D181) -> 7.88 | E182: =SUM(E175:E181) -> 10.94 | F182: =SUM(F175:F181) -> 39.30 | G182: =SUM(G175:G181) -> 287.60 | H182: =SUM(H175:H181) -> 10.07
A183: ВСЕГО: | C183: =C165+C174+C182 -> 1313.00 | D183: =D165+D174+D182 -> 42.71 | E183: =E165+E174+E182 -> 40.40 | F183: =F165+F174+F182 -> 159.30 | G183: =G165+G174+G182 -> 1169.40 | H183: =H165+H174+H182 -> 20.54
A185: День 7 - ой
A186: Наименование блюд и | C186: Масса | D186: Пищевые вещества | G186: Энергетическая | H186: Витамин | I186: № рецептуры
A187: продуктов | C187: порции | G187: ценность
D188: белки | E188: жиры | F188: угл-ды | G188: Ккал | H188: С
B189: ЗАВТРАК
A190: Омлет с сыром | C190: 85/5 | D190: 7.20 | E190: 5.90 | F190: 2.40 | G190: 92.00 | H190: 0.11 | I190: №215Дели2010
A191: Чай с молоком,сахаром | C191: 160 | D191: 2.60 | E191: 2.00 | F191: 11.90 | G191: 76.00 | H191: 1.20 | I191: №394Дели2010
A192: Бутерброд с маслом сливочным | C192: 25/5 | D192: 1.9 | E192: 4.4 | F192: 13 | G192: 99 | I192: №1 Дели2010
A193: Итого:
B194: 2 - ой ЗАВТРАК
A195: Фрукты свежие | C195: 70 | D195: 0.2 | E195: 0.01 | F195: 21 | G195: 85 | H195: 7 | I195: №368 Дели2010
A196: Итого: | C196: 350 | D196: =SUM(D189:D195) -> 11.90 | E196: =SUM(E189:E195) -> 12.31 | F196: =SUM(F189:F195) -> 48.30 | G196: =SUM(G189:G195) -> 352.00 | H196: =SUM(H189:H195) -> 8.31
B197: ОБЕД
A198: Салат из свеклы | C198: 50 | D198: 0.50 | E198: 2.90 | F198: 3.20 | G198: 40.00 | H198: 0.75 | I198: №64, справ.М.2003г
A199: Суп с крупой, картофелем с рыбными фрикадельками | C199: 150/20 | D199: 6.80 | E199: 2.00 | F199: 11.80 | G199: 92.40 | H199: 4.20 | I199: №138сбшк2004
A200: Рагу овощное с мясом | C200: 160/47 | D200: 11.00 | E200: 14.10 | F200: 25.00 | G200: 270.00 | H200: 0.33 | I200: №224сбшк2004
A201: Кисель | C201: 130 | F201: 13.00 | G201: 52.00 | I201: №648сбшк2004
A202: Хлеб пшеничный 1с | C202: 15 | D202: 1.2 | E202: 0.1 | F202: 7.3 | G202: 36 | H202: 0
A203: Хлеб сельский | C203: 30 | D203: 1.5 | E203: 0.3 | F203: 14.3 | G203: 66
A204: Итого: | C204: 572.00 | D204: =SUM(D197:D203) -> 21.00 | E204: =SUM(E197:E203) -> 19.40 | F204: =SUM(F197:F203) -> 74.60 | G204: =SUM(G197:G203) -> 556.40 | H204: =SUM(H197:H203) -> 5.28
B205: ПОЛДНИК
A206: Кефир | C206: 130/3 | D206: 4 | E206: 3.2 | F206: 5.1 | G206: 65 | H206: 1.05 | I206: №401Дели2010
A207: Морковь с сахаром | C207: 40 | D207: 0.50 | E207: 0.03 | F207: 4.20 | G207: 18.00 | H207: 0.77 | I207: №11. справ.М2003
A208: Запеканка творожная со сгущённым молоком | C208: 75/20 | D208: 5.70 | E208: 5.50 | F208: 16.70 | G208: 139.00 | H208: 0.24 | I208: № 237 Дели 2010
A209: Чай с сахаром | C209: 100 | F209: 5 | G209: 21 | I209: №392 Дели2010
A210: Итого: | C210: 368 | D210: =SUM(D205:D209) -> 10.20 | E210: =SUM(E205:E209) -> 8.73 | F210: =SUM(F205:F209) -> 31.00 | G210: =SUM(G205:G209) -> 243.00 | H210: =SUM(H205:H209) -> 2.06
A211: ВСЕГО: | C211: =C196+C204+C210 -> 1290.00 | D211: =D196+D204+D210 -> 43.1 | E211: =E196+E204+E210 -> 40.4 | F211: =F196+F204+F210 -> 153.9 | G211: =G196+G204+G210 -> 1151.4 | H211: =H196+H204+H210 -> 15.7
... 112 more rows

Sheet свод1-3
B1: Расход продуктов ДОУ
D2: до 3 лет | F2: с 8 - 10,5 часовым пребыванием | L2: нетто
A3: Наименов. прод. | B3: 1 | C3: 2 | D3: 3 | E3: 4 | F3: 5 | G3: 6 | H3: 7 | I3: 8 | J3: 9 | K3: 10 | L3: Кол-во | M3: Среднее | N3: Норма | O3: Отклон. | P3: Отклон.%
N4: 1-3
A5: Сахар | B5: 22.40 | C5: 34.14 | D5: 29.30 | E5: 18.00 | F5: 38.30 | G5: 31.30 | H5: 29.00 | I5: 29.90 | J5: 25.10 | K5: 22.70 | L5: 280.14 | M5: 28.01 | N5: 278 | O5: 2.1 | P5: 0.77
A6: Заварка | B6: 0.70 | C6: 0.20 | D6: 0.20 | E6: 0.60 | F6: 0.20 | G6: 0.20 | H6: 0.70 | I6: 0.20 | J6: 0.20 | K6: 0.60 | L6: 3.80 | M6: 0.38 | N6: 3.8 | O6: 0.0 | P6: 0.00
A7: Яйцо | B7: 14.20 | C7: 11.70 | D7: 4.30 | E7: 10.00 | F7: 5.00 | G7: 13.00 | H7: 68.00 | I7: 5.50 | J7: 12.10 | K7: 9.90 | L7: 153.70 | M7: 15.37 | N7: 150 | O7: 3.7 | P7: 2.47
A8: Дрожжи сухие | B8: 0.20 | C8: 0.00 | D8: 0.20 | E8: 0.00 | F8: 0.00 | G8: 0.20 | H8: 0.00 | I8: 0.20 | J8: 0.00 | K8: 0.20 | L8: 1.00 | M8: 0.10 | N8: 1 | O8: 0.0 | P8: 0.00
A9: Батон нарезной | B9: 25.00 | C9: 25.00 | D9: 25.00 | E9: 25.00 | F9: 25.00 | G9: 25.00 | H9: 25.00 | I9: 25.00 | J9: 25.00 | K9: 25.00 | L9: 250.00 | M9: 25.00 | O9: 250.0
A10: Хлеб пшеничный 1с | B10: 25.00 | C10: 30.00 | D10: 0.00 | E10: 15.00 | F10: 0.00 | G10: 20.00 | H10: 15.00 | I10: 15.00 | J10: 15.00 | K10: 23.00 | L10: 158.00 | M10: 15.80 | O10: 158.0
A11: Хлеб сельский | B11: 30.00 | C11: 30.00 | D11: 30.00 | E11: 30.00 | F11: 30.00 | G11: 30.00 | H11: 30.00 | I11: 30.00 | J11: 30.00 | K11: 30.00 | L11: 300.00 | M11: 30.00 | N11: 300 | O11: 0.0 | P11: 0.00
A12: Мука пшеничная | B12: 25.70 | C12: 9.00 | D12: 38.50 | E12: 3.50 | F12: 8.25 | G12: 35.00 | H12: 7.00 | I12: 25.30 | J12: 1.10 | K12: 40.10 | L12: 193.45 | M12: 19.35 | N12: 190.0 | O12: 3.4 | P12: 1.82
A13: Кисель-концентрат | B13: 15.20 | C13: 0.00 | D13: 0.00 | E13: 15.20 | F13: 0.00 | G13: 0.00 | H13: 15.20 | I13: 0.00 | J13: 0.00 | K13: 15.20 | L13: 60.80 | M13: 6.08
A14: Макаронные изделия | B14: 20.00 | C14: 5.00 | D14: 0.00 | E14: 12.00 | F14: 0.00 | G14: 23.80 | H14: 0.00 | I14: 0.00 | J14: 0.00 | K14: 0.00 | L14: 60.80 | M14: 6.08 | N14: 60 | O14: 0.8 | P14: 1.33
A15: Крупа рисовая | B15: 0.00 | C15: 0.00 | D15: 0.00 | E15: 0.00 | F15: 0.00 | G15: 0.00 | H15: 0.00 | I15: 12.00 | J15: 0.00 | K15: 9.00 | L15: 21.00 | M15: 2.10 | O15: 21.0
A16: Крупа кукурузная | B16: 0.00 | C16: 0.00 | D16: 0.00 | E16: 0.00 | F16: 30.00 | G16: 0.00 | H16: 0.00 | I16: 0.00 | J16: 0.00 | K16: 0.00 | L16: 30.00 | M16: 3.00 | O16: 30.0
A17: Крупа манная | B17: 0.00 | C17: 23.00 | D17: 0.00 | E17: 0.00 | F17: 7.00 | G17: 1.75 | H17: 0.00 | I17: 0.00 | J17: 0.00 | K17: 0.00 | L17: 31.75 | M17: 3.18 | O17: 31.8
A18: Горох | B18: 0.00 | C18: 0.00 | D18: 12.00 | E18: 0.00 | F18: 0.00 | G18: 0.00 | H18: 0.00 | I18: 0.00 | J18: 0.00 | K18: 0.00 | L18: 12.00 | M18: 1.20 | O18: 12.0
A19: Крупа пшенная | B19: 0.00 | C19: 0.00 | D19: 0.00 | E19: 0.00 | F19: 0.00 | G19: 30.00 | H19: 0.00 | I19: 15.00 | J19: 0.00 | K19: 0.00 | L19: 45.00 | M19: 4.50 | O19: 45.0
A20: Крупа ячневая | B20: 0.00 | C20: 0.00 | D20: 0.00 | E20: 0.00 | F20: 0.00 | G20: 0.00 | H20: 0.00 | I20: 0.00 | J20: 0.00 | K20: 0.00 | L20: 0.00 | M20: 0.00 | O20: 0.0
A21: Полба | B21: 0.00 | C21: 0.00 | D21: 0.00 | E21: 0.00 | F21: 0.00 | G21: 0.00 | H21: 0.00 | I21: 0.00 | J21: 0.00 | K21: 0.00 | L21: 0.00 | M21: 0.00 | O21: 0.0
A22: Крупа перловая | B22: 3.00 | C22: 0.00 | D22: 0.00 | E22: 0.00 | F22: 6.00 | G22: 0.00 | H22: 6.60 | I22: 0.00 | J22: 0.00 | K22: 0.00 | L22: 15.60 | M22: 1.56 | O22: 15.6
A23: Крупа геркулесовая | B23: 0.00 | C23: 0.00 | D23: 23.00 | E23: 0.00 | F23: 0.00 | G23: 0.00 | H23: 0.00 | I23: 0.00 | J23: 0.00 | K23: 0.00 | L23: 23.00 | M23: 2.30 | O23: 23.0
A24: Крупа пшеничная | B24: 0.00 | C24: 0.00 | D24: 0.00 | E24: 0.00 | F24: 0.00 | G24: 0.00 | H24: 0.00 | I24: 0.00 | J24: 23.00 | K24: 0.00 | L24: 23.00 | M24: 2.30 | O24: 23.0
A25: Крупа гречневая | B25: 0.00 | C25: 0.00 | D25: 0.00 | E25: 25.00 | F25: 0.00 | G25: 0.00 | H25: 0.00 | I25: 0.00 | J25: 0.00 | K25: 0.00 | L25: 25.00 | M25: 2.50 | O25: 25.0
A26: Картофель | B26: 45.00 | C26: 130.00 | D26: 80.30 | E26: 108.00 | F26: 100.80 | G26: 25.90 | H26: 103.00 | I26: 151.00 | J26: 136.40 | K26: 48.00 | L26: 928.40 | M26: 92.84 | N26: 900 | O26: 28.4 | P26: 3.16
A27: Морковь | B27: 8.60 | C27: 59.40 | D27: 64.00 | E27: 23.00 | F27: 40.00 | G27: 51.60 | H27: 80.00 | I27: 7.00 | J27: 27.70 | K27: 53.00 | L27: 414.30 | M27: 41.43 | O27: 414.3
A28: Лук репчатый | B28: 8.20 | C28: 22.00 | D28: 35.00 | E28: 25.00 | F28: 11.00 | G28: 21.20 | H28: 30.70 | I28: 19.20 | J28: 7.90 | K28: 26.40 | L28: 206.60 | M28: 20.66 | O28: 206.6
A29: Свекла | B29: 51.00 | C29: 0.00 | D29: 0.00 | E29: 59.25 | F29: 0.00 | G29: 38.30 | H29: 59.25 | I29: 24.00 | J29: 33.30 | K29: 0.00 | L29: 265.10 | M29: 26.51 | O29: 265.1
A30: Капуста свежая | B30: 149.00 | C30: 65.00 | D30: 64.00 | E30: 30.00 | F30: 18.00 | G30: 65.00 | H30: 39.00 | I30: 37.00 | J30: 44.20 | K30: 54.00 | L30: 565.20 | M30: 56.52 | O30: 565.2
A31: Горошек зеленый | B31: 0.00 | C31: 0.00 | D31: 0.00 | E31: 0.00 | F31: 0.00 | G31: 0.00 | H31: 0.00 | I31: 0.00 | J31: 0.00 | K31: 0.00 | L31: 0.00 | M31: 0.00 | O31: 0.0
A32: Огурцы соленые | B32: 9.00 | C32: 0.00 | D32: 0.00 | E32: 0.00 | F32: 20.00 | G32: 0.00 | H32: 0.00 | I32: 20.00 | J32: 0.00 | K32: 0.00 | L32: 49.00 | M32: 4.90 | O32: 49.0
A33: Помидоры свежие | B33: 0.00 | C33: 0.00 | D33: 0.00 | E33: 0.00 | F33: 0.00 | G33: 0.00 | H33: 0.00 | I33: 0.00 | J33: 0.00 | K33: 0.00 | L33: 0.00 | M33: 0.00 | O33: 0.0
A34: Огурцы свежие | B34: 0.00 | C34: 0.00 | D34: 0.00 | E34: 0.00 | F34: 0.00 | G34: 0.00 | H34: 0.00 | I34: 0.00 | J34: 0.00 | K34: 0.00 | L34: 0.00 | M34: 0.00 | O34: 0.0
A35: Томат-паста | B35: 0.00 | C35: 0.00 | D35: 0.00 | E35: 0.00 | F35: 1.20 | G35: 0.00 | H35: 0.00 | I35: 0.00 | J35: 0.00 | K35: 0.00 | L35: 1.20 | M35: 0.12 | O35: 1.2
A36: Масло сливочное | B36: 14.20 | C36: 16.00 | D36: 15.70 | E36: 7.50 | F36: 15.50 | G36: 14.20 | H36: 13.10 | I36: 16.00 | J36: 12.10 | K36: 9.80 | L36: 134.10 | M36: 13.41 | N36: 135 | O36: -0.9 | P36: -0.67
A37: Масло растительное | B37: 5.70 | C37: 5.20 | D37: 8.00 | E37: 11.00 | F37: 5.10 | G37: 6.75 | H37: 6.00 | I37: 5.10 | J37: 5.60 | K37: 8.50 | L37: 66.95 | M37: 6.70 | N37: 68 | O37: -1.1 | P37: -1.54
A38: Фрукты свежие | B38: 70.00 | C38: 96.00 | D38: 60.00 | E38: 60.00 | F38: 70.00 | G38: 70.00 | H38: 70.00 | I38: 70.00 | J38: 96.00 | K38: 60.00 | L38: 722.00 | M38: 72.20 | O38: 722.0
A39: Яблоки | B39: 0.00 | C39: 0.00 | D39: 9.00 | E39: 0.00 | F39: 0.00 | G39: 0.00 | H39: 0.00 | I39: 0.00 | J39: 0.00 | K39: 8.00 | L39: 17.00 | M39: 1.70 | O39: 17.0
A40: Ягоды | B40: 0.00 | C40: 0.00 | D40: 0.00 | E40: 0.00 | F40: 0.00 | G40: 0.00 | H40: 0.00 | I40: 0.00 | J40: 0.00 | K40: 0.00 | L40: 0.00 | M40: 0.00 | O40: 0.0
A41: Лимон | B41: 0.00 | C41: 0.00 | D41: 0.00 | E41: 0.00 | F41: 0.00 | G41: 0.00 | H41: 0.00 | I41: 0.00 | J41: 0.00 | K41: 0.00 | L41: 0.00 | M41: 0.00 | O41: 0.0
A42: Повидло фруктовое | B42: 20.00 | C42: 10.00 | D42: 0.00 | E42: 0.00 | F42: 0.00 | G42: 0.00 | H42: 0.00 | I42: 0.00 | J42: 0.00 | K42: 0.00 | L42: 30.00 | M42: 3.00 | O42: 30.0
A43: Сок | B43: 100.00 | C43: 0.00 | D43: 100.00 | E43: 100.00 | F43: 0.00 | G43: 100.00 | H43: 0.00 | I43: 100.00 | J43: 100.00 | K43: 100.00 | L43: 700.00 | M43: 70.00 | N43: 750 | O43: -50.0 | P43: -6.67
A44: Курага | B44: 0.00 | C44: 0.00 | D44: 13.00 | E44: 0.00 | F44: 0.00 | G44: 13.00 | H44: 0.00 | I44: 0.00 | J44: 0.00 | K44: 0.00 | L44: 26.00 | M44: 2.60 | O44: 26.0
A45: Сухофрукты | B45: 0.00 | C45: 0.00 | D45: 0.00 | E45: 0.00 | F45: 13.00 | G45: 0.00 | H45: 0.00 | I45: 13.00 | J45: 0.00 | K45: 0.00 | L45: 26.00 | M45: 2.60 | O45: 26.0
A46: Урюк | B46: 0.00 | C46: 0.00 | D46: 0.00 | E46: 0.00 | F46: 0.00 | G46: 0.00 | H46: 0.00 | I46: 0.00 | J46: 0.00 | K46: 0.00 | L46: 0.00 | M46: 0.00 | O46: 0.0
A47: Изюм | B47: 0.00 | C47: 0.00 | D47: 0.00 | E47: 0.00 | F47: 10.00 | G47: 0.00 | H47: 0.00 | I47: 0.00 | J47: 4.70 | K47: 0.00 | L47: 14.70 | M47: 1.47 | O47: 14.7
A48: Шиповник | B48: 0.00 | C48: 0.00 | D48: 0.00 | E48: 0.00 | F48: 0.00 | G48: 0.00 | H48: 0.00 | I48: 0.00 | J48: 0.00 | K48: 0.00 | L48: 0.00 | M48: 0.00 | O48: 0.0
A49: Молоко | B49: 107.00 | C49: 264.30 | D49: 175.00 | E49: 75.00 | F49: 186.00 | G49: 154.50 | H49: 114.00 | I49: 168.00 | J49: 202.00 | K49: 190.00 | L49: 1635.80 | M49: 163.58 | O49: 1635.8
A50: Кефир | B50: 130.00 | C50: 0.00 | D50: 0.00 | E50: 130.00 | F50: 0.00 | G50: 0.00 | H50: 130.00 | I50: 0.00 | J50: 0.00 | K50: 130.00 | L50: 520.00 | M50: 52.00 | O50: 520.0
A51: Катык | B51: 0.00 | C51: 0.00 | D51: 130.00 | E51: 0.00 | F51: 0.00 | G51: 130.00 | H51: 0.00 | I51: 0.00 | J51: 130.00 | K51: 0.00 | L51: 390.00 | M51: 39.00
A52: Ряженка | B52: 0.00 | C52: 130.00 | D52: 0.00 | E52: 0.00 | F52: 130.00 | G52: 0.00 | H52: 0.00 | I52: 130.00 | J52: 0.00 | K52: 0.00 | L52: 390.00 | M52: 39.00 | O52: 390.0
A53: Молоко сгущенное | B53: 0.00 | C53: 0.00 | D53: 0.00 | E53: 0.00 | F53: 20.00 | G53: 0.00 | H53: 20.00 | I53: 0.00 | J53: 0.00 | K53: 0.00 | L53: 40.00 | M53: 4.00 | O53: 40.0
A54: Сметана | B54: 5.00 | C54: 8.10 | D54: 0.00 | E54: 13.00 | F54: 22.50 | G54: 5.00 | H54: 3.00 | I54: 5.00 | J54: 5.00 | K54: 0.00 | L54: 66.60 | M54: 6.66 | N54: 68 | O54: -1.4 | P54: -2.06
A55: Творог | B55: 0.00 | C55: 64.00 | D55: 0.00 | E55: 0.00 | F55: 75.00 | G55: 0.00 | H55: 69.00 | I55: 0.00 | J55: 0.00 | K55: 16.00 | L55: 224.00 | M55: 22.40 | N55: 225 | O55: -1.0 | P55: -0.44
A56: Говядина | B56: 64.30 | C56: 24.00 | D56: 17.10 | E56: 63.00 | F56: 0.00 | G56: 17.10 | H56: 74.00 | I56: 67.00 | J56: 17.10 | K56: 35.70 | L56: 379.30 | M56: 37.93 | O56: 379.3
A57: Фарш из говядины | B57: 0.00 | C57: 0.00 | D57: 0.00 | E57: 0.00 | F57: 0.00 | G57: 0.00 | H57: 0.00 | I57: 0.00 | J57: 0.00 | K57: 0.00 | L57: 0.00 | M57: 0.00 | O57: 0.0
A58: Цыплята | B58: 0.00 | C58: 0.00 | D58: 47.00 | E58: 0.00 | F58: 22.00 | G58: 0.00 | H58: 0.00 | I58: 22.00 | J58: 0.00 | K58: 55.60 | L58: 146.60 | M58: 14.66 | N58: 150 | O58: -3.4 | P58: -2.27
A59: Сыр | B59: 0.00 | C59: 5.00 | D59: 0.00 | E59: 5.00 | F59: 0.00 | G59: 5.00 | H59: 5.00 | I59: 5.00 | J59: 0.00 | K59: 5.00 | L59: 30.00 | M59: 3.00 | N59: 30 | O59: 0.0 | P59: 0.00
A60: Рыба | B60: 0.00 | C60: 56.00 | D60: 0.00 | E60: 0.00 | F60: 56.00 | G60: 52.50 | H60: 19.30 | I60: 0.00 | J60: 55.00 | K60: 0.00 | L60: 238.80 | M60: 23.88 | N60: 240.0 | O60: -1.2 | P60: -0.50
A61: Кофейный напиток | B61: 0.00 | C61: 0.00 | D61: 2.50 | E61: 0.00 | F61: 0.00 | G61: 2.50 | H61: 0.00 | I61: 0.00 | J61: 2.50 | K61: 0.00 | L61: 7.50 | M61: 0.75 | N61: 8 | O61: 0.0 | P61: 0.00
A62: Какао-порошок | B62: 0.00 | C62: 1.30 | D62: 0.00 | E62: 0.00 | F62: 1.30 | G62: 0.00 | H62: 0.00 | I62: 1.40 | J62: 0.00 | K62: 0.00 | L62: 4.00 | M62: 0.40 | N62: 4 | O62: 0.0 | P62: 0.00
A63: Кондитерские изделия | B63: 0.00 | C63: 0.00 | D63: 15.00 | E63: 0.00 | F63: 0.00 | G63: 19.00 | H63: 0.00 | I63: 0.00 | J63: 0.00 | K63: 19.00 | L63: 53.00 | M63: 5.30 | O63: 53.0
A64: Конфеты | B64: 0.00 | C64: 0.00 | D64: 0.00 | E64: 0.00 | F64: 0.00 | G64: 0.00 | H64: 0.00 | I64: 0.00 | J64: 0.00 | K64: 0.00 | L64: 0.00 | M64: 0.00
A65: Соль | B65: 3.00 | C65: 3.00 | D65: 2.80 | E65: 3.80 | F65: 2.80 | G65: 3.00 | H65: 3.00 | I65: 3.60 | J65: 3.20 | K65: 2.80 | L65: 31.00 | M65: 3.10 | N65: 30.0 | O65: 1.0 | P65: 3.33
A66: Крахмал | B66: 3.75 | C66: 0.00 | D66: 0.00 | E66: 3.75 | F66: 0.00 | G66: 0.00 | H66: 3.75 | I66: 0.00 | J66: 0.00 | K66: 3.75 | L66: 15.00 | M66: 1.50 | N66: 15.0 | O66: 0.0 | P66: 0.00
A67: Сухари панировочные | B67: 5.50 | C67: 0.00 | D67: 0.00 | E67: 3.00 | F67: 2.50 | G67: 5.25 | H67: 3.00 | I67: 3.00 | J67: 5.30 | K67: 5.00 | L67: 32.55 | M67: 3.26 | O67: 32.6
A68: Напиток витаминный | B68: 0.00 | C68: 0.00 | D68: 0.00 | E68: 0.00 | F68: 0.00 | G68: 0.00 | H68: 0.00 | I68: 0.00 | J68: 0.00 | K68: 0.00 | L68: 0.00 | M68: 0.00 | N68: 0 | O68: 0.0
A69: Крупы, бобовые | B69: 3.00 | C69: 23.00 | D69: 35.00 | E69: 25.00 | F69: 43.00 | G69: 31.75 | H69: 6.60 | I69: 27.00 | J69: 23.00 | K69: 9.00 | L69: 226.35 | M69: 22.64 | N69: 225 | O69: 1.3 | P69: 0.60
A70: Овощи разные | B70: 225.80 | C70: 146.40 | D70: 163.00 | E70: 137.25 | F70: 90.20 | G70: 176.10 | H70: 208.95 | I70: 107.20 | J70: 113.10 | K70: 133.40 | L70: 1501.40 | M70: 150.14 | N70: 1540 | O70: -38.6 | P70: -2.51
A71: Фрукты | B71: 70.00 | C71: 96.00 | D71: 69.00 | E71: 60.00 | F71: 70.00 | G71: 70.00 | H71: 70.00 | I71: 70.00 | J71: 96.00 | K71: 68.00 | L71: 739.00 | M71: 73.90 | N71: 710 | O71: 29.0 | P71: 4.08
A72: Фрукты сухие | B72: 0.00 | C72: 0.00 | D72: 13.00 | E72: 0.00 | F72: 23.00 | G72: 13.00 | H72: 0.00 | I72: 13.00 | J72: 4.70 | K72: 0.00 | L72: 66.70 | M72: 6.67 | N72: 68.0 | O72: -1.3 | P72: -1.91
A73: Молочные прод. | B73: 237.00 | C73: 394.30 | D73: 305.00 | E73: 205.00 | F73: 336.00 | G73: 284.50 | H73: 264.00 | I73: 298.00 | J73: 332.00 | K73: 320.00 | L73: 2975.80 | M73: 297.58 | N73: 2925.0 | O73: 50.8 | P73: 1.74
A74: Говядина | B74: 64.30 | C74: 24.00 | D74: 17.10 | E74: 63.00 | F74: 0.00 | G74: 17.10 | H74: 74.00 | I74: 67.00 | J74: 17.10 | K74: 35.70 | L74: 379.30 | M74: 37.93 | N74: 380.0 | O74: -0.7 | P74: -0.18
A75: Хлеб пшеничный | B75: 50.00 | C75: 55.00 | D75: 25.00 | E75: 40.00 | F75: 25.00 | G75: 45.00 | H75: 40.00 | I75: 40.00 | J75: 40.00 | K75: 48.00 | L75: 408.00 | M75: 40.80 | N75: 450.0 | O75: -42.0 | P75: -9.33
A76: Кондитерские изделия | B76: 0.00 | C76: 0.00 | D76: 15.00 | E76: 0.00 | F76: 0.00 | G76: 19.00 | H76: 0.00 | I76: 0.00 | J76: 0.00 | K76: 19.00 | L76: 53.00 | N76: 53 | O76: 0.0 | P76: 0.00
E79: Расход продуктов
D80: до 3 лет | F80: с 8 - 10,5 часовым пребыванием | L80: брутто | P80: мясо потушное
A81: Наименов. прод. | B81: 1 | C81: 2 | D81: 3 | E81: 4 | F81: 5 | G81: 6 | H81: 7 | I81: 8 | J81: 9 | K81: 10 | L81: Кол-во | M81: Среднее
A83: Сахар | B83: 22.40 | C83: 34.14 | D83: 29.30 | E83: 18.00 | F83: 38.30 | G83: 31.30 | H83: 29.00 | I83: 29.90 | J83: 25.10 | K83: 22.70 | L83: 280.14 | M83: 28.01
A84: Заварка | B84: 0.70 | C84: 0.20 | D84: 0.20 | E84: 0.60 | F84: 0.20 | G84: 0.20 | H84: 0.70 | I84: 0.20 | J84: 0.20 | K84: 0.60 | L84: 3.80 | M84: 0.38
A85: Яйцо | B85: 15.80 | C85: 13.00 | D85: 4.82 | E85: 11.00 | F85: 5.60 | G85: 14.50 | H85: 75.52 | I85: 6.90 | J85: 13.50 | K85: 11.10 | L85: 171.74 | M85: 17.17
A86: Дрожжи сухие | B86: 0.20 | C86: 0.00 | D86: 0.20 | E86: 0.00 | F86: 0.00 | G86: 0.20 | H86: 0.00 | I86: 0.20 | J86: 0.00 | K86: 0.20 | L86: 1.00 | M86: 0.10
A87: Батон нарезной | B87: 25.00 | C87: 25.00 | D87: 25.00 | E87: 25.00 | F87: 25.00 | G87: 25.00 | H87: 25.00 | I87: 25.00 | J87: 25.00 | K87: 25.00 | L87: 250.00 | M87: 25.00
A88: Хлеб пшеничный 1с | B88: 25.00 | C88: 30.00 | D88: 0.00 | E88: 15.00 | F88: 0.00 | G88: 20.00 | H88: 15.00 | I88: 15.00 | J88: 15.00 | K88: 23.00 | L88: 158.00 | M88: 15.80
A89: Хлеб сельский | B89: 30.00 | C89: 30.00 | D89: 30.00 | E89: 30.00 | F89: 30.00 | G89: 30.00 | H89: 30.00 | I89: 30.00 | J89: 30.00 | K89: 30.00 | L89: 300.00 | M89: 30.00
A90: Мука пшеничная | B90: 25.70 | C90: 9.00 | D90: 38.50 | E90: 3.50 | F90: 8.25 | G90: 35.00 | H90: 7.00 | I90: 25.30 | J90: 1.10 | K90: 40.10 | L90: 193.45 | M90: 19.35
A91: Кисель-концентрат | B91: 15.20 | C91: 0.00 | D91: 0.00 | E91: 15.20 | F91: 0.00 | G91: 0.00 | H91: 15.20 | I91: 0.00 | J91: 0.00 | K91: 15.20 | L91: 60.80 | M91: 6.08
A92: Макаронные изделия | B92: 20.00 | C92: 5.00 | D92: 0.00 | E92: 12.00 | F92: 0.00 | G92: 23.80 | H92: 0.00 | I92: 0.00 | J92: 0.00 | K92: 0.00 | L92: 60.80 | M92: 6.08
A93: Крупа рисовая | B93: 0.00 | C93: 0.00 | D93: 0.00 | E93: 0.00 | F93: 0.00 | G93: 0.00 | H93: 0.00 | I93: 12.00 | J93: 0.00 | K93: 9.00 | L93: 21.00 | M93: 2.10
A94: Крупа кукурузная | B94: 0.00 | C94: 0.00 | D94: 0.00 | E94: 0.00 | F94: 30.00 | G94: 0.00 | H94: 0.00 | I94: 0.00 | J94: 0.00 | K94: 0.00 | L94: 30.00 | M94: 3.00
A95: Крупа манная | B95: 0.00 | C95: 23.00 | D95: 0.00 | E95: 0.00 | F95: 7.00 | G95: 1.75 | H95: 0.00 | I95: 0.00 | J95: 0.00 | K95: 0.00 | L95: 31.75 | M95: 3.18
A96: Горох | B96: 0.00 | C96: 0.00 | D96: 12.20 | E96: 0.00 | F96: 0.00 | G96: 0.00 | H96: 0.00 | I96: 0.00 | J96: 0.00 | K96: 0.00 | L96: 12.20 | M96: 1.22
A97: Крупа пшенная | B97: 0.00 | C97: 0.00 | D97: 0.00 | E97: 0.00 | F97: 0.00 | G97: 30.00 | H97: 0.00 | I97: 15.00 | J97: 0.00 | K97: 0.00 | L97: 45.00 | M97: 4.50
A98: Крупа ячневая | B98: 0.00 | C98: 0.00 | D98: 0.00 | E98: 0.00 | F98: 0.00 | G98: 0.00 | H98: 0.00 | I98: 0.00 | J98: 0.00 | K98: 0.00 | L98: 0.00 | M98: 0.00
A99: Полба | B99: 0.00 | C99: 0.00 | D99: 0.00 | E99: 0.00 | F99: 0.00 | G99: 0.00 | H99: 0.00 | I99: 0.00 | J99: 0.00 | K99: 0.00 | L99: 0.00 | M99: 0.00
A100: Крупа перловая | B100: 3.00 | C100: 0.00 | D100: 0.00 | E100: 0.00 | F100: 6.00 | G100: 0.00 | H100: 6.60 | I100: 0.00 | J100: 0.00 | K100: 0.00 | L100: 15.60 | M100: 1.56
A101: Крупа геркулесовая | B101: 0.00 | C101: 0.00 | D101: 23.00 | E101: 0.00 | F101: 0.00 | G101: 0.00 | H101: 0.00 | I101: 0.00 | J101: 0.00 | K101: 0.00 | L101: 23.00 | M101: 2.30
A102: Крупа пшеничная | B102: 0.00 | C102: 0.00 | D102: 0.00 | E102: 0.00 | F102: 0.00 | G102: 0.00 | H102: 0.00 | I102: 0.00 | J102: 23.00 | K102: 0.00 | L102: 23.00 | M102: 2.30
A103: Крупа гречневая | B103: 0.00 | C103: 0.00 | D103: 0.00 | E103: 25.00 | F103: 0.00 | G103: 0.00 | H103: 0.00 | I103: 0.00 | J103: 0.00 | K103: 0.00 | L103: 25.00 | M103: 2.50
A104: Картофель | B104: 60.00 | C104: 174.00 | D104: 106.80 | E104: 144.00 | F104: 142.80 | G104: 34.50 | H104: 137.70 | I104: 200.00 | J104: 190.20 | K104: 64.00 | L104: 1254.00 | M104: 125.40
A105: Морковь | B105: 11.30 | C105: 74.80 | D105: 81.50 | E105: 28.40 | F105: 50.50 | G105: 63.80 | H105: 100.10 | I105: 8.80 | J105: 34.90 | K105: 66.80 | L105: 520.90 | M105: 52.09
A106: Лук репчатый | B106: 10.00 | C106: 26.50 | D106: 41.80 | E106: 29.90 | F106: 13.50 | G106: 25.30 | H106: 36.90 | I106: 23.00 | J106: 9.30 | K106: 29.90 | L106: 246.10 | M106: 24.61
A107: Свекла | B107: 64.00 | C107: 0.00 | D107: 0.00 | E107: 78.70 | F107: 0.00 | G107: 48.00 | H107: 78.70 | I107: 30.00 | J107: 42.00 | K107: 0.00 | L107: 341.40 | M107: 34.14
A108: Капуста свежая | B108: 186.00 | C108: 81.20 | D108: 79.00 | E108: 37.50 | F108: 22.50 | G108: 81.25 | H108: 48.00 | I108: 46.20 | J108: 58.20 | K108: 66.00 | L108: 705.85 | M108: 70.59
A109: Горошек зеленый | B109: 0.00 | C109: 0.00 | D109: 0.00 | E109: 0.00 | F109: 0.00 | G109: 0.00 | H109: 0.00 | I109: 0.00 | J109: 0.00 | K109: 0.00 | L109: 0.00 | M109: 0.00
A110: Огурцы соленые | B110: 16.00 | C110: 0.00 | D110: 0.00 | E110: 0.00 | F110: 36.40 | G110: 0.00 | H110: 0.00 | I110: 36.40 | J110: 0.00 | K110: 0.00 | L110: 88.80 | M110: 8.88
A111: Помидоры свежие | B111: 0.00 | C111: 0.00 | D111: 0.00 | E111: 0.00 | F111: 0.00 | G111: 0.00 | H111: 0.00 | I111: 0.00 | J111: 0.00 | K111: 0.00 | L111: 0.00 | M111: 0.00
A112: Огурцы свежие | B112: 0.00 | C112: 0.00 | D112: 0.00 | E112: 0.00 | F112: 0.00 | G112: 0.00 | H112: 0.00 | I112: 0.00 | J112: 0.00 | K112: 0.00 | L112: 0.00 | M112: 0.00
A113: Томат-паста | B113: 0.00 | C113: 0.00 | D113: 0.00 | E113: 0.00 | F113: 1.20 | G113: 0.00 | H113: 0.00 | I113: 0.00 | J113: 0.00 | K113: 0.00 | L113: 1.20 | M113: 0.12
A114: Масло сливочное | B114: 14.20 | C114: 16.00 | D114: 15.70 | E114: 7.50 | F114: 15.50 | G114: 14.20 | H114: 13.10 | I114: 16.00 | J114: 12.10 | K114: 9.80 | L114: 134.10 | M114: 13.41
A115: Масло растительное | B115: 5.70 | C115: 5.20 | D115: 8.00 | E115: 11.00 | F115: 5.10 | G115: 6.75 | H115: 6.00 | I115: 5.10 | J115: 5.60 | K115: 8.50 | L115: 66.95 | M115: 6.70
A116: Фрукты свежие | B116: 80.00 | C116: 109.00 | D116: 68.00 | E116: 68.00 | F116: 80.00 | G116: 80.00 | H116: 80.00 | I116: 80.00 | J116: 109.00 | K116: 68.00 | L116: 822.00 | M116: 82.20
A117: Яблоки | B117: 0.00 | C117: 0.00 | D117: 10.00 | E117: 0.00 | F117: 0.00 | G117: 0.00 | H117: 0.00 | I117: 0.00 | J117: 0.00 | K117: 9.30 | L117: 19.30 | M117: 1.93
A118: Ягоды | B118: 0.00 | C118: 0.00 | D118: 0.00 | E118: 0.00 | F118: 0.00 | G118: 0.00 | H118: 0.00 | I118: 0.00 | J118: 0.00 | K118: 0.00 | L118: 0.00 | M118: 0.00
A119: Лимон | B119: 0.00 | C119: 0.00 | D119: 0.00 | E119: 0.00 | F119: 0.00 | G119: 0.00 | H119: 0.00 | I119: 0.00 | J119: 0.00 | K119: 0.00 | L119: 0.00 | M119: 0.00
A120: Повидло фруктовое | B120: 0.00 | C120: 10.00 | D120: 0.00 | E120: 0.00 | F120: 0.00 | G120: 0.00 | H120: 0.00 | I120: 0.00 | J120: 0.00 | K120: 0.00 | L120: 10.00 | M120: 1.00
A121: Сок | B121: 100.00 | C121: 0.00 | D121: 100.00 | E121: 100.00 | F121: 0.00 | G121: 100.00 | H121: 0.00 | I121: 100.00 | J121: 100.00 | K121: 100.00 | L121: 700.00 | M121: 70.00
A122: Курага | B122: 0.00 | C122: 0.00 | D122: 13.30 | E122: 0.00 | F122: 0.00 | G122: 13.30 | H122: 0.00 | I122: 0.00 | J122: 0.00 | K122: 0.00 | L122: 26.60 | M122: 2.66
A123: Сухофрукты | B123: 0.00 | C123: 0.00 | D123: 0.00 | E123: 0.00 | F123: 13.30 | G123: 0.00 | H123: 0.00 | I123: 13.30 | J123: 0.00 | K123: 0.00 | L123: 26.60 | M123: 2.66
A124: Урюк | B124: 0.00 | C124: 0.00 | D124: 0.00 | E124: 0.00 | F124: 0.00 | G124: 0.00 | H124: 0.00 | I124: 0.00 | J124: 0.00 | K124: 0.00 | L124: 0.00 | M124: 0.00
A125: Изюм | B125: 0.00 | C125: 0.00 | D125: 0.00 | E125: 0.00 | F125: 10.20 | G125: 0.00 | H125: 0.00 | I125: 0.00 | J125: 5.00 | K125: 0.00 | L125: 15.20 | M125: 1.52
A126: Шиповник | B126: 0.00 | C126: 0.00 | D126: 0.00 | E126: 0.00 | F126: 0.00 | G126: 0.00 | H126: 0.00 | I126: 0.00 | J126: 0.00 | K126: 0.00 | L126: 0.00 | M126: 0.00
A127: Молоко | B127: 107.00 | C127: 264.30 | D127: 175.00 | E127: 75.00 | F127: 186.80 | G127: 154.50 | H127: 116.00 | I127: 170.00 | J127: 202.80 | K127: 192.00 | L127: 1643.40 | M127: 164.34
A128: Кефир | B128: 134.00 | C128: 0.00 | D128: 0.00 | E128: 134.00 | F128: 0.00 | G128: 0.00 | H128: 134.00 | I128: 0.00 | J128: 0.00 | K128: 134.00 | L128: 536.00 | M128: 53.60
A129: Ряженка | B129: 0.00 | C129: 134.00 | D129: 0.00 | E129: 0.00 | F129: 134.00 | G129: 0.00 | H129: 0.00 | I129: 134.00 | J129: 0.00 | K129: 0.00 | L129: 402.00 | M129: 40.20
A130: Катык | B130: 0.00 | C130: 0.00 | D130: 134.00 | E130: 0.00 | F130: 0.00 | G130: 134.00 | H130: 0.00 | I130: 0.00 | J130: 134.00 | K130: 0.00
A131: Молоко сгущенное | B131: 0.00 | C131: 0.00 | D131: 0.00 | E131: 0.00 | F131: 20.00 | G131: 0.00 | H131: 20.00 | I131: 0.00 | J131: 0.00 | K131: 0.00 | L131: 40.00 | M131: 4.00
A132: Сметана | B132: 5.00 | C132: 8.10 | D132: 0.00 | E132: 13.00 | F132: 22.50 | G132: 5.00 | H132: 3.00 | I132: 5.00 | J132: 5.00 | K132: 0.00 | L132: 66.60 | M132: 6.66
A133: Творог | B133: 0.00 | C133: 65.00 | D133: 0.00 | E133: 0.00 | F133: 76.00 | G133: 0.00 | H133: 70.30 | I133: 0.00 | J133: 0.00 | K133: 16.00 | L133: 227.30 | M133: 22.73
A134: Говядина | B134: 88.00 | C134: 33.00 | D134: 23.10 | E134: 85.00 | F134: 0.00 | G134: 23.10 | H134: 100.00 | I134: 91.00 | J134: 23.10 | K134: 48.70 | L134: 515.00 | M134: 51.50
A135: Фарш из говядины | B135: 0.00 | C135: 0.00 | D135: 0.00 | E135: 0.00 | F135: 0.00 | G135: 0.00 | H135: 0.00 | I135: 0.00 | J135: 0.00 | K135: 0.00 | L135: 0.00 | M135: 0.00
A136: Цыплята | B136: 0.00 | C136: 0.00 | D136: 73.00 | E136: 0.00 | F136: 31.50 | G136: 0.00 | H136: 0.00 | I136: 32.00 | J136: 0.00 | K136: 82.80 | L136: 219.30 | M136: 21.93
A137: Сыр | B137: 0.00 | C137: 5.50 | D137: 0.00 | E137: 5.50 | F137: 0.00 | G137: 5.50 | H137: 5.50 | I137: 5.50 | J137: 0.00 | K137: 5.50 | L137: 33.00 | M137: 3.30
A138: Рыба | B138: 0.00 | C138: 70.00 | D138: 0.00 | E138: 0.00 | F138: 70.00 | G138: 65.60 | H138: 24.30 | I138: 0.00 | J138: 69.00 | K138: 0.00 | L138: 298.90 | M138: 29.89
A139: Кофейный напиток | B139: 0.00 | C139: 0.00 | D139: 2.50 | E139: 0.00 | F139: 0.00 | G139: 2.50 | H139: 0.00 | I139: 0.00 | J139: 2.50 | K139: 0.00 | L139: 7.50 | M139: 0.75
A140: Какао-порошок | B140: 0.00 | C140: 1.30 | D140: 0.00 | E140: 0.00 | F140: 1.30 | G140: 0.00 | H140: 0.00 | I140: 1.40 | J140: 0.00 | K140: 0.00 | L140: 4.00 | M140: 0.40
A141: Кондитерские изделия | B141: 0.00 | C141: 0.00 | D141: 15.00 | E141: 0.00 | F141: 0.00 | G141: 19.00 | H141: 0.00 | I141: 0.00 | J141: 0.00 | K141: 19.00 | L141: 53.00 | M141: 5.30
A142: Конфеты | B142: 0.00 | C142: 0.00 | D142: 0.00 | E142: 0.00 | F142: 0.00 | G142: 0.00 | H142: 0.00 | I142: 0.00 | J142: 0.00 | K142: 0.00 | L142: 0.00
A143: Соль | B143: 0.00 | C143: 0.00 | D143: 0.00 | E143: 0.00 | F143: 0.00 | G143: 0.00 | H143: 0.00 | I143: 0.00 | J143: 0.00 | K143: 0.00 | L143: 0.00 | M143: 0.00
A144: Крахмал | B144: 0.00 | C144: 0.00 | D144: 0.00 | E144: 0.00 | F144: 0.00 | G144: 0.00 | H144: 0.00 | I144: 0.00 | J144: 0.00 | K144: 0.00 | L144: 0.00 | M144: 0.00
A145: Сухари панировочные | B145: 5.50 | C145: 0.00 | D145: 0.00 | E145: 3.00 | F145: 2.50 | G145: 5.25 | H145: 3.00 | I145: 3.00 | J145: 5.30 | K145: 5.00 | L145: 32.55 | M145: 3.26
A146: Напиток витаминный | B146: 0.00 | C146: 0.00 | D146: 0.00 | E146: 0.00 | F146: 0.00 | G146: 0.00 | H146: 0.00 | I146: 0.00 | J146: 0.00 | K146: 0.00 | L146: 0.00 | M146: 0.00
A147: Крупы, бобовые | B147: 3.00 | C147: 23.00 | D147: 35.20 | E147: 25.00 | F147: 43.00 | G147: 31.75 | H147: 6.60 | I147: 27.00 | J147: 23.00 | K147: 9.00 | L147: 226.55 | M147: 22.66
A148: Овощи разные | B148: 287.30 | C148: 182.50 | D148: 202.30 | E148: 174.50 | F148: 124.10 | G148: 218.35 | H148: 263.70 | I148: 144.40 | J148: 144.40 | K148: 162.70 | L148: 1904.25 | M148: 190.43
A149: Фрукты | B149: 80.00 | C149: 109.00 | D149: 78.00 | E149: 68.00 | F149: 80.00 | G149: 80.00 | H149: 80.00 | I149: 80.00 | J149: 109.00 | K149: 77.30 | L149: 841.30 | M149: 84.13
A150: Фрукты сухие | B150: 0.00 | C150: 0.00 | D150: 13.30 | E150: 0.00 | F150: 23.50 | G150: 13.30 | H150: 0.00 | I150: 13.30 | J150: 5.00 | K150: 0.00 | L150: 68.40 | M150: 6.84
A151: Молочные прод. | B151: 241.00 | C151: 398.30 | D151: 309.00 | E151: 209.00 | F151: 340.80 | G151: 288.50 | H151: 270.00 | I151: 304.00 | J151: 336.80 | K151: 326.00 | L151: 3023.40 | M151: 302.34
A152: Говядина | B152: 88.00 | C152: 33.00 | D152: 23.10 | E152: 85.00 | F152: 0.00 | G152: 23.10 | H152: 100.00 | I152: 91.00 | J152: 23.10 | K152: 48.70 | L152: 515.00 | M152: 51.50
A153: Хлеб пшеничный | B153: 50.00 | C153: 55.00 | D153: 25.00 | E153: 40.00 | F153: 25.00 | G153: 45.00 | H153: 40.00 | I153: 40.00 | J153: 40.00 | K153: 48.00 | L153: 408.00 | M153: 40.80
A154: Кондитерские изделия | B154: 0.00 | C154: 0.00 | D154: 15.00 | E154: 0.00 | F154: 0.00 | G154: 19.00 | H154: 0.00 | I154: 0.00 | J154: 0.00 | K154: 19.00 | L154: 53.00
A156: утв. Ст-ть78,80
C157: Расход продуктов
D158: до 3 лет | F158: с 8 - 10,5 часовым пребыванием | L158: брутто | P158: лопатка, фарш
A159: Наименов. прод. | B159: 1 | C159: 2 | D159: 3 | E159: 4 | F159: 5 | G159: 6 | H159: 7 | I159: 8 | J159: 9 | K159: 10 | L159: Кол-во | M159: Среднее
A161: Сахар | B161: 22.40 | C161: 34.14 | D161: 29.30 | E161: 18.00 | F161: 38.30 | G161: 31.30 | H161: 29.00 | I161: 29.90 | J161: 25.10 | K161: 22.70 | L161: 280.14 | M161: 28.01
A162: Заварка | B162: 0.70 | C162: 0.20 | D162: 0.20 | E162: 0.60 | F162: 0.20 | G162: 0.20 | H162: 0.70 | I162: 0.20 | J162: 0.20 | K162: 0.60 | L162: 3.80 | M162: 0.38
A163: Яйцо | B163: 15.80 | C163: 13.00 | D163: 4.82 | E163: 11.00 | F163: 5.60 | G163: 14.50 | H163: 75.52 | I163: 6.90 | J163: 13.50 | K163: 11.10 | L163: 171.74 | M163: 17.17
A164: Дрожжи сухие | B164: 0.20 | C164: 0.00 | D164: 0.20 | E164: 0.00 | F164: 0.00 | G164: 0.20 | H164: 0.00 | I164: 0.20 | J164: 0.00 | K164: 0.20 | L164: 1.00 | M164: 0.10
A165: Батон нарезной | B165: 25.00 | C165: 25.00 | D165: 25.00 | E165: 25.00 | F165: 25.00 | G165: 25.00 | H165: 25.00 | I165: 25.00 | J165: 25.00 | K165: 25.00 | L165: 250.00 | M165: 25.00
A166: Хлеб пшеничный 1с | B166: 25.00 | C166: 30.00 | D166: 0.00 | E166: 15.00 | F166: 0.00 | G166: 20.00 | H166: 15.00 | I166: 15.00 | J166: 15.00 | K166: 23.00 | L166: 158.00 | M166: 15.80
A167: Хлеб сельский | B167: 30.00 | C167: 30.00 | D167: 30.00 | E167: 30.00 | F167: 30.00 | G167: 30.00 | H167: 30.00 | I167: 30.00 | J167: 30.00 | K167: 30.00 | L167: 300.00 | M167: 30.00
A168: Мука пшеничная | B168: 25.70 | C168: 9.00 | D168: 38.50 | E168: 3.50 | F168: 8.25 | G168: 35.00 | H168: 7.00 | I168: 25.30 | J168: 1.10 | K168: 40.10 | L168: 193.45 | M168: 19.35
A169: Кисель-концентрат | B169: 15.20 | C169: 0.00 | D169: 0.00 | E169: 15.20 | F169: 0.00 | G169: 0.00 | H169: 15.20 | I169: 0.00 | J169: 0.00 | K169: 15.20 | L169: 60.80 | M169: 6.08
A170: Макаронные изделия | B170: 20.00 | C170: 5.00 | D170: 0.00 | E170: 12.00 | F170: 0.00 | G170: 23.80 | H170: 0.00 | I170: 0.00 | J170: 0.00 | K170: 0.00 | L170: 60.80 | M170: 6.08
A171: Крупа рисовая | B171: 0.00 | C171: 0.00 | D171: 0.00 | E171: 0.00 | F171: 0.00 | G171: 0.00 | H171: 0.00 | I171: 12.00 | J171: 0.00 | K171: 9.00 | L171: 21.00 | M171: 2.10
A172: Крупа кукурузная | B172: 0.00 | C172: 0.00 | D172: 0.00 | E172: 0.00 | F172: 30.00 | G172: 0.00 | H172: 0.00 | I172: 0.00 | J172: 0.00 | K172: 0.00 | L172: 30.00 | M172: 3.00
A173: Крупа манная | B173: 0.00 | C173: 23.00 | D173: 0.00 | E173: 0.00 | F173: 7.00 | G173: 1.75 | H173: 0.00 | I173: 0.00 | J173: 0.00 | K173: 0.00 | L173: 31.75 | M173: 3.18
A174: Горох | B174: 0.00 | C174: 0.00 | D174: 12.20 | E174: 0.00 | F174: 0.00 | G174: 0.00 | H174: 0.00 | I174: 0.00 | J174: 0.00 | K174: 0.00 | L174: 12.20 | M174: 1.22
A175: Крупа пшенная | B175: 0.00 | C175: 0.00 | D175: 0.00 | E175: 0.00 | F175: 0.00 | G175: 30.00 | H175: 0.00 | I175: 15.00 | J175: 0.00 | K175: 0.00 | L175: 45.00 | M175: 4.50
A176: Крупа ячневая | B176: 0.00 | C176: 0.00 | D176: 0.00 | E176: 0.00 | F176: 0.00 | G176: 0.00 | H176: 0.00 | I176: 0.00 | J176: 0.00 | K176: 0.00 | L176: 0.00 | M176: 0.00
A177: Полба | B177: 0.00 | C177: 0.00 | D177: 0.00 | E177: 0.00 | F177: 0.00 | G177: 0.00 | H177: 0.00 | I177: 0.00 | J177: 0.00 | K177: 0.00 | L177: 0.00 | M177: 0.00
A178: Крупа перловая | B178: 3.00 | C178: 0.00 | D178: 0.00 | E178: 0.00 | F178: 6.00 | G178: 0.00 | H178: 6.60 | I178: 0.00 | J178: 0.00 | K178: 0.00 | L178: 15.60 | M178: 1.56
A179: Крупа геркулесовая | B179: 0.00 | C179: 0.00 | D179: 23.00 | E179: 0.00 | F179: 0.00 | G179: 0.00 | H179: 0.00 | I179: 0.00 | J179: 0.00 | K179: 0.00 | L179: 23.00 | M179: 2.30
A180: Крупа пшеничная | B180: 0.00 | C180: 0.00 | D180: 0.00 | E180: 0.00 | F180: 0.00 | G180: 0.00 | H180: 0.00 | I180: 0.00 | J180: 23.00 | K180: 0.00 | L180: 23.00 | M180: 2.30
A181: Крупа гречневая | B181: 0.00 | C181: 0.00 | D181: 0.00 | E181: 25.00 | F181: 0.00 | G181: 0.00 | H181: 0.00 | I181: 0.00 | J181: 0.00 | K181: 0.00 | L181: 25.00 | M181: 2.50
A182: Картофель | B182: 60.00 | C182: 174.00 | D182: 106.80 | E182: 144.00 | F182: 142.80 | G182: 34.50 | H182: 137.70 | I182: 200.00 | J182: 190.20 | K182: 64.00 | L182: 1254.00 | M182: 125.40
A183: Морковь | B183: 11.30 | C183: 74.80 | D183: 81.50 | E183: 28.40 | F183: 50.50 | G183: 63.80 | H183: 100.10 | I183: 8.80 | J183: 34.90 | K183: 66.80 | L183: 520.90 | M183: 52.09
A184: Лук репчатый | B184: 10.00 | C184: 26.50 | D184: 41.80 | E184: 29.90 | F184: 13.50 | G184: 25.30 | H184: 36.90 | I184: 23.00 | J184: 9.30 | K184: 29.90 | L184: 246.10 | M184: 24.61
A185: Свекла | B185: 64.00 | C185: 0.00 | D185: 0.00 | E185: 78.70 | F185: 0.00 | G185: 48.00 | H185: 78.70 | I185: 30.00 | J185: 42.00 | K185: 0.00 | L185: 341.40 | M185: 34.14
A186: Капуста свежая | B186: 186.00 | C186: 81.20 | D186: 79.00 | E186: 37.50 | F186: 22.50 | G186: 81.25 | H186: 48.00 | I186: 46.20 | J186: 58.20 | K186: 66.00 | L186: 705.85 | M186: 70.59
A187: Горошек зеленый | B187: 0.00 | C187: 0.00 | D187: 0.00 | E187: 0.00 | F187: 0.00 | G187: 0.00 | H187: 0.00 | I187: 0.00 | J187: 0.00 | K187: 0.00 | L187: 0.00 | M187: 0.00
A188: Огурцы соленые | B188: 16.00 | C188: 0.00 | D188: 0.00 | E188: 0.00 | F188: 36.40 | G188: 0.00 | H188: 0.00 | I188: 36.40 | J188: 0.00 | K188: 0.00 | L188: 88.80 | M188: 8.88
A189: Помидоры свежие | B189: 0.00 | C189: 0.00 | D189: 0.00 | E189: 0.00 | F189: 0.00 | G189: 0.00 | H189: 0.00 | I189: 0.00 | J189: 0.00 | K189: 0.00 | L189: 0.00 | M189: 0.00
A190: Огурцы свежие | B190: 0.00 | C190: 0.00 | D190: 0.00 | E190: 0.00 | F190: 0.00 | G190: 0.00 | H190: 0.00 | I190: 0.00 | J190: 0.00 | K190: 0.00 | L190: 0.00 | M190: 0.00
A191: Томат-паста | B191: 0.00 | C191: 0.00 | D191: 0.00 | E191: 0.00 | F191: 1.20 | G191: 0.00 | H191: 0.00 | I191: 0.00 | J191: 0.00 | K191: 0.00 | L191: 1.20 | M191: 0.12
A192: Масло сливочное | B192: 14.20 | C192: 16.00 | D192: 15.70 | E192: 7.50 | F192: 15.50 | G192: 14.20 | H192: 13.10 | I192: 16.00 | J192: 12.10 | K192: 9.80 | L192: 134.10 | M192: 13.41
A193: Масло растительное | B193: 5.70 | C193: 5.20 | D193: 8.00 | E193: 11.00 | F193: 5.10 | G193: 6.75 | H193: 6.00 | I193: 5.10 | J193: 5.60 | K193: 8.50 | L193: 66.95 | M193: 6.70
A194: Фрукты свежие | B194: 80.00 | C194: 109.00 | D194: 68.00 | E194: 68.00 | F194: 80.00 | G194: 80.00 | H194: 80.00 | I194: 80.00 | J194: 109.00 | K194: 68.00 | L194: 822.00 | M194: 82.20
A195: Яблоки | B195: 0.00 | C195: 0.00 | D195: 10.00 | E195: 0.00 | F195: 0.00 | G195: 0.00 | H195: 0.00 | I195: 0.00 | J195: 0.00 | K195: 9.30 | L195: 19.30 | M195: 1.93
A196: Ягоды | B196: 0.00 | C196: 0.00 | D196: 0.00 | E196: 0.00 | F196: 0.00 | G196: 0.00 | H196: 0.00 | I196: 0.00 | J196: 0.00 | K196: 0.00 | L196: 0.00 | M196: 0.00
A197: Лимон | B197: 0.00 | C197: 0.00 | D197: 0.00 | E197: 0.00 | F197: 0.00 | G197: 0.00 | H197: 0.00 | I197: 0.00 | J197: 0.00 | K197: 0.00 | L197: 0.00 | M197: 0.00
A198: Повидло фруктовое | B198: 0.00 | C198: 10.00 | D198: 0.00 | E198: 0.00 | F198: 0.00 | G198: 0.00 | H198: 0.00 | I198: 0.00 | J198: 0.00 | K198: 0.00 | L198: 10.00 | M198: 1.00
A199: Сок | B199: 100.00 | C199: 0.00 | D199: 100.00 | E199: 100.00 | F199: 0.00 | G199: 100.00 | H199: 0.00 | I199: 100.00 | J199: 100.00 | K199: 100.00 | L199: 700.00 | M199: 70.00
A200: Курага | B200: 0.00 | C200: 0.00 | D200: 13.30 | E200: 0.00 | F200: 0.00 | G200: 13.30 | H200: 0.00 | I200: 0.00 | J200: 0.00 | K200: 0.00 | L200: 26.60 | M200: 2.66
A201: Сухофрукты | B201: 0.00 | C201: 0.00 | D201: 0.00 | E201: 0.00 | F201: 13.30 | G201: 0.00 | H201: 0.00 | I201: 13.30 | J201: 0.00 | K201: 0.00 | L201: 26.60 | M201: 2.66
A202: Урюк | B202: 0.00 | C202: 0.00 | D202: 0.00 | E202: 0.00 | F202: 0.00 | G202: 0.00 | H202: 0.00 | I202: 0.00 | J202: 0.00 | K202: 0.00 | L202: 0.00 | M202: 0.00
A203: Изюм | B203: 0.00 | C203: 0.00 | D203: 0.00 | E203: 0.00 | F203: 10.20 | G203: 0.00 | H203: 0.00 | I203: 0.00 | J203: 5.00 | K203: 0.00 | L203: 15.20 | M203: 1.52
A204: Шиповник | B204: 0.00 | C204: 0.00 | D204: 0.00 | E204: 0.00 | F204: 0.00 | G204: 0.00 | H204: 0.00 | I204: 0.00 | J204: 0.00 | K204: 0.00 | L204: 0.00 | M204: 0.00
A205: Молоко | B205: 107.00 | C205: 264.30 | D205: 175.00 | E205: 75.00 | F205: 186.80 | G205: 154.50 | H205: 116.00 | I205: 170.00 | J205: 202.80 | K205: 192.00 | L205: 1643.40 | M205: 164.34
... 28 more rows

Sheet кал1-3
D2: Калорийность в разрезе
D3: ДОУ от 1 до 3 лет
D4: с 8 -10,5 часовым пребыванием 2016 год
B7: Объемы порций | C7: Белки | D7: Жиры | E7: Угл-ды | F7: Витамин С | G7: Энергетическая ценность
A8: Нормы | B8: 1050-1400 | C8: 31,5-44,25 | D8: 35,25-42 | E8: 152,25-161,25 | G8: 1050-1170
A9: 1 | B9: ='[2]младш 8-10ч'!C91 -> 1283 | C9: ='[2]младш 8-10ч'!F91 -> 37.96 | D9: ='[2]младш 8-10ч'!G91 -> 35.43 | E9: ='[2]младш 8-10ч'!H91 -> 160.8 | F9: ='[2]младш 8-10ч'!I91 -> 1115.6 | G9: ='[2]младш 8-10ч'!J91 -> 39.1
A10: 2 | B10: ='[2]младш 8-10ч'!C183 -> 1354 | C10: ='[2]младш 8-10ч'!F183 -> 44.07 | D10: ='[2]младш 8-10ч'!G183 -> 41.99 | E10: ='[2]младш 8-10ч'!H183 -> 154.9 | F10: ='[2]младш 8-10ч'!I183 -> 1169.9 | G10: ='[2]младш 8-10ч'!J183 -> 25.61
A11: 3 | B11: ='[2]младш 8-10ч'!C276 -> 1359 | C11: ='[2]младш 8-10ч'!F276 -> 38.42 | D11: ='[2]младш 8-10ч'!G276 -> 40 | E11: ='[2]младш 8-10ч'!H276 -> 161.2 | F11: ='[2]младш 8-10ч'!I276 -> 1157.8 | G11: ='[2]младш 8-10ч'!J276 -> 30.684
A12: 4 | B12: ='[2]младш 8-10ч'!C364 -> 1395 | C12: ='[2]младш 8-10ч'!F364 -> 31.00 | D12: ='[2]младш 8-10ч'!G364 -> 37.99 | E12: ='[2]младш 8-10ч'!H364 -> 156.60 | F12: ='[2]младш 8-10ч'!I364 -> 1093.60 | G12: ='[2]младш 8-10ч'!J364 -> 43.40
A13: 5 | B13: ='[2]младш 8-10ч'!C457 -> 1374 | C13: ='[2]младш 8-10ч'!F457 -> 43.68 | D13: ='[2]младш 8-10ч'!G457 -> 38.04 | E13: ='[2]младш 8-10ч'!H457 -> 160.26 | F13: ='[2]младш 8-10ч'!I457 -> 1156.5 | G13: ='[2]младш 8-10ч'!J457 -> 37.29
A14: 6 | B14: ='[2]младш 8-10ч'!C551 -> 1313 | C14: ='[2]младш 8-10ч'!F551 -> 42.71 | D14: ='[2]младш 8-10ч'!G551 -> 40.4 | E14: ='[2]младш 8-10ч'!H551 -> 159.3 | F14: ='[2]младш 8-10ч'!I551 -> 1169.4 | G14: ='[2]младш 8-10ч'!J551 -> 20.54
A15: 7 | B15: ='[2]младш 8-10ч'!C641 -> 1290.00 | C15: ='[2]младш 8-10ч'!F641 -> 43.10 | D15: ='[2]младш 8-10ч'!G641 -> 40.44 | E15: ='[2]младш 8-10ч'!H641 -> 153.90 | F15: ='[2]младш 8-10ч'!I641 -> 1151.40 | G15: ='[2]младш 8-10ч'!J641 -> 15.65
A16: 8 | B16: ='[2]младш 8-10ч'!C736 -> 1244 | C16: ='[2]младш 8-10ч'!F736 -> 40.71 | D16: ='[2]младш 8-10ч'!G736 -> 40.11 | E16: ='[2]младш 8-10ч'!H736 -> 160.61 | F16: ='[2]младш 8-10ч'!I736 -> 1166.2 | G16: ='[2]младш 8-10ч'!J736 -> 22.27375
A17: 9 | B17: ='[2]младш 8-10ч'!C824 -> 1409 | C17: ='[2]младш 8-10ч'!F824 -> 35.58 | D17: ='[2]младш 8-10ч'!G824 -> 35.33 | E17: ='[2]младш 8-10ч'!H824 -> 159.88 | F17: ='[2]младш 8-10ч'!I824 -> 1096.6 | G17: ='[2]младш 8-10ч'!J824 -> 28.49
A18: 10 | B18: ='[2]младш 8-10ч'!C928 -> 1377.00 | C18: ='[2]младш 8-10ч'!F928 -> 42.40 | D18: ='[2]младш 8-10ч'!G928 -> 39.36 | E18: ='[2]младш 8-10ч'!H928 -> 161.10 | F18: ='[2]младш 8-10ч'!I928 -> 1168.90 | G18: ='[2]младш 8-10ч'!J928 -> 24.96
A20: Всего | B20: =SUM(B9:B19) -> 13398 | C20: =SUM(C9:C18) -> 399.63 | D20: =SUM(D9:D19) -> 389.09 | E20: 1588.55 | F20: =F9+F10+F11+F12+F13+F14+F15+F16+F17+F18 -> 11445.90 | G20: 287.99775
A21: В среднем | B21: =AVERAGE(B9:B18) -> 1339.8 | C21: 39.963 | D21: 38.909 | E21: 158.855 | F21: 1144.59 | G21: 28.799775
A28: Примечание: при составлении примерного 10- дневного меню соблюдено выполнение средне-суточных наборов продуктов по возрастам и времени пребывания. Пищевая,энергетическая ценность соответствует показателям СанПиН 2.4.1.3049-13 таб. 3 "Нормы физиологических потребностей в энергии и пищевых веществах" и приложению№10 " Рекомендуемые суточные наборы продуктов для организации питания детей в дошкольных образовательных организациях" по химическому составу использованных наборов продуктов.

Sheet свод3-7
B1: Расход продуктов ДОУ 2016 года.
D2: от 3 до 7 лет | F2: с 8 - 10,5 часовым пребыванием | M2: НЕТТО
A3: Наименов. прод. | B3: 1 | C3: 2 | D3: 3 | E3: 4 | F3: 5 | G3: 6 | H3: 7 | I3: 8 | J3: 9 | K3: 10 | L3: Кол-во | M3: Среднее | N3: Норма нетто | O3: Отклон. | P3: Отклон.%
A5: Сахар | B5: 29.00 | C5: 43.30 | D5: 38.00 | E5: 23.50 | F5: 50.00 | G5: 37.50 | H5: 35.00 | I5: 36.20 | J5: 30.30 | K5: 28.60 | L5: 351.40 | M5: 35.14 | N5: 353 | O5: -1.6 | P5: -0.45
A6: Заварка | B6: 0.70 | C6: 0.20 | D6: 0.20 | E6: 0.70 | F6: 0.20 | G6: 0.20 | H6: 0.70 | I6: 0.20 | J6: 0.20 | K6: 0.70 | L6: 4.00 | M6: 0.40 | N6: 4.0 | O6: 0.0 | P6: 0.00
A7: Яйцо | B7: 23.20 | C7: 14.00 | D7: 5.40 | E7: 10.00 | F7: 7.50 | G7: 15.50 | H7: 79.90 | I7: 5.50 | J7: 14.10 | K7: 10.30 | L7: 185.40 | M7: 18.54 | N7: 180 | O7: 5.4 | P7: 3.00
A8: Дрожжи сухие | B8: 0.20 | C8: 0.00 | D8: 0.20 | E8: 0.00 | F8: 0.00 | G8: 0.20 | H8: 0.00 | I8: 0.20 | J8: 0.00 | K8: 0.20 | L8: 1.00 | M8: 0.10 | N8: 1 | O8: 0.0 | P8: 0.00
A9: Батон нарезной | B9: 30.00 | C9: 30.00 | D9: 30.00 | E9: 30.00 | F9: 30.00 | G9: 30.00 | H9: 30.00 | I9: 30.00 | J9: 30.00 | K9: 30.00 | L9: 300.00 | M9: 30.00 | N9: 0 | O9: 300.0
A10: Хлеб пшеничный 1с | B10: 13.00 | C10: 42.50 | D10: 15.00 | E10: 30.00 | F10: 15.00 | G10: 30.00 | H10: 30.00 | I10: 30.00 | J10: 30.00 | K10: 40.00 | L10: 275.50 | M10: 27.55 | O10: 275.5
A11: Хлеб сельский | B11: 37.50 | C11: 37.50 | D11: 37.50 | E11: 37.50 | F11: 37.50 | G11: 37.50 | H11: 37.50 | I11: 37.50 | J11: 37.50 | K11: 37.50 | L11: 375.00 | M11: 37.50 | N11: 375 | O11: 0.0 | P11: 0.00
A12: Мука пшеничная | B12: 31.30 | C12: 10.50 | D12: 44.70 | E12: 3.50 | F12: 8.60 | G12: 50.00 | H12: 2.70 | I12: 25.30 | J12: 1.60 | K12: 44.00 | L12: 222.20 | M12: 22.22 | N12: 225.0 | O12: -2.8 | P12: -1.24
A13: Кисель-концентрат | B13: 18.00 | C13: 0.00 | D13: 0.00 | E13: 18.00 | F13: 0.00 | G13: 0.00 | H13: 18.00 | I13: 0.00 | J13: 0.00 | K13: 18.00 | L13: 72.00 | M13: 7.20 | O13: 72.0
A14: Макаронные изделия | B14: 34.00 | C14: 8.00 | D14: 0.00 | E14: 14.00 | F14: 0.00 | G14: 34.00 | H14: 0.00 | I14: 0.00 | J14: 0.00 | K14: 0.00 | L14: 90.00 | M14: 9.00 | N14: 90 | O14: 0.0 | P14: 0.00
A15: Крупа рисовая | B15: 0.00 | C15: 0.00 | D15: 0.00 | E15: 0.00 | F15: 0.00 | G15: 0.00 | H15: 0.00 | I15: 16.00 | J15: 0.00 | K15: 11.00 | L15: 27.00 | M15: 2.70 | O15: 27.0
A16: Крупа кукурузная | B16: 0.00 | C16: 0.00 | D16: 0.00 | E16: 0.00 | F16: 40.00 | G16: 0.00 | H16: 0.00 | I16: 0.00 | J16: 0.00 | K16: 0.00 | L16: 40.00 | M16: 4.00 | O16: 40.0
A17: Крупа манная | B17: 0.00 | C17: 31.00 | D17: 0.00 | E17: 0.00 | F17: 11.00 | G17: 2.00 | H17: 7.00 | I17: 0.00 | J17: 0.00 | K17: 0.00 | L17: 51.00 | M17: 5.10 | O17: 51.0
A18: Горох | B18: 0.00 | C18: 0.00 | D18: 16.00 | E18: 0.00 | F18: 0.00 | G18: 0.00 | H18: 0.00 | I18: 0.00 | J18: 0.00 | K18: 0.00 | L18: 16.00 | M18: 1.60 | O18: 16.0
A19: Крупа пшенная | B19: 0.00 | C19: 0.00 | D19: 0.00 | E19: 0.00 | F19: 0.00 | G19: 40.00 | H19: 0.00 | I19: 20.00 | J19: 0.00 | K19: 0.00 | L19: 60.00 | M19: 6.00 | O19: 60.0
A20: Крупа ячневая | B20: 0.00 | C20: 0.00 | D20: 0.00 | E20: 0.00 | F20: 0.00 | G20: 0.00 | H20: 0.00 | I20: 0.00 | J20: 0.00 | K20: 0.00 | L20: 0.00 | M20: 0.00 | O20: 0.0
A21: Полба | B21: 0.00 | C21: 0.00 | D21: 0.00 | E21: 0.00 | F21: 0.00 | G21: 0.00 | H21: 0.00 | I21: 0.00 | J21: 0.00 | K21: 0.00 | L21: 0.00 | M21: 0.00 | O21: 0.0
A22: Крупа перловая | B22: 4.00 | C22: 0.00 | D22: 0.00 | E22: 0.00 | F22: 8.00 | G22: 0.00 | H22: 8.00 | I22: 0.00 | J22: 0.00 | K22: 0.00 | L22: 20.00 | M22: 2.00 | O22: 20.0
A23: Крупа геркулесовая | B23: 0.00 | C23: 0.00 | D23: 31.00 | E23: 0.00 | F23: 0.00 | G23: 0.00 | H23: 0.00 | I23: 0.00 | J23: 0.00 | K23: 0.00 | L23: 31.00 | M23: 3.10 | O23: 31.0
A24: Крупа пшеничная | B24: 0.00 | C24: 0.00 | D24: 0.00 | E24: 0.00 | F24: 0.00 | G24: 0.00 | H24: 0.00 | I24: 0.00 | J24: 31.00 | K24: 0.00 | L24: 31.00 | M24: 3.10 | O24: 31.0
A25: Крупа гречневая | B25: 0.00 | C25: 0.00 | D25: 0.00 | E25: 50.00 | F25: 0.00 | G25: 0.00 | H25: 0.00 | I25: 0.00 | J25: 0.00 | K25: 0.00 | L25: 50.00 | M25: 5.00 | O25: 50.0
A26: Картофель | B26: 60.00 | C26: 188.00 | D26: 100.30 | E26: 114.00 | F26: 105.00 | G26: 34.50 | H26: 120.30 | I26: 155.00 | J26: 152.80 | K26: 64.00 | L26: 1093.90 | M26: 109.39 | N26: 1050 | O26: 43.9 | P26: 4.18
A27: Морковь | B27: 11.00 | C27: 87.00 | D27: 83.00 | E27: 33.50 | F27: 60.00 | G27: 74.80 | H27: 106.00 | I27: 9.00 | J27: 36.00 | K27: 83.00 | L27: 583.30 | M27: 58.33 | O27: 583.3
A28: Лук репчатый | B28: 10.00 | C28: 32.00 | D28: 44.00 | E28: 31.00 | F28: 13.70 | G28: 25.90 | H28: 36.50 | I28: 21.20 | J28: 10.50 | K28: 35.00 | L28: 259.80 | M28: 25.98 | O28: 259.8
A29: Свекла | B29: 61.20 | C29: 0.00 | D29: 0.00 | E29: 70.40 | F29: 0.00 | G29: 51.00 | H29: 70.40 | I29: 32.00 | J29: 50.00 | K29: 0.00 | L29: 335.00 | M29: 33.50 | O29: 335.0
A30: Капуста свежая | B30: 172.00 | C30: 79.00 | D30: 94.20 | E30: 40.00 | F30: 24.00 | G30: 79.00 | H30: 52.20 | I30: 41.00 | J30: 57.80 | K30: 72.00 | L30: 711.20 | M30: 71.12 | O30: 711.2
A31: Горошек зеленый | B31: 0.00 | C31: 0.00 | D31: 0.00 | E31: 0.00 | F31: 0.00 | G31: 0.00 | H31: 0.00 | I31: 0.00 | J31: 0.00 | K31: 0.00 | L31: 0.00 | M31: 0.00 | O31: 0.0
A32: Огурцы соленые | B32: 12.00 | C32: 0.00 | D32: 0.00 | E32: 0.00 | F32: 30.00 | G32: 0.00 | H32: 0.00 | I32: 30.00 | J32: 0.00 | K32: 0.00 | L32: 72.00 | M32: 7.20 | O32: 72.0
A33: Помидоры свежие | B33: 0.00 | C33: 0.00 | D33: 0.00 | E33: 0.00 | F33: 0.00 | G33: 0.00 | H33: 0.00 | I33: 0.00 | J33: 0.00 | K33: 0.00 | L33: 0.00 | M33: 0.00 | O33: 0.0
A34: Огурцы свежие | B34: 0.00 | C34: 0.00 | D34: 0.00 | E34: 0.00 | F34: 0.00 | G34: 0.00 | H34: 0.00 | I34: 0.00 | J34: 0.00 | K34: 0.00 | L34: 0.00 | M34: 0.00 | O34: 0.0
A35: Томат-паста | B35: 1.20 | C35: 0.00 | D35: 1.00 | E35: 1.00 | F35: 1.20 | G35: 1.00 | H35: 1.00 | I35: 1.00 | J35: 0.00 | K35: 0.00 | L35: 7.40 | M35: 0.74 | O35: 7.4
A36: Масло сливочное | B36: 20.60 | C36: 19.40 | D36: 17.00 | E36: 11.00 | F36: 19.00 | G36: 17.50 | H36: 14.00 | I36: 17.00 | J36: 14.60 | K36: 12.00 | L36: 162.10 | M36: 16.21 | N36: 158 | O36: 4.1 | P36: 2.59
A37: Масло растительное | B37: 7.00 | C37: 5.90 | D37: 9.70 | E37: 17.00 | F37: 6.60 | G37: 8.00 | H37: 9.00 | I37: 6.10 | J37: 7.00 | K37: 9.60 | L37: 85.90 | M37: 8.59 | N37: 83 | O37: 2.9 | P37: 3.49
A38: Фрукты свежие | B38: 70.00 | C38: 70.00 | D38: 70.00 | E38: 70.00 | F38: 70.00 | G38: 70.00 | H38: 70.00 | I38: 70.00 | J38: 70.00 | K38: 70.00 | L38: 700.00 | M38: 70.00 | O38: 700.0
A39: Яблоки | B39: 0.00 | C39: 30.00 | D39: 13.50 | E39: 0.00 | F39: 0.00 | G39: 0.00 | H39: 0.00 | I39: 0.00 | J39: 30.00 | K39: 12.00 | L39: 85.50 | M39: 8.55 | O39: 85.5
A40: Ягоды | B40: 0.00 | C40: 0.00 | D40: 0.00 | E40: 0.00 | F40: 0.00 | G40: 0.00 | H40: 0.00 | I40: 0.00 | J40: 0.00 | K40: 0.00 | L40: 0.00 | M40: 0.00 | O40: 0.0
A41: Лимон | B41: 0.00 | C41: 0.00 | D41: 0.00 | E41: 0.00 | F41: 0.00 | G41: 0.00 | H41: 0.00 | I41: 0.00 | J41: 0.00 | K41: 0.00 | L41: 0.00 | M41: 0.00 | O41: 0.0
A42: Повидло фруктовое | B42: 25.00 | C42: 20.00 | D42: 0.00 | E42: 0.00 | F42: 0.00 | G42: 0.00 | H42: 0.00 | I42: 0.00 | J42: 0.00 | K42: 0.00 | L42: 45.00 | M42: 4.50 | O42: 45.0
A43: Сок | B43: 100.00 | C43: 0.00 | D43: 100.00 | E43: 150.00 | F43: 0.00 | G43: 100.00 | H43: 0.00 | I43: 100.00 | J43: 100.00 | K43: 100.00 | L43: 750.00 | M43: 75.00 | N43: 750 | O43: 0.0 | P43: 0.00
A44: Курага | B44: 0.00 | C44: 0.00 | D44: 15.00 | E44: 0.00 | F44: 0.00 | G44: 15.00 | H44: 0.00 | I44: 0.00 | J44: 0.00 | K44: 0.00 | L44: 30.00 | M44: 3.00 | O44: 30.0
A45: Сухофрукты | B45: 0.00 | C45: 0.00 | D45: 0.00 | E45: 0.00 | F45: 15.00 | G45: 0.00 | H45: 0.00 | I45: 15.00 | J45: 0.00 | K45: 0.00 | L45: 30.00 | M45: 3.00 | O45: 30.0
A46: Урюк | B46: 0.00 | C46: 0.00 | D46: 0.00 | E46: 0.00 | F46: 0.00 | G46: 0.00 | H46: 0.00 | I46: 0.00 | J46: 0.00 | K46: 0.00 | L46: 0.00 | M46: 0.00 | O46: 0.0
A47: Изюм | B47: 0.00 | C47: 0.00 | D47: 0.00 | E47: 0.00 | F47: 15.00 | G47: 0.00 | H47: 0.00 | I47: 0.00 | J47: 7.00 | K47: 0.00 | L47: 22.00 | M47: 2.20 | O47: 22.0
A48: Шиповник | B48: 0.00 | C48: 0.00 | D48: 0.00 | E48: 0.00 | F48: 0.00 | G48: 0.00 | H48: 0.00 | I48: 0.00 | J48: 0.00 | K48: 0.00 | L48: 0.00 | M48: 0.00 | O48: 0.0
A49: Молоко | B49: 114.30 | C49: 285.40 | D49: 190.00 | E49: 136.00 | F49: 225.00 | G49: 195.00 | H49: 124.00 | I49: 210.00 | J49: 220.00 | K49: 190.00 | L49: 1889.70 | M49: 188.97 | O49: 1889.7
A50: Кефир | B50: 150.00 | C50: 0.00 | D50: 0.00 | E50: 150.00 | F50: 0.00 | G50: 0.00 | H50: 150.00 | I50: 0.00 | J50: 0.00 | K50: 150.00 | L50: 600.00 | M50: 60.00 | O50: 600.0
A51: Ряженка | B51: 0.00 | C51: 150.00 | D51: 0.00 | E51: 0.00 | F51: 150.00 | G51: 0.00 | H51: 0.00 | I51: 150.00 | J51: 0.00 | K51: 0.00 | L51: 450.00 | M51: 45.00 | O51: 450.0
A52: Катык | B52: 0.00 | C52: 0.00 | D52: 150.00 | E52: 0.00 | F52: 0.00 | G52: 150.00 | H52: 0.00 | I52: 0.00 | J52: 150.00 | K52: 0.00 | L52: 450.00 | M52: 45.00 | O52: 450.0
A53: Молоко сгущенное | B53: 0.00 | C53: 0.00 | D53: 0.00 | E53: 0.00 | F53: 25.00 | G53: 0.00 | H53: 25.00 | I53: 0.00 | J53: 0.00 | K53: 0.00 | L53: 50.00 | M53: 5.00 | O53: 50.0
A54: Сметана | B54: 5.00 | C54: 10.00 | D54: 0.00 | E54: 15.00 | F54: 29.00 | G54: 5.00 | H54: 4.40 | I54: 5.00 | J54: 5.00 | K54: 0.00 | L54: 78.40 | M54: 7.84 | N54: 80 | O54: -1.6 | P54: -2.00
A55: Творог | B55: 0.00 | C55: 75.00 | D55: 0.00 | E55: 0.00 | F55: 113.00 | G55: 0.00 | H55: 101.00 | I55: 0.00 | J55: 0.00 | K55: 16.00 | L55: 305.00 | M55: 30.50 | N55: 300 | O55: 5.0 | P55: 1.67
A56: Говядина | B56: 68.20 | C56: 16.00 | D56: 22.80 | E56: 74.00 | F56: 0.00 | G56: 22.80 | H56: 74.00 | I56: 67.00 | J56: 22.80 | K56: 47.70 | L56: 415.30 | M56: 41.53 | O56: 415.3
A57: Фарш из говядины | B57: 0.00 | C57: 0.00 | D57: 0.00 | E57: 0.00 | F57: 0.00 | G57: 0.00 | H57: 0.00 | I57: 0.00 | J57: 0.00 | K57: 0.00 | L57: 0.00 | M57: 0.00 | O57: 0.0
A58: Цыплята | B58: 0.00 | C58: 0.00 | D58: 63.00 | E58: 0.00 | F58: 29.00 | G58: 0.00 | H58: 0.00 | I58: 23.50 | J58: 0.00 | K58: 64.50 | L58: 180.00 | M58: 18.00 | N58: 180 | O58: 0.0 | P58: 0.00
A59: Сыр | B59: 0.00 | C59: 7.00 | D59: 0.00 | E59: 7.00 | F59: 0.00 | G59: 7.00 | H59: 10.00 | I59: 7.00 | J59: 0.00 | K59: 7.00 | L59: 45.00 | M59: 4.50 | N59: 45 | O59: 0.0 | P59: 0.00
A60: Рыба | B60: 0.00 | C60: 70.00 | D60: 0.00 | E60: 0.00 | F60: 64.00 | G60: 60.00 | H60: 29.00 | I60: 0.00 | J60: 63.00 | K60: 0.00 | L60: 286.00 | M60: 28.60 | N60: 280.0 | O60: 6.0 | P60: 2.14
A61: Кофейный напиток | B61: 0.00 | C61: 0.00 | D61: 3.00 | E61: 0.00 | F61: 0.00 | G61: 3.00 | H61: 0.00 | I61: 0.00 | J61: 3.00 | K61: 0.00 | L61: 9.00 | M61: 0.90 | N61: 9 | O61: 0.0 | P61: 0.00
A62: Какао-порошок | B62: 0.00 | C62: 1.70 | D62: 0.00 | E62: 0.00 | F62: 1.70 | G62: 0.00 | H62: 0.00 | I62: 1.70 | J62: 0.00 | K62: 0.00 | L62: 5.10 | M62: 0.51 | N62: 5 | O62: 0.1 | P62: 2.00
A63: Кондитерские изделия | B63: 15.00 | C63: 15.00 | D63: 15.00 | E63: 0.00 | F63: 24.00 | G63: 15.00 | H63: 0.00 | I63: 0.00 | J63: 36.00 | K63: 30.00 | L63: 150.00 | M63: 15.00 | O63: 150.0
A64: конфеты | B64: 0.00 | C64: 0.00 | D64: 0.00 | E64: 0.00 | F64: 0.00 | G64: 0.00 | H64: 0.00 | I64: 0.00 | J64: 0.00 | K64: 0.00 | L64: 0.00 | M64: 0.00 | O64: 0.0
A65: Соль | B65: 4.50 | C65: 4.70 | D65: 4.80 | E65: 6.20 | F65: 4.60 | G65: 4.60 | H65: 4.55 | I65: 3.80 | J65: 4.85 | K65: 4.30 | L65: 46.90 | M65: 4.69 | N65: 45.0 | O65: 1.9 | P65: 4.22
A66: Крахмал | B66: 5.75 | C66: 0.00 | D66: 0.00 | E66: 5.75 | F66: 0.00 | G66: 0.00 | H66: 5.75 | I66: 0.00 | J66: 0.00 | K66: 5.75 | L66: 23.00 | M66: 2.30 | N66: 23.0 | O66: 0.0 | P66: 0.00
A67: Сухари панировочные | B67: 7.00 | C67: 0.00 | D67: 0.00 | E67: 3.00 | F67: 4.00 | G67: 6.00 | H67: 4.00 | I67: 3.00 | J67: 6.00 | K67: 6.00 | L67: 39.00 | M67: 3.90 | O67: 39.0
A68: Крупы, бобовые | B68: 4.00 | C68: 31.00 | D68: 47.00 | E68: 50.00 | F68: 59.00 | G68: 42.00 | H68: 15.00 | I68: 36.00 | J68: 31.00 | K68: 11.00 | L68: 326.00 | M68: 32.60 | N68: 323 | O68: 3.0 | P68: 0.93
A69: Овощи разные | B69: 267.40 | C69: 198.00 | D69: 222.20 | E69: 175.90 | F69: 128.90 | G69: 231.70 | H69: 266.10 | I69: 134.20 | J69: 154.30 | K69: 190.00 | L69: 1968.70 | M69: 196.87 | N69: 1950 | O69: 18.7 | P69: 0.96
A70: Фрукты | B70: 70.00 | C70: 100.00 | D70: 83.50 | E70: 70.00 | F70: 70.00 | G70: 70.00 | H70: 70.00 | I70: 70.00 | J70: 100.00 | K70: 82.00 | L70: 785.50 | M70: 78.55 | N70: 750 | O70: 35.5 | P70: 4.73
A71: Фрукты сухие | B71: 0.00 | C71: 0.00 | D71: 15.00 | E71: 0.00 | F71: 30.00 | G71: 15.00 | H71: 0.00 | I71: 15.00 | J71: 7.00 | K71: 0.00 | L71: 82.00 | M71: 8.20 | N71: 83.0 | O71: -1.0 | P71: -1.20
A72: Молочные прод. | B72: 264.30 | C72: 435.40 | D72: 340.00 | E72: 286.00 | F72: 400.00 | G72: 345.00 | H72: 299.00 | I72: 360.00 | J72: 370.00 | K72: 340.00 | L72: 3439.70 | M72: 343.97 | N72: 3380.0 | O72: 59.7 | P72: 1.77
A73: Говядина | B73: 68.20 | C73: 16.00 | D73: 22.80 | E73: 74.00 | F73: 0.00 | G73: 22.80 | H73: 74.00 | I73: 67.00 | J73: 22.80 | K73: 47.70 | L73: 415.30 | M73: 41.53 | N73: 410.0 | O73: 5.3 | P73: 1.29
A74: Хлеб пшеничный | B74: 43.00 | C74: 72.50 | D74: 45.00 | E74: 60.00 | F74: 45.00 | G74: 60.00 | H74: 60.00 | I74: 60.00 | J74: 60.00 | K74: 70.00 | L74: 575.50 | M74: 57.55 | N74: 600.0 | O74: -24.5 | P74: -4.08
A75: Кондитерские изделия | B75: 15.00 | C75: 15.00 | D75: 15.00 | E75: 0.00 | F75: 24.00 | G75: 15.00 | H75: 0.00 | I75: 0.00 | J75: 36.00 | K75: 30.00 | L75: 150.00 | M75: 15.00 | N75: 150.0 | O75: 0.0 | P75: 0.00
A76: Итого
B80: Расход продуктов ДОУ 2016 года.
D81: от 3 до 7 лет | F81: с 8 - 10,5 часовым пребыванием | K81: брутто | M81: мясо потушное
A82: Наименов. прод. | B82: 1 | C82: 2 | D82: 3 | E82: 4 | F82: 5 | G82: 6 | H82: 7 | I82: 8 | J82: 9 | K82: 10 | L82: Кол-во | M82: Среднее
A84: Сахар | B84: 29.00 | C84: 43.30 | D84: 38.00 | E84: 23.50 | F84: 50.00 | G84: 37.50 | H84: 35.00 | I84: 36.20 | J84: 30.30 | K84: 28.60 | L84: 351.40 | M84: 35.14
A85: Заварка | B85: 0.70 | C85: 0.20 | D85: 0.20 | E85: 0.70 | F85: 0.20 | G85: 0.20 | H85: 0.70 | I85: 0.20 | J85: 0.20 | K85: 0.70 | L85: 4.00 | M85: 0.40
A86: Яйцо | B86: 26.10 | C86: 15.60 | D86: 5.82 | E86: 11.00 | F86: 8.40 | G86: 17.38 | H86: 88.58 | I86: 6.90 | J86: 15.80 | K86: 11.60 | L86: 207.18 | M86: 20.72
A87: Дрожжи сухие | B87: 0.20 | C87: 0.00 | D87: 0.20 | E87: 0.00 | F87: 0.00 | G87: 0.20 | H87: 0.00 | I87: 0.20 | J87: 0.00 | K87: 0.20 | L87: 1.00 | M87: 0.10
A88: Батон нарезной | B88: 30.00 | C88: 30.00 | D88: 30.00 | E88: 30.00 | F88: 30.00 | G88: 30.00 | H88: 30.00 | I88: 30.00 | J88: 30.00 | K88: 30.00 | L88: 300.00 | M88: 30.00
A89: Хлеб пшеничный 1с | B89: 13.00 | C89: 42.50 | D89: 15.00 | E89: 30.00 | F89: 15.00 | G89: 30.00 | H89: 30.00 | I89: 30.00 | J89: 30.00 | K89: 40.00 | L89: 275.50 | M89: 27.55
A90: Хлеб сельский | B90: 37.50 | C90: 37.50 | D90: 37.50 | E90: 37.50 | F90: 37.50 | G90: 37.50 | H90: 37.50 | I90: 37.50 | J90: 37.50 | K90: 37.50 | L90: 375.00 | M90: 37.50
A91: Мука пшеничная | B91: 31.30 | C91: 10.50 | D91: 44.70 | E91: 3.50 | F91: 8.60 | G91: 50.00 | H91: 2.70 | I91: 25.30 | J91: 1.60 | K91: 44.00 | L91: 222.20 | M91: 22.22
A92: Кисель-концентрат | B92: 18.00 | C92: 0.00 | D92: 0.00 | E92: 18.00 | F92: 0.00 | G92: 0.00 | H92: 18.00 | I92: 0.00 | J92: 0.00 | K92: 18.00 | L92: 72.00 | M92: 7.20
A93: Макаронные изделия | B93: 34.00 | C93: 8.00 | D93: 0.00 | E93: 14.00 | F93: 0.00 | G93: 34.00 | H93: 0.00 | I93: 0.00 | J93: 0.00 | K93: 0.00 | L93: 90.00 | M93: 9.00
A94: Крупа рисовая | B94: 0.00 | C94: 0.00 | D94: 0.00 | E94: 0.00 | F94: 0.00 | G94: 0.00 | H94: 0.00 | I94: 16.00 | J94: 0.00 | K94: 11.00 | L94: 27.00 | M94: 2.70
A95: Крупа кукурузная | B95: 0.00 | C95: 0.00 | D95: 0.00 | E95: 0.00 | F95: 40.00 | G95: 0.00 | H95: 0.00 | I95: 0.00 | J95: 0.00 | K95: 0.00 | L95: 40.00 | M95: 4.00
A96: Крупа манная | B96: 0.00 | C96: 31.00 | D96: 0.00 | E96: 0.00 | F96: 11.00 | G96: 2.00 | H96: 7.00 | I96: 0.00 | J96: 0.00 | K96: 0.00 | L96: 51.00 | M96: 5.10
A97: Горох | B97: 0.00 | C97: 0.00 | D97: 16.20 | E97: 0.00 | F97: 0.00 | G97: 0.00 | H97: 0.00 | I97: 0.00 | J97: 0.00 | K97: 0.00 | L97: 16.20 | M97: 1.62
A98: Крупа пшенная | B98: 0.00 | C98: 0.00 | D98: 0.00 | E98: 0.00 | F98: 0.00 | G98: 40.00 | H98: 0.00 | I98: 20.00 | J98: 0.00 | K98: 0.00 | L98: 60.00 | M98: 6.00
A99: Крупа ячневая | B99: 0.00 | C99: 0.00 | D99: 0.00 | E99: 0.00 | F99: 0.00 | G99: 0.00 | H99: 0.00 | I99: 0.00 | J99: 0.00 | K99: 0.00 | L99: 0.00 | M99: 0.00
A100: Полба | B100: 0.00 | C100: 0.00 | D100: 0.00 | E100: 0.00 | F100: 0.00 | G100: 0.00 | H100: 0.00 | I100: 0.00 | J100: 0.00 | K100: 0.00 | L100: 0.00 | M100: 0.00
A101: Крупа перловая | B101: 4.00 | C101: 0.00 | D101: 0.00 | E101: 0.00 | F101: 8.00 | G101: 0.00 | H101: 8.00 | I101: 0.00 | J101: 0.00 | K101: 0.00 | L101: 20.00 | M101: 2.00
A102: Крупа геркулесовая | B102: 0.00 | C102: 0.00 | D102: 31.00 | E102: 0.00 | F102: 0.00 | G102: 0.00 | H102: 0.00 | I102: 0.00 | J102: 0.00 | K102: 0.00 | L102: 31.00 | M102: 3.10
A103: Крупа пшеничная | B103: 0.00 | C103: 0.00 | D103: 0.00 | E103: 0.00 | F103: 0.00 | G103: 0.00 | H103: 0.00 | I103: 0.00 | J103: 31.00 | K103: 0.00 | L103: 31.00 | M103: 3.10
A104: Крупа гречневая | B104: 0.00 | C104: 0.00 | D104: 0.00 | E104: 50.00 | F104: 0.00 | G104: 0.00 | H104: 0.00 | I104: 0.00 | J104: 0.00 | K104: 0.00 | L104: 50.00 | M104: 5.00
A105: Картофель | B105: 80.00 | C105: 251.00 | D105: 133.10 | E105: 152.00 | F105: 149.50 | G105: 46.00 | H105: 160.10 | I105: 205.00 | J105: 211.10 | K105: 85.00 | L105: 1472.80 | M105: 147.28
A106: Морковь | B106: 13.80 | C106: 109.00 | D106: 105.25 | E106: 41.90 | F106: 75.00 | G106: 92.50 | H106: 131.50 | I106: 11.30 | J106: 45.40 | K106: 104.00 | L106: 729.65 | M106: 72.97
A107: Лук репчатый | B107: 12.00 | C107: 38.50 | D107: 53.00 | E107: 38.00 | F107: 17.80 | G107: 30.90 | H107: 44.30 | I107: 26.00 | J107: 12.40 | K107: 41.60 | L107: 314.50 | M107: 31.45
A108: Свекла | B108: 76.80 | C108: 0.00 | D108: 0.00 | E108: 93.60 | F108: 0.00 | G108: 64.00 | H108: 93.60 | I108: 40.00 | J108: 63.00 | K108: 0.00 | L108: 431.00 | M108: 43.10
A109: Капуста свежая | B109: 215.00 | C109: 99.00 | D109: 115.80 | E109: 50.00 | F109: 30.00 | G109: 99.00 | H109: 64.80 | I109: 51.20 | J109: 76.00 | K109: 90.00 | L109: 890.80 | M109: 89.08
A110: Горошек зеленый | B110: 0.00 | C110: 0.00 | D110: 0.00 | E110: 0.00 | F110: 0.00 | G110: 0.00 | H110: 0.00 | I110: 0.00 | J110: 0.00 | K110: 0.00 | L110: 0.00 | M110: 0.00
A111: Огурцы соленые | B111: 22.00 | C111: 0.00 | D111: 0.00 | E111: 0.00 | F111: 54.60 | G111: 0.00 | H111: 0.00 | I111: 54.60 | J111: 0.00 | K111: 0.00 | L111: 131.20 | M111: 13.12
A112: Помидоры свежие | B112: 0.00 | C112: 0.00 | D112: 0.00 | E112: 0.00 | F112: 0.00 | G112: 0.00 | H112: 0.00 | I112: 0.00 | J112: 0.00 | K112: 0.00 | L112: 0.00 | M112: 0.00
A113: Огурцы свежие | B113: 0.00 | C113: 0.00 | D113: 0.00 | E113: 0.00 | F113: 0.00 | G113: 0.00 | H113: 0.00 | I113: 0.00 | J113: 0.00 | K113: 0.00 | L113: 0.00 | M113: 0.00
A114: Томат-паста | B114: 1.20 | C114: 0.00 | D114: 1.00 | E114: 1.00 | F114: 1.20 | G114: 1.00 | H114: 1.00 | I114: 1.00 | J114: 0.00 | K114: 0.00 | L114: 7.40 | M114: 0.74
A115: Масло сливочное | B115: 20.60 | C115: 19.40 | D115: 17.00 | E115: 11.00 | F115: 19.00 | G115: 17.50 | H115: 14.00 | I115: 17.00 | J115: 14.60 | K115: 12.00 | L115: 162.10 | M115: 16.21
A116: Масло растительное | B116: 7.00 | C116: 5.90 | D116: 9.70 | E116: 17.00 | F116: 6.60 | G116: 8.00 | H116: 9.00 | I116: 6.10 | J116: 7.00 | K116: 9.60 | L116: 85.90 | M116: 8.59
A117: Фрукты свежие | B117: 80.00 | C117: 80.00 | D117: 80.00 | E117: 80.00 | F117: 80.00 | G117: 80.00 | H117: 80.00 | I117: 80.00 | J117: 80.00 | K117: 80.00 | L117: 800.00 | M117: 80.00
A118: Яблоки | B118: 0.00 | C118: 34.00 | D118: 15.00 | E118: 0.00 | F118: 0.00 | G118: 0.00 | H118: 0.00 | I118: 0.00 | J118: 34.00 | K118: 14.00 | L118: 97.00 | M118: 9.70
A119: Ягоды | B119: 0.00 | C119: 0.00 | D119: 0.00 | E119: 0.00 | F119: 0.00 | G119: 0.00 | H119: 0.00 | I119: 0.00 | J119: 0.00 | K119: 0.00 | L119: 0.00 | M119: 0.00
A120: Лимон | B120: 0.00 | C120: 0.00 | D120: 0.00 | E120: 0.00 | F120: 0.00 | G120: 0.00 | H120: 0.00 | I120: 0.00 | J120: 0.00 | K120: 0.00 | L120: 0.00 | M120: 0.00
A121: Повидло фруктовое | B121: 0.00 | C121: 20.00 | D121: 0.00 | E121: 0.00 | F121: 0.00 | G121: 0.00 | H121: 0.00 | I121: 0.00 | J121: 0.00 | K121: 0.00 | L121: 20.00 | M121: 2.00
A122: Сок | B122: 100.00 | C122: 0.00 | D122: 100.00 | E122: 150.00 | F122: 0.00 | G122: 100.00 | H122: 0.00 | I122: 100.00 | J122: 100.00 | K122: 100.00 | L122: 750.00 | M122: 75.00
A123: Курага | B123: 0.00 | C123: 0.00 | D123: 15.30 | E123: 0.00 | F123: 0.00 | G123: 15.30 | H123: 0.00 | I123: 0.00 | J123: 0.00 | K123: 0.00 | L123: 30.60 | M123: 3.06
A124: Сухофрукты | B124: 0.00 | C124: 0.00 | D124: 0.00 | E124: 0.00 | F124: 15.30 | G124: 0.00 | H124: 0.00 | I124: 15.30 | J124: 0.00 | K124: 0.00 | L124: 30.60 | M124: 3.06
A125: Урюк | B125: 0.00 | C125: 0.00 | D125: 0.00 | E125: 0.00 | F125: 0.00 | G125: 0.00 | H125: 0.00 | I125: 0.00 | J125: 0.00 | K125: 0.00 | L125: 0.00 | M125: 0.00
A126: Изюм | B126: 0.00 | C126: 0.00 | D126: 0.00 | E126: 0.00 | F126: 15.30 | G126: 0.00 | H126: 0.00 | I126: 0.00 | J126: 7.50 | K126: 0.00 | L126: 22.80 | M126: 2.28
A127: Шиповник | B127: 0.00 | C127: 0.00 | D127: 0.00 | E127: 0.00 | F127: 0.00 | G127: 0.00 | H127: 0.00 | I127: 0.00 | J127: 0.00 | K127: 0.00 | L127: 0.00 | M127: 0.00
A128: Молоко | B128: 116.30 | C128: 285.40 | D128: 190.00 | E128: 136.00 | F128: 225.80 | G128: 195.00 | H128: 126.00 | I128: 210.00 | J128: 220.80 | K128: 192.00 | L128: 1897.30 | M128: 189.73
A129: Кефир | B129: 155.00 | C129: 0.00 | D129: 0.00 | E129: 155.00 | F129: 0.00 | G129: 0.00 | H129: 155.00 | I129: 0.00 | J129: 0.00 | K129: 155.00 | L129: 620.00 | M129: 62.00
A130: Ряженка | B130: 0.00 | C130: 155.00 | D130: 0.00 | E130: 0.00 | F130: 155.00 | G130: 0.00 | H130: 0.00 | I130: 155.00 | J130: 0.00 | K130: 0.00 | L130: 465.00 | M130: 46.50
A131: Катык | B131: 0.00 | C131: 0.00 | D131: 155.00 | E131: 0.00 | F131: 0.00 | G131: 155.00 | H131: 0.00 | I131: 0.00 | J131: 155.00 | K131: 0.00
A132: Молоко сгущенное | B132: 0.00 | C132: 0.00 | D132: 0.00 | E132: 0.00 | F132: 25.00 | G132: 0.00 | H132: 25.00 | I132: 0.00 | J132: 0.00 | K132: 0.00 | L132: 50.00 | M132: 5.00
A133: Сметана | B133: 5.00 | C133: 10.00 | D133: 0.00 | E133: 15.00 | F133: 29.00 | G133: 5.00 | H133: 4.40 | I133: 5.00 | J133: 5.00 | K133: 0.00 | L133: 78.40 | M133: 7.84
A134: Творог | B134: 0.00 | C134: 76.00 | D134: 0.00 | E134: 0.00 | F134: 114.00 | G134: 0.00 | H134: 103.20 | I134: 0.00 | J134: 0.00 | K134: 16.00 | L134: 309.20 | M134: 30.92
A135: Говядина | B135: 92.02 | C135: 22.00 | D135: 30.80 | E135: 100.00 | F135: 0.00 | G135: 30.80 | H135: 100.00 | I135: 91.00 | J135: 30.80 | K135: 64.90 | L135: 562.32 | M135: 56.23
A136: Фарш из говядины | B136: 0.00 | C136: 0.00 | D136: 0.00 | E136: 0.00 | F136: 0.00 | G136: 0.00 | H136: 0.00 | I136: 0.00 | J136: 0.00 | K136: 0.00 | L136: 0.00 | M136: 0.00
A137: Цыплята | B137: 0.00 | C137: 0.00 | D137: 97.00 | E137: 0.00 | F137: 42.00 | G137: 0.00 | H137: 0.00 | I137: 34.00 | J137: 0.00 | K137: 96.50 | L137: 269.50 | M137: 26.95
A138: Сыр | B138: 0.00 | C138: 7.20 | D138: 0.00 | E138: 7.20 | F138: 0.00 | G138: 7.20 | H138: 11.50 | I138: 7.20 | J138: 0.00 | K138: 7.20 | L138: 47.50 | M138: 4.75
A139: Рыба | B139: 0.00 | C139: 87.50 | D139: 0.00 | E139: 0.00 | F139: 80.00 | G139: 75.00 | H139: 36.40 | I139: 0.00 | J139: 79.00 | K139: 0.00 | L139: 357.90 | M139: 35.79
A140: Кофейный напиток | B140: 0.00 | C140: 0.00 | D140: 3.00 | E140: 0.00 | F140: 0.00 | G140: 3.00 | H140: 0.00 | I140: 0.00 | J140: 3.00 | K140: 0.00 | L140: 9.00 | M140: 0.90
A141: Какао-порошок | B141: 0.00 | C141: 1.70 | D141: 0.00 | E141: 0.00 | F141: 1.70 | G141: 0.00 | H141: 0.00 | I141: 1.70 | J141: 0.00 | K141: 0.00 | L141: 5.10 | M141: 0.51
A142: Кондитерские изделия | B142: 15.00 | C142: 15.00 | D142: 15.00 | E142: 0.00 | F142: 24.00 | G142: 15.00 | H142: 0.00 | I142: 0.00 | J142: 36.00 | K142: 30.00 | L142: 150.00 | M142: 15.00
A143: конфеты | B143: 0.00 | C143: 0.00 | D143: 0.00 | E143: 0.00 | F143: 0.00 | G143: 0.00 | H143: 0.00 | I143: 0.00 | J143: 0.00 | K143: 0.00 | L143: 0.00 | M143: 0.00
A144: Соль | B144: 0.00 | C144: 0.00 | D144: 0.00 | E144: 0.00 | F144: 0.00 | G144: 0.00 | H144: 0.00 | I144: 0.00 | J144: 0.00 | K144: 0.00 | L144: 0.00 | M144: 0.00
A145: Крахмал | B145: 0.00 | C145: 0.00 | D145: 0.00 | E145: 0.00 | F145: 0.00 | G145: 0.00 | H145: 0.00 | I145: 0.00 | J145: 0.00 | K145: 0.00 | L145: 0.00 | M145: 0.00
A146: Сухари панировочные | B146: 7.00 | C146: 0.00 | D146: 0.00 | E146: 3.00 | F146: 4.00 | G146: 6.00 | H146: 4.00 | I146: 3.00 | J146: 6.00 | K146: 6.00 | L146: 39.00 | M146: 3.90
A147: Напиток витаминный | B147: 0.00 | C147: 0.00 | D147: 0.00 | E147: 0.00 | F147: 0.00 | G147: 0.00 | H147: 0.00 | I147: 0.00 | J147: 0.00 | K147: 0.00 | L147: 0.00 | M147: 0.00
A148: Крупы, бобовые | B148: 4.00 | C148: 31.00 | D148: 47.20 | E148: 50.00 | F148: 59.00 | G148: 42.00 | H148: 15.00 | I148: 36.00 | J148: 31.00 | K148: 11.00 | L148: 326.20 | M148: 32.62
A149: Овощи разные | B149: 340.80 | C149: 246.50 | D149: 275.05 | E149: 224.50 | F149: 178.60 | G149: 287.40 | H149: 335.20 | I149: 184.10 | J149: 196.80 | K149: 235.60 | L149: 2504.55 | M149: 250.46
A150: Фрукты | B150: 80.00 | C150: 114.00 | D150: 95.00 | E150: 80.00 | F150: 80.00 | G150: 80.00 | H150: 80.00 | I150: 80.00 | J150: 114.00 | K150: 94.00 | L150: 897.00 | M150: 89.70
A151: Фрукты сухие | B151: 0.00 | C151: 0.00 | D151: 15.30 | E151: 0.00 | F151: 30.60 | G151: 15.30 | H151: 0.00 | I151: 15.30 | J151: 7.50 | K151: 0.00 | L151: 84.00 | M151: 8.40
A152: Молочные прод. | B152: 271.30 | C152: 440.40 | D152: 345.00 | E152: 291.00 | F152: 405.80 | G152: 350.00 | H152: 306.00 | I152: 365.00 | J152: 375.80 | K152: 347.00 | L152: 3497.30 | M152: 349.73
A153: Говядина | B153: 92.02 | C153: 22.00 | D153: 30.80 | E153: 100.00 | F153: 0.00 | G153: 30.80 | H153: 100.00 | I153: 91.00 | J153: 30.80 | K153: 64.90 | L153: 562.32 | M153: 56.23
A154: Хлеб пшеничный | B154: 43.00 | C154: 72.50 | D154: 45.00 | E154: 60.00 | F154: 45.00 | G154: 60.00 | H154: 60.00 | I154: 60.00 | J154: 60.00 | K154: 70.00 | L154: 575.50 | M154: 57.55
A155: Кондитерские изделия | B155: 15.00 | C155: 15.00 | D155: 15.00 | E155: 0.00 | F155: 24.00 | G155: 15.00 | H155: 0.00 | I155: 0.00 | J155: 36.00 | K155: 30.00 | L155: 150.00 | M155: 15.00
A156: Итого
A158: утв ст-ть 99,26
B160: Расход продуктов ДОУ 2016 года.
D161: от 3 до 7 лет | F161: с 8 - 10,5 часовым пребыванием | K161: брутто | M161: лопатка, фарш
A162: Наименов. прод. | B162: 1 | C162: 2 | D162: 3 | E162: 4 | F162: 5 | G162: 6 | H162: 7 | I162: 8 | J162: 9 | K162: 10 | L162: Кол-во | M162: Среднее
A164: Сахар | B164: 29.00 | C164: 43.30 | D164: 38.00 | E164: 23.50 | F164: 50.00 | G164: 37.50 | H164: 35.00 | I164: 36.20 | J164: 30.30 | K164: 28.60 | L164: 351.40 | M164: 35.14
A165: Заварка | B165: 0.70 | C165: 0.20 | D165: 0.20 | E165: 0.70 | F165: 0.20 | G165: 0.20 | H165: 0.70 | I165: 0.20 | J165: 0.20 | K165: 0.70 | L165: 4.00 | M165: 0.40
A166: Яйцо | B166: 26.10 | C166: 15.60 | D166: 5.82 | E166: 11.00 | F166: 8.40 | G166: 17.38 | H166: 88.58 | I166: 6.90 | J166: 15.80 | K166: 11.60 | L166: 207.18 | M166: 20.72
A167: Дрожжи сухие | B167: 0.20 | C167: 0.00 | D167: 0.20 | E167: 0.00 | F167: 0.00 | G167: 0.20 | H167: 0.00 | I167: 0.20 | J167: 0.00 | K167: 0.20 | L167: 1.00 | M167: 0.10
A168: Батон нарезной | B168: 30.00 | C168: 30.00 | D168: 30.00 | E168: 30.00 | F168: 30.00 | G168: 30.00 | H168: 30.00 | I168: 30.00 | J168: 30.00 | K168: 30.00 | L168: 300.00 | M168: 30.00
A169: Хлеб пшеничный 1с | B169: 13.00 | C169: 42.50 | D169: 15.00 | E169: 30.00 | F169: 15.00 | G169: 30.00 | H169: 30.00 | I169: 30.00 | J169: 30.00 | K169: 40.00 | L169: 275.50 | M169: 27.55
A170: Хлеб сельский | B170: 37.50 | C170: 37.50 | D170: 37.50 | E170: 37.50 | F170: 37.50 | G170: 37.50 | H170: 37.50 | I170: 37.50 | J170: 37.50 | K170: 37.50 | L170: 375.00 | M170: 37.50
A171: Мука пшеничная | B171: 31.30 | C171: 10.50 | D171: 44.70 | E171: 3.50 | F171: 8.60 | G171: 50.00 | H171: 2.70 | I171: 25.30 | J171: 1.60 | K171: 44.00 | L171: 222.20 | M171: 22.22
A172: Кисель-концентрат | B172: 18.00 | C172: 0.00 | D172: 0.00 | E172: 18.00 | F172: 0.00 | G172: 0.00 | H172: 18.00 | I172: 0.00 | J172: 0.00 | K172: 18.00 | L172: 72.00 | M172: 7.20
A173: Макаронные изделия | B173: 34.00 | C173: 8.00 | D173: 0.00 | E173: 14.00 | F173: 0.00 | G173: 34.00 | H173: 0.00 | I173: 0.00 | J173: 0.00 | K173: 0.00 | L173: 90.00 | M173: 9.00
A174: Крупа рисовая | B174: 0.00 | C174: 0.00 | D174: 0.00 | E174: 0.00 | F174: 0.00 | G174: 0.00 | H174: 0.00 | I174: 16.00 | J174: 0.00 | K174: 11.00 | L174: 27.00 | M174: 2.70
A175: Крупа кукурузная | B175: 0.00 | C175: 0.00 | D175: 0.00 | E175: 0.00 | F175: 40.00 | G175: 0.00 | H175: 0.00 | I175: 0.00 | J175: 0.00 | K175: 0.00 | L175: 40.00 | M175: 4.00
A176: Крупа манная | B176: 0.00 | C176: 31.00 | D176: 0.00 | E176: 0.00 | F176: 11.00 | G176: 2.00 | H176: 7.00 | I176: 0.00 | J176: 0.00 | K176: 0.00 | L176: 51.00 | M176: 5.10
A177: Горох | B177: 0.00 | C177: 0.00 | D177: 16.20 | E177: 0.00 | F177: 0.00 | G177: 0.00 | H177: 0.00 | I177: 0.00 | J177: 0.00 | K177: 0.00 | L177: 16.20 | M177: 1.62
A178: Крупа пшенная | B178: 0.00 | C178: 0.00 | D178: 0.00 | E178: 0.00 | F178: 0.00 | G178: 40.00 | H178: 0.00 | I178: 20.00 | J178: 0.00 | K178: 0.00 | L178: 60.00 | M178: 6.00
A179: Крупа ячневая | B179: 0.00 | C179: 0.00 | D179: 0.00 | E179: 0.00 | F179: 0.00 | G179: 0.00 | H179: 0.00 | I179: 0.00 | J179: 0.00 | K179: 0.00 | L179: 0.00 | M179: 0.00
A180: Полба | B180: 0.00 | C180: 0.00 | D180: 0.00 | E180: 0.00 | F180: 0.00 | G180: 0.00 | H180: 0.00 | I180: 0.00 | J180: 0.00 | K180: 0.00 | L180: 0.00 | M180: 0.00
A181: Крупа перловая | B181: 4.00 | C181: 0.00 | D181: 0.00 | E181: 0.00 | F181: 8.00 | G181: 0.00 | H181: 8.00 | I181: 0.00 | J181: 0.00 | K181: 0.00 | L181: 20.00 | M181: 2.00
A182: Крупа геркулесовая | B182: 0.00 | C182: 0.00 | D182: 31.00 | E182: 0.00 | F182: 0.00 | G182: 0.00 | H182: 0.00 | I182: 0.00 | J182: 0.00 | K182: 0.00 | L182: 31.00 | M182: 3.10
A183: Крупа пшеничная | B183: 0.00 | C183: 0.00 | D183: 0.00 | E183: 0.00 | F183: 0.00 | G183: 0.00 | H183: 0.00 | I183: 0.00 | J183: 31.00 | K183: 0.00 | L183: 31.00 | M183: 3.10
A184: Крупа гречневая | B184: 0.00 | C184: 0.00 | D184: 0.00 | E184: 50.00 | F184: 0.00 | G184: 0.00 | H184: 0.00 | I184: 0.00 | J184: 0.00 | K184: 0.00 | L184: 50.00 | M184: 5.00
A185: Картофель | B185: 80.00 | C185: 251.00 | D185: 133.10 | E185: 152.00 | F185: 149.50 | G185: 46.00 | H185: 160.10 | I185: 205.00 | J185: 211.10 | K185: 85.00 | L185: 1472.80 | M185: 147.28
A186: Морковь | B186: 13.80 | C186: 109.00 | D186: 105.25 | E186: 41.90 | F186: 75.00 | G186: 92.50 | H186: 131.50 | I186: 11.30 | J186: 45.40 | K186: 104.00 | L186: 729.65 | M186: 72.97
A187: Лук репчатый | B187: 12.00 | C187: 38.50 | D187: 53.00 | E187: 38.00 | F187: 17.80 | G187: 30.90 | H187: 44.30 | I187: 26.00 | J187: 12.40 | K187: 41.60 | L187: 314.50 | M187: 31.45
A188: Свекла | B188: 76.80 | C188: 0.00 | D188: 0.00 | E188: 93.60 | F188: 0.00 | G188: 64.00 | H188: 93.60 | I188: 40.00 | J188: 63.00 | K188: 0.00 | L188: 431.00 | M188: 43.10
A189: Капуста свежая | B189: 215.00 | C189: 99.00 | D189: 115.80 | E189: 50.00 | F189: 30.00 | G189: 99.00 | H189: 64.80 | I189: 51.20 | J189: 76.00 | K189: 90.00 | L189: 890.80 | M189: 89.08
A190: Горошек зеленый | B190: 0.00 | C190: 0.00 | D190: 0.00 | E190: 0.00 | F190: 0.00 | G190: 0.00 | H190: 0.00 | I190: 0.00 | J190: 0.00 | K190: 0.00 | L190: 0.00 | M190: 0.00
A191: Огурцы соленые | B191: 22.00 | C191: 0.00 | D191: 0.00 | E191: 0.00 | F191: 54.60 | G191: 0.00 | H191: 0.00 | I191: 54.60 | J191: 0.00 | K191: 0.00 | L191: 131.20 | M191: 13.12
A192: Помидоры свежие | B192: 0.00 | C192: 0.00 | D192: 0.00 | E192: 0.00 | F192: 0.00 | G192: 0.00 | H192: 0.00 | I192: 0.00 | J192: 0.00 | K192: 0.00 | L192: 0.00 | M192: 0.00
A193: Огурцы свежие | B193: 0.00 | C193: 0.00 | D193: 0.00 | E193: 0.00 | F193: 0.00 | G193: 0.00 | H193: 0.00 | I193: 0.00 | J193: 0.00 | K193: 0.00 | L193: 0.00 | M193: 0.00
A194: Томат-паста | B194: 1.20 | C194: 0.00 | D194: 1.00 | E194: 1.00 | F194: 1.20 | G194: 1.00 | H194: 1.00 | I194: 1.00 | J194: 0.00 | K194: 0.00 | L194: 7.40 | M194: 0.74
A195: Масло сливочное | B195: 20.60 | C195: 19.40 | D195: 17.00 | E195: 11.00 | F195: 19.00 | G195: 17.50 | H195: 14.00 | I195: 17.00 | J195: 14.60 | K195: 12.00 | L195: 162.10 | M195: 16.21
A196: Масло растительное | B196: 7.00 | C196: 5.90 | D196: 9.70 | E196: 17.00 | F196: 6.60 | G196: 8.00 | H196: 9.00 | I196: 6.10 | J196: 7.00 | K196: 9.60 | L196: 85.90 | M196: 8.59
A197: Фрукты свежие | B197: 80.00 | C197: 80.00 | D197: 80.00 | E197: 80.00 | F197: 80.00 | G197: 80.00 | H197: 80.00 | I197: 80.00 | J197: 80.00 | K197: 80.00 | L197: 800.00 | M197: 80.00
A198: Яблоки | B198: 0.00 | C198: 34.00 | D198: 15.00 | E198: 0.00 | F198: 0.00 | G198: 0.00 | H198: 0.00 | I198: 0.00 | J198: 34.00 | K198: 14.00 | L198: 97.00 | M198: 9.70
A199: Ягоды | B199: 0.00 | C199: 0.00 | D199: 0.00 | E199: 0.00 | F199: 0.00 | G199: 0.00 | H199: 0.00 | I199: 0.00 | J199: 0.00 | K199: 0.00 | L199: 0.00 | M199: 0.00
A200: Лимон | B200: 0.00 | C200: 0.00 | D200: 0.00 | E200: 0.00 | F200: 0.00 | G200: 0.00 | H200: 0.00 | I200: 0.00 | J200: 0.00 | K200: 0.00 | L200: 0.00 | M200: 0.00
A201: Повидло фруктовое | B201: 0.00 | C201: 20.00 | D201: 0.00 | E201: 0.00 | F201: 0.00 | G201: 0.00 | H201: 0.00 | I201: 0.00 | J201: 0.00 | K201: 0.00 | L201: 20.00 | M201: 2.00
A202: Сок | B202: 100.00 | C202: 0.00 | D202: 100.00 | E202: 150.00 | F202: 0.00 | G202: 100.00 | H202: 0.00 | I202: 100.00 | J202: 100.00 | K202: 100.00 | L202: 750.00 | M202: 75.00
A203: Курага | B203: 0.00 | C203: 0.00 | D203: 15.30 | E203: 0.00 | F203: 0.00 | G203: 15.30 | H203: 0.00 | I203: 0.00 | J203: 0.00 | K203: 0.00 | L203: 30.60 | M203: 3.06
A204: Сухофрукты | B204: 0.00 | C204: 0.00 | D204: 0.00 | E204: 0.00 | F204: 15.30 | G204: 0.00 | H204: 0.00 | I204: 15.30 | J204: 0.00 | K204: 0.00 | L204: 30.60 | M204: 3.06
A205: Урюк | B205: 0.00 | C205: 0.00 | D205: 0.00 | E205: 0.00 | F205: 0.00 | G205: 0.00 | H205: 0.00 | I205: 0.00 | J205: 0.00 | K205: 0.00 | L205: 0.00 | M205: 0.00
A206: Изюм | B206: 0.00 | C206: 0.00 | D206: 0.00 | E206: 0.00 | F206: 15.30 | G206: 0.00 | H206: 0.00 | I206: 0.00 | J206: 7.50 | K206: 0.00 | L206: 22.80 | M206: 2.28
A207: Шиповник | B207: 0.00 | C207: 0.00 | D207: 0.00 | E207: 0.00 | F207: 0.00 | G207: 0.00 | H207: 0.00 | I207: 0.00 | J207: 0.00 | K207: 0.00 | L207: 0.00 | M207: 0.00
A208: Молоко | B208: 116.30 | C208: 285.40 | D208: 190.00 | E208: 136.00 | F208: 225.80 | G208: 195.00 | H208: 126.00 | I208: 210.00 | J208: 220.80 | K208: 192.00 | L208: 1897.30 | M208: 189.73
... 28 more rows
